Publisher Label,Publisher URI,Body Name,Service Area Categorisation,Service Division Categorisation,Expenses Type,Date,Transaction Number,Amount,Capital or Revenue,Supplier Name,Merchant Category
Peterborough,http://opendatacommunities.org/id/unitary-authority/peterborough,Peterborough City Council,Children's & Education Services - Education,Other Education and Community Budget,Supplies and Services - Transfer Payments,01/06/2015 00:00,685270,-9543.15,REVENUE,Advanced Childcare,BOARDING OUT ALLOWANCES
Peterborough,http://opendatacommunities.org/id/unitary-authority/peterborough,Peterborough City Council,Children's & Education Services - Education,Other Education and Community Budget,Supplies and Services - Transfer Payments,01/06/2015 00:00,706252,-1122.72,REVENUE,Advanced Childcare,BOARDING OUT ALLOWANCES
Peterborough,http://opendatacommunities.org/id/unitary-authority/peterborough,Peterborough City Council,Children's & Education Services - Children's Social Care,Children Looked After,Supplies and Services - Transfer Payments,01/06/2015 00:00,718544,14000,REVENUE,Advanced Childcare,BOARDING OUT ALLOWANCES
Peterborough,http://opendatacommunities.org/id/unitary-authority/peterborough,Peterborough City Council,Children's & Education Services - Children's Social Care,Children Looked After,Supplies and Services - Transfer Payments,01/06/2015 00:00,718546,11999.96,REVENUE,Advanced Childcare,BOARDING OUT ALLOWANCES
Peterborough,http://opendatacommunities.org/id/unitary-authority/peterborough,Peterborough City Council,Children's & Education Services - Children's Social Care,Children Looked After,Supplies and Services - Transfer Payments,01/06/2015 00:00,718729,-16286.04,REVENUE,Advanced Childcare,BOARDING OUT ALLOWANCES
Peterborough,http://opendatacommunities.org/id/unitary-authority/peterborough,Peterborough City Council,Adult Social Care,Physical Support - Older People (65+),Supplies and Services,01/06/2015 00:00,723783,730,REVENUE,CARE QUALITY COMMISSION,REGISTRATION FEES
Peterborough,http://opendatacommunities.org/id/unitary-authority/peterborough,Peterborough City Council,Children's & Education Services - Children's Social Care,Children Looked After,Supplies and Services - Transfer Payments,01/06/2015 00:00,728992,3385.2,REVENUE,National Fostering Agency,BOARDING OUT ALLOWANCES
Peterborough,http://opendatacommunities.org/id/unitary-authority/peterborough,Peterborough City Council,Adult Social Care,Older People,Supplies and Services,01/06/2015 00:00,733697,1244.2,REVENUE,Avery Homes (Nelson) Ltd,RESIDENTIAL CARE
Peterborough,http://opendatacommunities.org/id/unitary-authority/peterborough,Peterborough City Council,Adult Social Care,Older People,Supplies and Services,01/06/2015 00:00,733699,1187.36,REVENUE,Avery Homes (Nelson) Ltd,RESIDENTIAL CARE
Peterborough,http://opendatacommunities.org/id/unitary-authority/peterborough,Peterborough City Council,Children's & Education Services - Children's Social Care,Services to Young People,Supplies and Services,01/06/2015 00:00,734286,32397.8,REVENUE,DRINKSENSE,HIRED SERVICES
Peterborough,http://opendatacommunities.org/id/unitary-authority/peterborough,Peterborough City Council,Adult Social Care,Other Adult Services,Third Party Payments,01/06/2015 00:00,734403,80305.75,REVENUE,CRI,THIRD PARTY PAYMENTS - CONTRACT
Peterborough,http://opendatacommunities.org/id/unitary-authority/peterborough,Peterborough City Council,Children's & Education Services - Children's Social Care,Children Looked After,Supplies and Services - Transfer Payments,01/06/2015 00:00,734473,732.78,REVENUE,Redacted Personal Data,BOARDING OUT ALLOWANCES
Peterborough,http://opendatacommunities.org/id/unitary-authority/peterborough,Peterborough City Council,Adult Social Care,Social Care Activities,Employees,01/06/2015 00:00,734964,1465.2,REVENUE,SWP Consulting,EXTERNAL TEMPORARY STAFF
Peterborough,http://opendatacommunities.org/id/unitary-authority/peterborough,Peterborough City Council,Adult Social Care,Older People,Supplies and Services,01/06/2015 00:00,735112,2436,REVENUE,Castleview Nursing Home,RESIDENTIAL CARE
Peterborough,http://opendatacommunities.org/id/unitary-authority/peterborough,Peterborough City Council,Adult Social Care,Adult Learning Disabilities,Supplies and Services,01/06/2015 00:00,735182,6125.84,REVENUE,Voyage,HOME CARE
Peterborough,http://opendatacommunities.org/id/unitary-authority/peterborough,Peterborough City Council,Support Services,Support Services,Supplies and Services,01/06/2015 00:00,735299,720,REVENUE,"Cassidy, Mr Francis",LEGAL COSTS
Peterborough,http://opendatacommunities.org/id/unitary-authority/peterborough,Peterborough City Council,Children's & Education Services - Children's Social Care,Children Looked After,Supplies and Services - Transfer Payments,01/06/2015 00:00,735303,1155,REVENUE,Redacted Personal Data,BOARDING OUT ALLOWANCES
Peterborough,http://opendatacommunities.org/id/unitary-authority/peterborough,Peterborough City Council,Capital,Capital,Capital Pending Update to BS,01/06/2015 00:00,735516,5400,CAPITAL,The PCC for Bedfordshire (Police & Crime Commissioner),PROFESSIONAL/LEGAL FEES
Peterborough,http://opendatacommunities.org/id/unitary-authority/peterborough,Peterborough City Council,Adult Social Care,Assistive Equipment and Technology,Supplies and Services,01/06/2015 00:00,735517,505.5,REVENUE,Tansor Assessment Centre,EQUIPMENT PURCHASE
Peterborough,http://opendatacommunities.org/id/unitary-authority/peterborough,Peterborough City Council,Children's & Education Services - Children's Social Care,Children Looked After,Supplies and Services - Transfer Payments,01/06/2015 00:00,736593,1878.85,REVENUE,Norfolk County Council,BOARDING OUT ALLOWANCES
Peterborough,http://opendatacommunities.org/id/unitary-authority/peterborough,Peterborough City Council,Deficit/(Surplus) on Trading Undertakings,Trading Account Surpluses & Deficits,Supplies and Services,01/06/2015 00:00,736605,13977.22,REVENUE,BW Aluminium Ltd,ITEMS FOR RESALE
Peterborough,http://opendatacommunities.org/id/unitary-authority/peterborough,Peterborough City Council,More than one Service Area Category,More than one Service Division,Supplies and Services,01/06/2015 00:00,736628,3453.14,REVENUE,Loomis UK Ltd,CASH COLLECTION SERVICES
Peterborough,http://opendatacommunities.org/id/unitary-authority/peterborough,Peterborough City Council,Adult Social Care,Learning Disability Support - Adults (18-64),Employees,01/06/2015 00:00,736676,1545.3,REVENUE,Pulse,EXTERNAL TEMPORARY STAFF
Peterborough,http://opendatacommunities.org/id/unitary-authority/peterborough,Peterborough City Council,Housing Services,Homelessness,Supplies and Services,01/06/2015 00:00,737364,918.75,REVENUE,DA Rosalia Hotel,HOMELESSNESS BED AND BREAKFAST
Peterborough,http://opendatacommunities.org/id/unitary-authority/peterborough,Peterborough City Council,Housing Services,Homelessness,Supplies and Services,01/06/2015 00:00,737389,857.5,REVENUE,DA Rosalia Hotel,HOMELESSNESS BED AND BREAKFAST
Peterborough,http://opendatacommunities.org/id/unitary-authority/peterborough,Peterborough City Council,Highways and Transport Services,Parking Services,Supplies and Services,01/06/2015 00:00,737566,6000,REVENUE,Imperial Civil Enforcement Solutions,COMPUTER SOFTWARE
Peterborough,http://opendatacommunities.org/id/unitary-authority/peterborough,Peterborough City Council,Support Services,Support Services,Employees,01/06/2015 00:00,737572,1354.2,REVENUE,Sellick Partnership Group Limited,EXTERNAL TEMPORARY STAFF
Peterborough,http://opendatacommunities.org/id/unitary-authority/peterborough,Peterborough City Council,Support Services,Support Services,Employees,01/06/2015 00:00,737574,1609.2,REVENUE,Sellick Partnership Group Limited,EXTERNAL TEMPORARY STAFF
Peterborough,http://opendatacommunities.org/id/unitary-authority/peterborough,Peterborough City Council,Adult Social Care,Adult Learning Disabilities,Supplies and Services,01/06/2015 00:00,737593,4814.88,REVENUE,Voyage,HOME CARE
Peterborough,http://opendatacommunities.org/id/unitary-authority/peterborough,Peterborough City Council,Adult Social Care,Adult Learning Disabilities,Supplies and Services,01/06/2015 00:00,737595,1843.44,REVENUE,Voyage,HOME CARE
Peterborough,http://opendatacommunities.org/id/unitary-authority/peterborough,Peterborough City Council,Adult Social Care,Adult Learning Disabilities,Supplies and Services,01/06/2015 00:00,737599,4226,REVENUE,Voyage,HOME CARE
Peterborough,http://opendatacommunities.org/id/unitary-authority/peterborough,Peterborough City Council,Adult Social Care,Adult Learning Disabilities,Supplies and Services,01/06/2015 00:00,737603,3575.24,REVENUE,Voyage,HOME CARE
Peterborough,http://opendatacommunities.org/id/unitary-authority/peterborough,Peterborough City Council,Adult Social Care,Adult Learning Disabilities,Supplies and Services,01/06/2015 00:00,737605,2990.04,REVENUE,Voyage,HOME CARE
Peterborough,http://opendatacommunities.org/id/unitary-authority/peterborough,Peterborough City Council,Adult Social Care,Adult Learning Disabilities,Supplies and Services,01/06/2015 00:00,737637,3083.2,REVENUE,Voyage,HOME CARE
Peterborough,http://opendatacommunities.org/id/unitary-authority/peterborough,Peterborough City Council,Adult Social Care,Adult Learning Disabilities,Supplies and Services,01/06/2015 00:00,737640,3875.2,REVENUE,Voyage,HOME CARE
Peterborough,http://opendatacommunities.org/id/unitary-authority/peterborough,Peterborough City Council,Adult Social Care,Adult Mental Health,Supplies and Services,01/06/2015 00:00,737647,2345.17,REVENUE,GSE Residential Ltd,PROFESSIONAL SERVICES
Peterborough,http://opendatacommunities.org/id/unitary-authority/peterborough,Peterborough City Council,Adult Social Care,Adult Mental Health,Supplies and Services,01/06/2015 00:00,737652,1213.25,REVENUE,GSE Residential Ltd,PROFESSIONAL SERVICES
Peterborough,http://opendatacommunities.org/id/unitary-authority/peterborough,Peterborough City Council,Adult Social Care,Adult Mental Health,Supplies and Services,01/06/2015 00:00,737654,2265.54,REVENUE,GSE Residential Ltd,PROFESSIONAL SERVICES
Peterborough,http://opendatacommunities.org/id/unitary-authority/peterborough,Peterborough City Council,Adult Social Care,Adult Mental Health,Supplies and Services,01/06/2015 00:00,737655,2540.64,REVENUE,GSE Residential Ltd,PROFESSIONAL SERVICES
Peterborough,http://opendatacommunities.org/id/unitary-authority/peterborough,Peterborough City Council,Adult Social Care,Older People,Supplies and Services,01/06/2015 00:00,737658,1821.88,REVENUE,THE TUDORS,RESIDENTIAL CARE
Peterborough,http://opendatacommunities.org/id/unitary-authority/peterborough,Peterborough City Council,Adult Social Care,Older People,Supplies and Services,01/06/2015 00:00,737883,4460,REVENUE,Longueville Court (Barchester),RESIDENTIAL CARE
Peterborough,http://opendatacommunities.org/id/unitary-authority/peterborough,Peterborough City Council,Children's & Education Services - Education,Secondary,Employees,01/06/2015 00:00,737919,602.4,REVENUE,Textbook Teachers,SUPPLY TEACHERS
Peterborough,http://opendatacommunities.org/id/unitary-authority/peterborough,Peterborough City Council,Adult Social Care,Older People,Supplies and Services,01/06/2015 00:00,738001,3846.43,REVENUE,Longueville Court (Barchester),RESIDENTIAL CARE
Peterborough,http://opendatacommunities.org/id/unitary-authority/peterborough,Peterborough City Council,Adult Social Care,Older People,Supplies and Services,01/06/2015 00:00,738003,2655.84,REVENUE,Longueville Court (Barchester),RESIDENTIAL CARE
Peterborough,http://opendatacommunities.org/id/unitary-authority/peterborough,Peterborough City Council,Adult Social Care,Adult Physical Disability & Sensory Impairment,Supplies and Services,01/06/2015 00:00,738024,3336,REVENUE,Longueville Court (Barchester),RESIDENTIAL CARE
Peterborough,http://opendatacommunities.org/id/unitary-authority/peterborough,Peterborough City Council,Adult Social Care,Older People,Supplies and Services,01/06/2015 00:00,738026,2107.28,REVENUE,Longueville Court (Barchester),RESIDENTIAL CARE
Peterborough,http://opendatacommunities.org/id/unitary-authority/peterborough,Peterborough City Council,Adult Social Care,Older People,Supplies and Services,01/06/2015 00:00,738028,3340,REVENUE,Longueville Court (Barchester),RESIDENTIAL CARE
Peterborough,http://opendatacommunities.org/id/unitary-authority/peterborough,Peterborough City Council,Adult Social Care,Older People,Supplies and Services,01/06/2015 00:00,738030,1633.12,REVENUE,Longueville Court (Barchester),RESIDENTIAL CARE
Peterborough,http://opendatacommunities.org/id/unitary-authority/peterborough,Peterborough City Council,Adult Social Care,Older People,Supplies and Services,01/06/2015 00:00,738032,3237.4,REVENUE,Longueville Court (Barchester),RESIDENTIAL CARE
Peterborough,http://opendatacommunities.org/id/unitary-authority/peterborough,Peterborough City Council,Adult Social Care,Older People,Supplies and Services,01/06/2015 00:00,738034,3541.2,REVENUE,Longueville Court (Barchester),RESIDENTIAL CARE
Peterborough,http://opendatacommunities.org/id/unitary-authority/peterborough,Peterborough City Council,Adult Social Care,Older People,Supplies and Services,01/06/2015 00:00,738037,1494.48,REVENUE,Longueville Court (Barchester),RESIDENTIAL CARE
Peterborough,http://opendatacommunities.org/id/unitary-authority/peterborough,Peterborough City Council,Adult Social Care,Older People,Supplies and Services,01/06/2015 00:00,738038,2708.8,REVENUE,Longueville Court (Barchester),RESIDENTIAL CARE
Peterborough,http://opendatacommunities.org/id/unitary-authority/peterborough,Peterborough City Council,Adult Social Care,Older People,Supplies and Services,01/06/2015 00:00,738041,4595.52,REVENUE,Longueville Court (Barchester),RESIDENTIAL CARE
Peterborough,http://opendatacommunities.org/id/unitary-authority/peterborough,Peterborough City Council,Adult Social Care,Older People,Supplies and Services,01/06/2015 00:00,738081,936,REVENUE,Longueville Court (Barchester),RESIDENTIAL CARE
Peterborough,http://opendatacommunities.org/id/unitary-authority/peterborough,Peterborough City Council,Adult Social Care,Older People,Supplies and Services,01/06/2015 00:00,738084,2952,REVENUE,Longueville Court (Barchester),RESIDENTIAL CARE
Peterborough,http://opendatacommunities.org/id/unitary-authority/peterborough,Peterborough City Council,Adult Social Care,Adult Physical Disability & Sensory Impairment,Supplies and Services,01/06/2015 00:00,738086,4000,REVENUE,Longueville Court (Barchester),RESIDENTIAL CARE
Peterborough,http://opendatacommunities.org/id/unitary-authority/peterborough,Peterborough City Council,Adult Social Care,Older People,Supplies and Services,01/06/2015 00:00,738089,2100.12,REVENUE,Longueville Court (Barchester),RESIDENTIAL CARE
Peterborough,http://opendatacommunities.org/id/unitary-authority/peterborough,Peterborough City Council,Adult Social Care,Split,Third Party Payments,01/06/2015 00:00,738159,3479.44,REVENUE,Barchester Healthcare (Werrington Lodge),THIRD PARTY PAYMENTS - CONTRACT
Peterborough,http://opendatacommunities.org/id/unitary-authority/peterborough,Peterborough City Council,Adult Social Care,Older People,Supplies and Services,01/06/2015 00:00,738190,1325.89,REVENUE,Longueville Court (Barchester),RESIDENTIAL CARE
Peterborough,http://opendatacommunities.org/id/unitary-authority/peterborough,Peterborough City Council,Adult Social Care,Older People,Supplies and Services,01/06/2015 00:00,738201,1050.84,REVENUE,OAKHOUSE HOMECARE LTD,RESIDENTIAL CARE
Peterborough,http://opendatacommunities.org/id/unitary-authority/peterborough,Peterborough City Council,Highways and Transport Services,Parking Services,Supplies and Services,01/06/2015 00:00,738219,1138.03,REVENUE,Loomis UK Ltd,CASH COLLECTION SERVICES
Peterborough,http://opendatacommunities.org/id/unitary-authority/peterborough,Peterborough City Council,Children's & Education Services - Children's Social Care,More than one Service Division,Supplies and Services - Transfer Payments,01/06/2015 00:00,738988,40521.42,REVENUE,Oracle Care Ltd (Region 2),BOARDING OUT ALLOWANCES
Peterborough,http://opendatacommunities.org/id/unitary-authority/peterborough,Peterborough City Council,Adult Social Care,Adult Learning Disabilities,Supplies and Services,01/06/2015 00:00,739273,-1480.6,REVENUE,HEREWARD CARE SERVICES LIMITED,RESIDENTIAL CARE
Peterborough,http://opendatacommunities.org/id/unitary-authority/peterborough,Peterborough City Council,Adult Social Care,Older People,Supplies and Services,01/06/2015 00:00,739311,1576.24,REVENUE,THE TUDORS,RESIDENTIAL CARE
Peterborough,http://opendatacommunities.org/id/unitary-authority/peterborough,Peterborough City Council,Children's & Education Services - Education,Primary,Supplies and Services,01/06/2015 00:00,739364,710.5,REVENUE,Eastern Shires Purchasing Organisation,EDUCATION EXPENSES
Peterborough,http://opendatacommunities.org/id/unitary-authority/peterborough,Peterborough City Council,Highways and Transport Services,"Transport planning, policy and strategy",Supplies and Services,01/06/2015 00:00,739874,30000,REVENUE,The Tour Series Ltd,SPONSORSHIP
Peterborough,http://opendatacommunities.org/id/unitary-authority/peterborough,Peterborough City Council,Highways and Transport Services,"Transport planning, policy and strategy",Supplies and Services,01/06/2015 00:00,739876,36000,REVENUE,The Tour Series Ltd,SPONSORSHIP
Peterborough,http://opendatacommunities.org/id/unitary-authority/peterborough,Peterborough City Council,Children's & Education Services - Children's Social Care,Children Looked After,Employees,01/06/2015 00:00,739994,1590,REVENUE,The K A Wing Group Ltd,PREMISES MAINTENANCE
Peterborough,http://opendatacommunities.org/id/unitary-authority/peterborough,Peterborough City Council,Adult Social Care,Adult Learning Disabilities,Supplies and Services,01/06/2015 00:00,740231,1581.52,REVENUE,HEREWARD CARE SERVICES LIMITED,RESIDENTIAL CARE
Peterborough,http://opendatacommunities.org/id/unitary-authority/peterborough,Peterborough City Council,Adult Social Care,Adult Learning Disabilities,Supplies and Services,01/06/2015 00:00,740232,1550.32,REVENUE,HEREWARD CARE SERVICES LIMITED,RESIDENTIAL CARE
Peterborough,http://opendatacommunities.org/id/unitary-authority/peterborough,Peterborough City Council,Adult Social Care,Adult Learning Disabilities,Supplies and Services,01/06/2015 00:00,740233,3187.48,REVENUE,HEREWARD CARE SERVICES LIMITED,RESIDENTIAL CARE
Peterborough,http://opendatacommunities.org/id/unitary-authority/peterborough,Peterborough City Council,Adult Social Care,Adult Learning Disabilities,Supplies and Services,01/06/2015 00:00,740234,1016.04,REVENUE,HEREWARD CARE SERVICES LIMITED,RESIDENTIAL CARE
Peterborough,http://opendatacommunities.org/id/unitary-authority/peterborough,Peterborough City Council,Adult Social Care,Adult Learning Disabilities,Supplies and Services,01/06/2015 00:00,740235,3520.72,REVENUE,HEREWARD CARE SERVICES LIMITED,RESIDENTIAL CARE
Peterborough,http://opendatacommunities.org/id/unitary-authority/peterborough,Peterborough City Council,Adult Social Care,Adult Learning Disabilities,Supplies and Services,01/06/2015 00:00,740236,2283,REVENUE,HEREWARD CARE SERVICES LIMITED,RESIDENTIAL CARE
Peterborough,http://opendatacommunities.org/id/unitary-authority/peterborough,Peterborough City Council,Adult Social Care,Adult Learning Disabilities,Supplies and Services,01/06/2015 00:00,740237,2761.44,REVENUE,HEREWARD CARE SERVICES LIMITED,RESIDENTIAL CARE
Peterborough,http://opendatacommunities.org/id/unitary-authority/peterborough,Peterborough City Council,Adult Social Care,Adult Learning Disabilities,Supplies and Services,01/06/2015 00:00,740238,2437,REVENUE,HEREWARD CARE SERVICES LIMITED,RESIDENTIAL CARE
Peterborough,http://opendatacommunities.org/id/unitary-authority/peterborough,Peterborough City Council,Adult Social Care,Adult Learning Disabilities,Supplies and Services,01/06/2015 00:00,740239,1438.84,REVENUE,HEREWARD CARE SERVICES LIMITED,RESIDENTIAL CARE
Peterborough,http://opendatacommunities.org/id/unitary-authority/peterborough,Peterborough City Council,Adult Social Care,Adult Learning Disabilities,Supplies and Services,01/06/2015 00:00,740240,2519.56,REVENUE,HEREWARD CARE SERVICES LIMITED,RESIDENTIAL CARE
Peterborough,http://opendatacommunities.org/id/unitary-authority/peterborough,Peterborough City Council,Adult Social Care,Adult Learning Disabilities,Supplies and Services,01/06/2015 00:00,740241,1797.76,REVENUE,HEREWARD CARE SERVICES LIMITED,RESIDENTIAL CARE
Peterborough,http://opendatacommunities.org/id/unitary-authority/peterborough,Peterborough City Council,Adult Social Care,Adult Learning Disabilities,Supplies and Services,01/06/2015 00:00,740242,2666,REVENUE,HEREWARD CARE SERVICES LIMITED,RESIDENTIAL CARE
Peterborough,http://opendatacommunities.org/id/unitary-authority/peterborough,Peterborough City Council,Adult Social Care,Adult Learning Disabilities,Supplies and Services,01/06/2015 00:00,740243,2850.64,REVENUE,HEREWARD CARE SERVICES LIMITED,RESIDENTIAL CARE
Peterborough,http://opendatacommunities.org/id/unitary-authority/peterborough,Peterborough City Council,Planning Services,Community Development,Supplies and Services,01/06/2015 00:00,740244,550,REVENUE,Werrington Allotments Association,GRANT PAYMENT
Peterborough,http://opendatacommunities.org/id/unitary-authority/peterborough,Peterborough City Council,Adult Social Care,Adult Learning Disabilities,Supplies and Services,01/06/2015 00:00,740245,2302.68,REVENUE,HEREWARD CARE SERVICES LIMITED,RESIDENTIAL CARE
Peterborough,http://opendatacommunities.org/id/unitary-authority/peterborough,Peterborough City Council,Adult Social Care,Adult Learning Disabilities,Supplies and Services,01/06/2015 00:00,740247,1438.92,REVENUE,HEREWARD CARE SERVICES LIMITED,RESIDENTIAL CARE
Peterborough,http://opendatacommunities.org/id/unitary-authority/peterborough,Peterborough City Council,Adult Social Care,Adult Learning Disabilities,Supplies and Services,01/06/2015 00:00,740248,2109.96,REVENUE,HEREWARD CARE SERVICES LIMITED,RESIDENTIAL CARE
Peterborough,http://opendatacommunities.org/id/unitary-authority/peterborough,Peterborough City Council,Adult Social Care,Adult Learning Disabilities,Supplies and Services,01/06/2015 00:00,740249,2401.92,REVENUE,HEREWARD CARE SERVICES LIMITED,RESIDENTIAL CARE
Peterborough,http://opendatacommunities.org/id/unitary-authority/peterborough,Peterborough City Council,Adult Social Care,Older People,Supplies and Services,01/06/2015 00:00,740298,1064.46,REVENUE,Barchester Healthcare (Werrington Lodge),RESIDENTIAL CARE
Peterborough,http://opendatacommunities.org/id/unitary-authority/peterborough,Peterborough City Council,Adult Social Care,Older People,Supplies and Services,01/06/2015 00:00,740299,2128.92,REVENUE,BUPA Care Homes,RESIDENTIAL CARE
Peterborough,http://opendatacommunities.org/id/unitary-authority/peterborough,Peterborough City Council,Adult Social Care,Older People,Supplies and Services,01/06/2015 00:00,740301,988.43,REVENUE,BUPA Care Homes,RESIDENTIAL CARE
Peterborough,http://opendatacommunities.org/id/unitary-authority/peterborough,Peterborough City Council,Adult Social Care,Older People,Supplies and Services,01/06/2015 00:00,740302,2128.92,REVENUE,BUPA Care Homes,RESIDENTIAL CARE
Peterborough,http://opendatacommunities.org/id/unitary-authority/peterborough,Peterborough City Council,Adult Social Care,Older People,Supplies and Services,01/06/2015 00:00,740303,988.43,REVENUE,BUPA Care Homes,RESIDENTIAL CARE
Peterborough,http://opendatacommunities.org/id/unitary-authority/peterborough,Peterborough City Council,Adult Social Care,Older People,Supplies and Services,01/06/2015 00:00,740305,2128.92,REVENUE,BUPA Care Homes,RESIDENTIAL CARE
Peterborough,http://opendatacommunities.org/id/unitary-authority/peterborough,Peterborough City Council,Adult Social Care,Older People,Supplies and Services,01/06/2015 00:00,740306,988.43,REVENUE,BUPA Care Homes,RESIDENTIAL CARE
Peterborough,http://opendatacommunities.org/id/unitary-authority/peterborough,Peterborough City Council,Adult Social Care,Older People,Supplies and Services,01/06/2015 00:00,740307,3900,REVENUE,BUPA Care Homes,RESIDENTIAL CARE
Peterborough,http://opendatacommunities.org/id/unitary-authority/peterborough,Peterborough City Council,Adult Social Care,Older People,Supplies and Services,01/06/2015 00:00,740310,635.04,REVENUE,Carers Trust Cambridgeshire,HOME CARE
Peterborough,http://opendatacommunities.org/id/unitary-authority/peterborough,Peterborough City Council,Children's & Education Services - Children's Social Care,Children Looked After,Supplies and Services - Transfer Payments,01/06/2015 00:00,740372,15000,REVENUE,Advanced Childcare,BOARDING OUT ALLOWANCES
Peterborough,http://opendatacommunities.org/id/unitary-authority/peterborough,Peterborough City Council,Children's & Education Services - Children's Social Care,Children Looked After,Supplies and Services - Transfer Payments,01/06/2015 00:00,740374,12485.25,REVENUE,Ethelbert Childrens Services,BOARDING OUT ALLOWANCES
Peterborough,http://opendatacommunities.org/id/unitary-authority/peterborough,Peterborough City Council,Children's & Education Services - Children's Social Care,Children Looked After,Supplies and Services - Transfer Payments,01/06/2015 00:00,740383,13285.67,REVENUE,Advanced Childcare,BOARDING OUT ALLOWANCES
Peterborough,http://opendatacommunities.org/id/unitary-authority/peterborough,Peterborough City Council,Children's & Education Services - Children's Social Care,Children Looked After,Supplies and Services - Transfer Payments,01/06/2015 00:00,740385,15500,REVENUE,Advanced Childcare,BOARDING OUT ALLOWANCES
Peterborough,http://opendatacommunities.org/id/unitary-authority/peterborough,Peterborough City Council,Children's & Education Services - Children's Social Care,Other Children's & Families Services,Supplies and Services - Transfer Payments,01/06/2015 00:00,740386,885.71,REVENUE,PC Homes,BOARDING OUT ALLOWANCES
Peterborough,http://opendatacommunities.org/id/unitary-authority/peterborough,Peterborough City Council,Children's & Education Services - Children's Social Care,Other Children's & Families Services,Supplies and Services - Transfer Payments,01/06/2015 00:00,740387,1371,REVENUE,PC Homes,BOARDING OUT ALLOWANCES
Peterborough,http://opendatacommunities.org/id/unitary-authority/peterborough,Peterborough City Council,Children's & Education Services - Children's Social Care,Other Children's & Families Services,Supplies and Services - Transfer Payments,01/06/2015 00:00,740388,1371,REVENUE,PC Homes,BOARDING OUT ALLOWANCES
Peterborough,http://opendatacommunities.org/id/unitary-authority/peterborough,Peterborough City Council,Children's & Education Services - Education,Other Education and Community Budget,Supplies and Services,01/06/2015 00:00,740406,993.45,REVENUE,Redacted Personal Data,HIRED SERVICES
Peterborough,http://opendatacommunities.org/id/unitary-authority/peterborough,Peterborough City Council,Adult Social Care,Older People,Supplies and Services,01/06/2015 00:00,740417,1674.52,REVENUE,Ashmere,RESIDENTIAL CARE
Peterborough,http://opendatacommunities.org/id/unitary-authority/peterborough,Peterborough City Council,Adult Social Care,Adult Learning Disabilities,Supplies and Services,03/06/2015 00:00,726449,10726.08,REVENUE,Community Care Solutions Ltd,RESIDENTIAL CARE
Peterborough,http://opendatacommunities.org/id/unitary-authority/peterborough,Peterborough City Council,Planning Services,Environmental Initiatives,Supplies and Services,03/06/2015 00:00,731025,1290,REVENUE,Environment Agency,REGISTRATION FEES
Peterborough,http://opendatacommunities.org/id/unitary-authority/peterborough,Peterborough City Council,Environmental and Regulatory Services,Waste Collection,Supplies and Services,03/06/2015 00:00,732915,1795.5,REVENUE,Environment Agency,LICENCES
Peterborough,http://opendatacommunities.org/id/unitary-authority/peterborough,Peterborough City Council,Environmental and Regulatory Services,Waste Collection,Supplies and Services,03/06/2015 00:00,732918,4543,REVENUE,Environment Agency,LICENCES
Peterborough,http://opendatacommunities.org/id/unitary-authority/peterborough,Peterborough City Council,Children's & Education Services - Children's Social Care,Children Looked After,Employees,03/06/2015 00:00,733450,556.2,REVENUE,SG Training Ltd,TRAINING
Peterborough,http://opendatacommunities.org/id/unitary-authority/peterborough,Peterborough City Council,Adult Social Care,Adult Learning Disabilities,Supplies and Services,03/06/2015 00:00,733869,5002.12,REVENUE,Community Care Solutions Ltd,RESIDENTIAL CARE
Peterborough,http://opendatacommunities.org/id/unitary-authority/peterborough,Peterborough City Council,Planning Services,Environmental Initiatives,Supplies and Services,03/06/2015 00:00,733911,214130,REVENUE,Dept of Energy & Climate Change (DECC CRC),TAXES
Peterborough,http://opendatacommunities.org/id/unitary-authority/peterborough,Peterborough City Council,Planning Services,Economic Development,Supplies and Services,03/06/2015 00:00,734281,750,REVENUE,Association of Town Centre Management,SUBSCRIPTIONS
Peterborough,http://opendatacommunities.org/id/unitary-authority/peterborough,Peterborough City Council,Support Services,Support Services,Supplies and Services,03/06/2015 00:00,734959,528,REVENUE,Term Times,ADVERTISING
Peterborough,http://opendatacommunities.org/id/unitary-authority/peterborough,Peterborough City Council,Central Services to the Public,Elections,Supplies and Services,03/06/2015 00:00,735096,1080,REVENUE,CCTV Training.com Ltd,CCTV
Peterborough,http://opendatacommunities.org/id/unitary-authority/peterborough,Peterborough City Council,Public Health,Public Health Advice,Employees,03/06/2015 00:00,735139,10440,REVENUE,Panoramic Associates Limited,EXTERNAL TEMPORARY STAFF
Peterborough,http://opendatacommunities.org/id/unitary-authority/peterborough,Peterborough City Council,Children's & Education Services - Children's Social Care,Other Children's & Families Services,Employees,03/06/2015 00:00,735174,1847.34,REVENUE,Eden Brown Ltd,EXTERNAL TEMPORARY STAFF
Peterborough,http://opendatacommunities.org/id/unitary-authority/peterborough,Peterborough City Council,Children's & Education Services - Children's Social Care,Other Children's & Families Services,Employees,03/06/2015 00:00,735176,3156.08,REVENUE,Eden Brown Ltd,EXTERNAL TEMPORARY STAFF
Peterborough,http://opendatacommunities.org/id/unitary-authority/peterborough,Peterborough City Council,Children's & Education Services - Children's Social Care,Other Children's & Families Services,Employees,03/06/2015 00:00,735179,1666.86,REVENUE,Eden Brown Ltd,EXTERNAL TEMPORARY STAFF
Peterborough,http://opendatacommunities.org/id/unitary-authority/peterborough,Peterborough City Council,Children's & Education Services - Children's Social Care,Other Children's & Families Services,Employees,03/06/2015 00:00,735181,2112,REVENUE,Eden Brown Ltd,EXTERNAL TEMPORARY STAFF
Peterborough,http://opendatacommunities.org/id/unitary-authority/peterborough,Peterborough City Council,Children's & Education Services - Children's Social Care,Other Children's & Families Services,Employees,03/06/2015 00:00,735184,1753.38,REVENUE,Eden Brown Ltd,EXTERNAL TEMPORARY STAFF
Peterborough,http://opendatacommunities.org/id/unitary-authority/peterborough,Peterborough City Council,Capital,Capital,Capital Pending Update to BS,03/06/2015 00:00,735193,17856,CAPITAL,Serco Ltd,CONSULTANTS FEES
Peterborough,http://opendatacommunities.org/id/unitary-authority/peterborough,Peterborough City Council,Support Services,Support Services,Supplies and Services,03/06/2015 00:00,735195,6099.31,REVENUE,Serco Ltd,COMPUTER HARDWARE
Peterborough,http://opendatacommunities.org/id/unitary-authority/peterborough,Peterborough City Council,Children's & Education Services - Children's Social Care,Children Looked After,Employees,03/06/2015 00:00,735235,815.4,REVENUE,Wrixon Care Services,EXTERNAL TEMPORARY STAFF
Peterborough,http://opendatacommunities.org/id/unitary-authority/peterborough,Peterborough City Council,Children's & Education Services - Children's Social Care,Children Looked After,Employees,03/06/2015 00:00,735237,513,REVENUE,Wrixon Care Services,EXTERNAL TEMPORARY STAFF
Peterborough,http://opendatacommunities.org/id/unitary-authority/peterborough,Peterborough City Council,Children's & Education Services - Children's Social Care,Children Looked After,Employees,03/06/2015 00:00,735238,513,REVENUE,Wrixon Care Services,EXTERNAL TEMPORARY STAFF
Peterborough,http://opendatacommunities.org/id/unitary-authority/peterborough,Peterborough City Council,Children's & Education Services - Children's Social Care,Children Looked After,Employees,03/06/2015 00:00,735240,513,REVENUE,Wrixon Care Services,EXTERNAL TEMPORARY STAFF
Peterborough,http://opendatacommunities.org/id/unitary-authority/peterborough,Peterborough City Council,Children's & Education Services - Children's Social Care,Children Looked After,Employees,03/06/2015 00:00,735242,558,REVENUE,Wrixon Care Services,EXTERNAL TEMPORARY STAFF
Peterborough,http://opendatacommunities.org/id/unitary-authority/peterborough,Peterborough City Council,Children's & Education Services - Children's Social Care,Children Looked After,Employees,03/06/2015 00:00,735243,522,REVENUE,Wrixon Care Services,EXTERNAL TEMPORARY STAFF
Peterborough,http://opendatacommunities.org/id/unitary-authority/peterborough,Peterborough City Council,Children's & Education Services - Children's Social Care,Children Looked After,Employees,03/06/2015 00:00,735244,511.2,REVENUE,Wrixon Care Services,EXTERNAL TEMPORARY STAFF
Peterborough,http://opendatacommunities.org/id/unitary-authority/peterborough,Peterborough City Council,Children's & Education Services - Children's Social Care,Children Looked After,Employees,03/06/2015 00:00,735245,505.8,REVENUE,Wrixon Care Services,EXTERNAL TEMPORARY STAFF
Peterborough,http://opendatacommunities.org/id/unitary-authority/peterborough,Peterborough City Council,Children's & Education Services - Children's Social Care,Children Looked After,Employees,03/06/2015 00:00,735247,774,REVENUE,Wrixon Care Services,EXTERNAL TEMPORARY STAFF
Peterborough,http://opendatacommunities.org/id/unitary-authority/peterborough,Peterborough City Council,Environmental and Regulatory Services,Regulatory services,Employees,03/06/2015 00:00,735302,1270.14,REVENUE,The Synergy Group,EXTERNAL TEMPORARY STAFF
Peterborough,http://opendatacommunities.org/id/unitary-authority/peterborough,Peterborough City Council,Children's & Education Services - Children's Social Care,Other Children's & Families Services,Employees,03/06/2015 00:00,735305,1678.92,REVENUE,Medicare First,EXTERNAL TEMPORARY STAFF
Peterborough,http://opendatacommunities.org/id/unitary-authority/peterborough,Peterborough City Council,Children's & Education Services - Children's Social Care,Other Children's & Families Services,Employees,03/06/2015 00:00,735307,1314.24,REVENUE,Medicare First,EXTERNAL TEMPORARY STAFF
Peterborough,http://opendatacommunities.org/id/unitary-authority/peterborough,Peterborough City Council,Children's & Education Services - Children's Social Care,Safeguarding Children and Young People Services,Supplies and Services,03/06/2015 00:00,735312,9660,REVENUE,RJW Associates Ltd,HIRED SERVICES
Peterborough,http://opendatacommunities.org/id/unitary-authority/peterborough,Peterborough City Council,Children's & Education Services - Children's Social Care,Other Children's & Families Services,Employees,03/06/2015 00:00,735314,1680,REVENUE,Medicare First,EXTERNAL TEMPORARY STAFF
Peterborough,http://opendatacommunities.org/id/unitary-authority/peterborough,Peterborough City Council,Children's & Education Services - Children's Social Care,Other Children's & Families Services,Employees,03/06/2015 00:00,735315,1620,REVENUE,Medicare First,EXTERNAL TEMPORARY STAFF
Peterborough,http://opendatacommunities.org/id/unitary-authority/peterborough,Peterborough City Council,Support Services,Support Services,Supplies and Services,03/06/2015 00:00,735460,3360,REVENUE,Beta Print,PRINTING
Peterborough,http://opendatacommunities.org/id/unitary-authority/peterborough,Peterborough City Council,Housing Services,Private Sector Housing Renewal,Supplies and Services,03/06/2015 00:00,735463,1324.95,REVENUE,Nightingale Services,CONTRACTORS
Peterborough,http://opendatacommunities.org/id/unitary-authority/peterborough,Peterborough City Council,Children's & Education Services - Education,Support Services & Management Costs,Supplies and Services,03/06/2015 00:00,735476,1881,REVENUE,The ADCS Ltd,SUBSCRIPTIONS
Peterborough,http://opendatacommunities.org/id/unitary-authority/peterborough,Peterborough City Council,Children's & Education Services - Education,Other Education and Community Budget,Supplies and Services,03/06/2015 00:00,735479,3000,REVENUE,Morgan Mr Stephen,LEGAL COSTS
Peterborough,http://opendatacommunities.org/id/unitary-authority/peterborough,Peterborough City Council,Support Services,Support Services,Supplies and Services,03/06/2015 00:00,735488,702,REVENUE,Cambridgeshire Chamber of Commerce,SUBSCRIPTIONS
Peterborough,http://opendatacommunities.org/id/unitary-authority/peterborough,Peterborough City Council,Deficit/(Surplus) on Trading Undertakings,Trading Account Surpluses & Deficits,Supplies and Services,03/06/2015 00:00,735491,3600,REVENUE,Applegate Marketplace Ltd,ADVERTISING
Peterborough,http://opendatacommunities.org/id/unitary-authority/peterborough,Peterborough City Council,More than one Service Area Category,More than one Service Division,More than one Expenses Type,03/06/2015 00:00,735500,1199.09,"Mixture of Capital, Revenue and/or Balance Sheet",Collectica Ltd,DEBT COLLECTION
Peterborough,http://opendatacommunities.org/id/unitary-authority/peterborough,Peterborough City Council,More than one Service Area Category,More than one Service Division,Supplies and Services,03/06/2015 00:00,735582,555.74,REVENUE,O2 (UK) Ltd,MOBILE TELEPHONES
Peterborough,http://opendatacommunities.org/id/unitary-authority/peterborough,Peterborough City Council,Highways and Transport Services,Traffic management & Road Safety,Supplies and Services,03/06/2015 00:00,735588,625.25,REVENUE,Johnston Press Midlands Division,ADVERTISING
Peterborough,http://opendatacommunities.org/id/unitary-authority/peterborough,Peterborough City Council,Children's & Education Services - Children's Social Care,Sure Start Children's Centres / Flying Start and Early Years,Employees,03/06/2015 00:00,735592,3570,REVENUE,TalkboostUK,TRAINING
Peterborough,http://opendatacommunities.org/id/unitary-authority/peterborough,Peterborough City Council,Children's & Education Services - Children's Social Care,Children Looked After,Supplies and Services - Transfer Payments,03/06/2015 00:00,736028,524.5,REVENUE,Millwill Furnishers,LEAVING CARE GRANTS
Peterborough,http://opendatacommunities.org/id/unitary-authority/peterborough,Peterborough City Council,Cultural and Related Services,Recreation & Sport,Supplies and Services,03/06/2015 00:00,736030,720,REVENUE,RMIS Ltd,ADMINISTRATION EXPENSES
Peterborough,http://opendatacommunities.org/id/unitary-authority/peterborough,Peterborough City Council,Children's & Education Services - Children's Social Care,Services to Young People,Supplies and Services,03/06/2015 00:00,736032,6276,REVENUE,BDP Social Care Ltd,PURCHASED SOCIAL CARE SERVICES
Peterborough,http://opendatacommunities.org/id/unitary-authority/peterborough,Peterborough City Council,Children's & Education Services - Children's Social Care,Services to Young People,Supplies and Services,03/06/2015 00:00,736033,576,REVENUE,BDP Social Care Ltd,PURCHASED SOCIAL CARE SERVICES
Peterborough,http://opendatacommunities.org/id/unitary-authority/peterborough,Peterborough City Council,Children's & Education Services - Children's Social Care,Services to Young People,Supplies and Services,03/06/2015 00:00,736034,2628,REVENUE,BDP Social Care Ltd,PURCHASED SOCIAL CARE SERVICES
Peterborough,http://opendatacommunities.org/id/unitary-authority/peterborough,Peterborough City Council,Children's & Education Services - Children's Social Care,Services to Young People,Supplies and Services,03/06/2015 00:00,736035,812.4,REVENUE,BDP Social Care Ltd,PURCHASED SOCIAL CARE SERVICES
Peterborough,http://opendatacommunities.org/id/unitary-authority/peterborough,Peterborough City Council,Children's & Education Services - Children's Social Care,Services to Young People,Supplies and Services,03/06/2015 00:00,736036,960,REVENUE,BDP Social Care Ltd,PURCHASED SOCIAL CARE SERVICES
Peterborough,http://opendatacommunities.org/id/unitary-authority/peterborough,Peterborough City Council,Adult Social Care,Adult Learning Disabilities,Supplies and Services,03/06/2015 00:00,736379,5585.04,REVENUE,Redacted Personal Data,ADULT SOCIAL CARE DIRECT PAYMENT
Peterborough,http://opendatacommunities.org/id/unitary-authority/peterborough,Peterborough City Council,Children's & Education Services - Children's Social Care,Family Support Services,Supplies and Services,03/06/2015 00:00,736577,935.06,REVENUE,Action on Hearing Loss,EQUIPMENT PURCHASE
Peterborough,http://opendatacommunities.org/id/unitary-authority/peterborough,Peterborough City Council,Deficit/(Surplus) on Trading Undertakings,Trading Account Surpluses & Deficits,Premises,03/06/2015 00:00,736578,42000,REVENUE,Tesam Distribution Ltd,ELECTRICITY
Peterborough,http://opendatacommunities.org/id/unitary-authority/peterborough,Peterborough City Council,Capital,Capital,Capital Pending Update to BS,03/06/2015 00:00,736584,3369.6,CAPITAL,Brand Energy and Infrastructure Services UK Ltd,BUILDING AND SITE WORKS
Peterborough,http://opendatacommunities.org/id/unitary-authority/peterborough,Peterborough City Council,Children's & Education Services - Children's Social Care,Children Looked After,Supplies and Services - Transfer Payments,03/06/2015 00:00,736586,852.3,REVENUE,Axiom Housing Association,BOARDING OUT ALLOWANCES
Peterborough,http://opendatacommunities.org/id/unitary-authority/peterborough,Peterborough City Council,Highways and Transport Services,Street Lighting,Supplies and Services,03/06/2015 00:00,736588,846,REVENUE,Western Power Distribution,CONTRACTORS
Peterborough,http://opendatacommunities.org/id/unitary-authority/peterborough,Peterborough City Council,Central Services to the Public,Elections,Supplies and Services,03/06/2015 00:00,736596,678,REVENUE,Whittlesey Catering Hire,FURNITURE AND EQUIPMENT PURCHASE
Peterborough,http://opendatacommunities.org/id/unitary-authority/peterborough,Peterborough City Council,Central Services to the Public,Elections,Premises,03/06/2015 00:00,736608,3174,REVENUE,Portakabin Ltd,HIRE OF PREMISES
Peterborough,http://opendatacommunities.org/id/unitary-authority/peterborough,Peterborough City Council,Environmental and Regulatory Services,"Cemetery, Crematorium & Mortuary Services",Supplies and Services,03/06/2015 00:00,736620,1459.74,REVENUE,Anglia Co-operative Funerals,CONTRACT FUNERALS
Peterborough,http://opendatacommunities.org/id/unitary-authority/peterborough,Peterborough City Council,Capital,Capital,Capital Pending Update to BS,03/06/2015 00:00,736714,2569.19,CAPITAL,Redacted Personal Data,GRANT PAYMENT
Peterborough,http://opendatacommunities.org/id/unitary-authority/peterborough,Peterborough City Council,More than one Service Area Category,More than one Service Division,Supplies and Services,03/06/2015 00:00,736766,1478.02,REVENUE,Whistl London Ltd,POSTAGE
Peterborough,http://opendatacommunities.org/id/unitary-authority/peterborough,Peterborough City Council,Adult Social Care,Older People,Supplies and Services,03/06/2015 00:00,736793,1062.88,REVENUE,Fins Care Ltd t/a St Margarets Rest Home,RESIDENTIAL CARE
Peterborough,http://opendatacommunities.org/id/unitary-authority/peterborough,Peterborough City Council,Adult Social Care,Older People,Supplies and Services,03/06/2015 00:00,736803,1341.48,REVENUE,Fins Care Ltd t/a St Margarets Rest Home,RESIDENTIAL CARE
Peterborough,http://opendatacommunities.org/id/unitary-authority/peterborough,Peterborough City Council,Adult Social Care,Older People,Supplies and Services,03/06/2015 00:00,736804,925.12,REVENUE,Fins Care Ltd t/a St Margarets Rest Home,RESIDENTIAL CARE
Peterborough,http://opendatacommunities.org/id/unitary-authority/peterborough,Peterborough City Council,Adult Social Care,Older People,Supplies and Services,03/06/2015 00:00,736808,1253.2,REVENUE,Fins Care Ltd t/a St Margarets Rest Home,RESIDENTIAL CARE
Peterborough,http://opendatacommunities.org/id/unitary-authority/peterborough,Peterborough City Council,Adult Social Care,Older People,Supplies and Services,03/06/2015 00:00,736816,1071.04,REVENUE,Fins Care Ltd t/a St Margarets Rest Home,RESIDENTIAL CARE
Peterborough,http://opendatacommunities.org/id/unitary-authority/peterborough,Peterborough City Council,Adult Social Care,Older People,Supplies and Services,03/06/2015 00:00,737265,972.16,REVENUE,Fins Care Ltd t/a St Margarets Rest Home,RESIDENTIAL CARE
Peterborough,http://opendatacommunities.org/id/unitary-authority/peterborough,Peterborough City Council,Adult Social Care,Older People,Supplies and Services,03/06/2015 00:00,737267,1821.96,REVENUE,Fins Care Ltd t/a St Margarets Rest Home,RESIDENTIAL CARE
Peterborough,http://opendatacommunities.org/id/unitary-authority/peterborough,Peterborough City Council,Children's & Education Services - Education,Secondary,Employees,03/06/2015 00:00,737286,2694,REVENUE,Vision for Education Ltd,SUPPLY TEACHERS
Peterborough,http://opendatacommunities.org/id/unitary-authority/peterborough,Peterborough City Council,Adult Social Care,Older People,Supplies and Services,03/06/2015 00:00,737390,2016.2,REVENUE,BUPA Care Homes,RESIDENTIAL CARE
Peterborough,http://opendatacommunities.org/id/unitary-authority/peterborough,Peterborough City Council,Adult Social Care,Adult Learning Disabilities,Supplies and Services,03/06/2015 00:00,737393,830,REVENUE,Mencap,DAY CARE
Peterborough,http://opendatacommunities.org/id/unitary-authority/peterborough,Peterborough City Council,Adult Social Care,Older People,Supplies and Services,03/06/2015 00:00,737398,2213.12,REVENUE,BUPA Care Homes,RESIDENTIAL CARE
Peterborough,http://opendatacommunities.org/id/unitary-authority/peterborough,Peterborough City Council,Adult Social Care,Older People,Supplies and Services,03/06/2015 00:00,737400,1272.04,REVENUE,BUPA Care Homes,RESIDENTIAL CARE
Peterborough,http://opendatacommunities.org/id/unitary-authority/peterborough,Peterborough City Council,Adult Social Care,Adult Learning Disabilities,Supplies and Services,03/06/2015 00:00,737401,4266.4,REVENUE,Mencap,RESIDENTIAL CARE
Peterborough,http://opendatacommunities.org/id/unitary-authority/peterborough,Peterborough City Council,Adult Social Care,Adult Learning Disabilities,Supplies and Services,03/06/2015 00:00,737403,4266.4,REVENUE,Mencap,RESIDENTIAL CARE
Peterborough,http://opendatacommunities.org/id/unitary-authority/peterborough,Peterborough City Council,Adult Social Care,Older People,Supplies and Services,03/06/2015 00:00,737405,2512,REVENUE,BUPA Care Homes,RESIDENTIAL CARE
Peterborough,http://opendatacommunities.org/id/unitary-authority/peterborough,Peterborough City Council,Adult Social Care,Older People,Supplies and Services,03/06/2015 00:00,737407,1628.2,REVENUE,BUPA Care Homes,RESIDENTIAL CARE
Peterborough,http://opendatacommunities.org/id/unitary-authority/peterborough,Peterborough City Council,Children's & Education Services - Children's Social Care,Other Children's & Families Services,Supplies and Services,03/06/2015 00:00,737455,1189.85,REVENUE,Redacted Personal Data,PROFESSIONAL SERVICES
Peterborough,http://opendatacommunities.org/id/unitary-authority/peterborough,Peterborough City Council,Children's & Education Services - Children's Social Care,Family Support Services,Supplies and Services,03/06/2015 00:00,737494,598.04,REVENUE,Allied Healthcare (UK) Ltd,PURCHASED SOCIAL CARE SERVICES
Peterborough,http://opendatacommunities.org/id/unitary-authority/peterborough,Peterborough City Council,Deficit/(Surplus) on Trading Undertakings,Trading Account Surpluses & Deficits,Premises,03/06/2015 00:00,737524,1434.73,REVENUE,Tesam Distribution Ltd,PREMISES REPAIRS
Peterborough,http://opendatacommunities.org/id/unitary-authority/peterborough,Peterborough City Council,Children's & Education Services - Children's Social Care,Family Support Services,Supplies and Services,03/06/2015 00:00,737537,4361.93,REVENUE,Allied Healthcare (UK) Ltd,PURCHASED SOCIAL CARE SERVICES
Peterborough,http://opendatacommunities.org/id/unitary-authority/peterborough,Peterborough City Council,Support Services,Support Services,Supplies and Services,03/06/2015 00:00,737538,792,REVENUE,Beta Print,PRINTING
Peterborough,http://opendatacommunities.org/id/unitary-authority/peterborough,Peterborough City Council,Court Services,Coroner's Court Service,Supplies and Services,03/06/2015 00:00,737802,500,REVENUE,Imperial College Consultants Ltd,SCIENTIFIC TESTING
Peterborough,http://opendatacommunities.org/id/unitary-authority/peterborough,Peterborough City Council,Adult Social Care,Assistive Equipment and Technology,Supplies and Services,03/06/2015 00:00,737875,76646.35,REVENUE,NRS Healthcare,OCCUPATIONAL THERAPY EQUIPMENT
Peterborough,http://opendatacommunities.org/id/unitary-authority/peterborough,Peterborough City Council,Children's & Education Services - Children's Social Care,Other Children's & Families Services,Supplies and Services,03/06/2015 00:00,737973,761.48,REVENUE,Redacted Personal Data,ADOPTION
Peterborough,http://opendatacommunities.org/id/unitary-authority/peterborough,Peterborough City Council,Planning Services,Development Control,Supplies and Services,03/06/2015 00:00,738109,528,REVENUE,Johnston Press Midlands Division,ADVERTISING
Peterborough,http://opendatacommunities.org/id/unitary-authority/peterborough,Peterborough City Council,Children's & Education Services - Children's Social Care,Other Children's & Families Services,Employees,03/06/2015 00:00,738121,2144.52,REVENUE,Sanctuary Personnel Ltd,EXTERNAL TEMPORARY STAFF
Peterborough,http://opendatacommunities.org/id/unitary-authority/peterborough,Peterborough City Council,Planning Services,Economic Development,Third Party Payments,03/06/2015 00:00,738122,1267.2,REVENUE,Enterprise Managed Services Limited,RECYCLING
Peterborough,http://opendatacommunities.org/id/unitary-authority/peterborough,Peterborough City Council,Children's & Education Services - Children's Social Care,Other Children's & Families Services,Employees,03/06/2015 00:00,738126,2144.52,REVENUE,Sanctuary Personnel Ltd,EXTERNAL TEMPORARY STAFF
Peterborough,http://opendatacommunities.org/id/unitary-authority/peterborough,Peterborough City Council,Children's & Education Services - Children's Social Care,Other Children's & Families Services,Employees,03/06/2015 00:00,738128,1800,REVENUE,Sanctuary Personnel Ltd,EXTERNAL TEMPORARY STAFF
Peterborough,http://opendatacommunities.org/id/unitary-authority/peterborough,Peterborough City Council,Children's & Education Services - Children's Social Care,Other Children's & Families Services,Employees,03/06/2015 00:00,738132,1800,REVENUE,Sanctuary Personnel Ltd,EXTERNAL TEMPORARY STAFF
Peterborough,http://opendatacommunities.org/id/unitary-authority/peterborough,Peterborough City Council,Children's & Education Services - Children's Social Care,Other Children's & Families Services,Employees,03/06/2015 00:00,738135,2144.52,REVENUE,Sanctuary Personnel Ltd,EXTERNAL TEMPORARY STAFF
Peterborough,http://opendatacommunities.org/id/unitary-authority/peterborough,Peterborough City Council,Children's & Education Services - Children's Social Care,Other Children's & Families Services,Employees,03/06/2015 00:00,738137,2144.52,REVENUE,Sanctuary Personnel Ltd,EXTERNAL TEMPORARY STAFF
Peterborough,http://opendatacommunities.org/id/unitary-authority/peterborough,Peterborough City Council,Children's & Education Services - Children's Social Care,Other Children's & Families Services,Employees,03/06/2015 00:00,738138,2097.9,REVENUE,Sanctuary Personnel Ltd,EXTERNAL TEMPORARY STAFF
Peterborough,http://opendatacommunities.org/id/unitary-authority/peterborough,Peterborough City Council,Children's & Education Services - Children's Social Care,Other Children's & Families Services,Employees,03/06/2015 00:00,738140,1435.2,REVENUE,Sanctuary Personnel Ltd,EXTERNAL TEMPORARY STAFF
Peterborough,http://opendatacommunities.org/id/unitary-authority/peterborough,Peterborough City Council,Children's & Education Services - Children's Social Care,Other Children's & Families Services,Employees,03/06/2015 00:00,738144,1800,REVENUE,Sanctuary Personnel Ltd,EXTERNAL TEMPORARY STAFF
Peterborough,http://opendatacommunities.org/id/unitary-authority/peterborough,Peterborough City Council,Children's & Education Services - Children's Social Care,Other Children's & Families Services,Employees,03/06/2015 00:00,738146,852.48,REVENUE,Service Care Solutions Ltd,EXTERNAL TEMPORARY STAFF
Peterborough,http://opendatacommunities.org/id/unitary-authority/peterborough,Peterborough City Council,Children's & Education Services - Children's Social Care,Children Looked After,Employees,03/06/2015 00:00,738150,805.63,REVENUE,Service Care Solutions Ltd,EXTERNAL TEMPORARY STAFF
Peterborough,http://opendatacommunities.org/id/unitary-authority/peterborough,Peterborough City Council,Children's & Education Services - Children's Social Care,Other Children's & Families Services,Employees,03/06/2015 00:00,738156,1172.16,REVENUE,Service Care Solutions Ltd,EXTERNAL TEMPORARY STAFF
Peterborough,http://opendatacommunities.org/id/unitary-authority/peterborough,Peterborough City Council,Children's & Education Services - Children's Social Care,Other Children's & Families Services,Employees,03/06/2015 00:00,738158,1953.6,REVENUE,Service Care Solutions Ltd,EXTERNAL TEMPORARY STAFF
Peterborough,http://opendatacommunities.org/id/unitary-authority/peterborough,Peterborough City Council,Adult Social Care,Older People,Supplies and Services,03/06/2015 00:00,738206,2354,REVENUE,CARE IN THE COMMUNITY LIMITED,RESIDENTIAL CARE
Peterborough,http://opendatacommunities.org/id/unitary-authority/peterborough,Peterborough City Council,Children's & Education Services - Children's Social Care,Other Children's & Families Services,Employees,03/06/2015 00:00,738229,2144.52,REVENUE,Sanctuary Personnel Ltd,EXTERNAL TEMPORARY STAFF
Peterborough,http://opendatacommunities.org/id/unitary-authority/peterborough,Peterborough City Council,Children's & Education Services - Children's Social Care,Other Children's & Families Services,Employees,03/06/2015 00:00,738230,2127.54,REVENUE,Sanctuary Personnel Ltd,EXTERNAL TEMPORARY STAFF
Peterborough,http://opendatacommunities.org/id/unitary-authority/peterborough,Peterborough City Council,Adult Social Care,Older People,Supplies and Services,03/06/2015 00:00,738235,788.12,REVENUE,OAKHOUSE HOMECARE LTD,RESIDENTIAL CARE
Peterborough,http://opendatacommunities.org/id/unitary-authority/peterborough,Peterborough City Council,Children's & Education Services - Children's Social Care,Children Looked After,Supplies and Services - Transfer Payments,03/06/2015 00:00,738255,3060.95,REVENUE,Transition Care Peterborough Ltd,BOARDING OUT ALLOWANCES
Peterborough,http://opendatacommunities.org/id/unitary-authority/peterborough,Peterborough City Council,Children's & Education Services - Children's Social Care,Children Looked After,Supplies and Services - Transfer Payments,03/06/2015 00:00,738262,2878.55,REVENUE,Transition Care Peterborough Ltd,BOARDING OUT ALLOWANCES
Peterborough,http://opendatacommunities.org/id/unitary-authority/peterborough,Peterborough City Council,Support Services,Support Services,Premises,03/06/2015 00:00,738276,1878.97,REVENUE,Beebys Ltd,CLEANING
Peterborough,http://opendatacommunities.org/id/unitary-authority/peterborough,Peterborough City Council,Planning Services,Community Development,Third Party Payments,03/06/2015 00:00,738308,6500,REVENUE,Peterborough Womens Aid,THIRD PARTY PAYMENTS - CONTRACT
Peterborough,http://opendatacommunities.org/id/unitary-authority/peterborough,Peterborough City Council,Planning Services,Community Development,Third Party Payments,03/06/2015 00:00,738887,45650.5,REVENUE,Peterborough Womens Aid,THIRD PARTY PAYMENTS - CONTRACT
Peterborough,http://opendatacommunities.org/id/unitary-authority/peterborough,Peterborough City Council,Adult Social Care,Social Care Activities,Employees,03/06/2015 00:00,738888,924,REVENUE,Caritas Recruitment,EXTERNAL TEMPORARY STAFF
Peterborough,http://opendatacommunities.org/id/unitary-authority/peterborough,Peterborough City Council,Adult Social Care,Social Care Activities,Employees,03/06/2015 00:00,738892,1728.9,REVENUE,Caritas Recruitment,EXTERNAL TEMPORARY STAFF
Peterborough,http://opendatacommunities.org/id/unitary-authority/peterborough,Peterborough City Council,Adult Social Care,Social Care Activities,Employees,03/06/2015 00:00,738897,4488.72,REVENUE,Caritas Recruitment,EXTERNAL TEMPORARY STAFF
Peterborough,http://opendatacommunities.org/id/unitary-authority/peterborough,Peterborough City Council,Non Distributed Cost,Pensions,Third Party Payments,03/06/2015 00:00,738927,680940.92,REVENUE,Cambridgeshire County Council,PENSIONS
Peterborough,http://opendatacommunities.org/id/unitary-authority/peterborough,Peterborough City Council,Adult Social Care,Older People,Supplies and Services,03/06/2015 00:00,738979,2701.76,REVENUE,BUPA Care Homes,RESIDENTIAL CARE
Peterborough,http://opendatacommunities.org/id/unitary-authority/peterborough,Peterborough City Council,Adult Social Care,Older People,Supplies and Services,03/06/2015 00:00,739141,1053.68,REVENUE,Carers Trust Cambridgeshire,HOME CARE
Peterborough,http://opendatacommunities.org/id/unitary-authority/peterborough,Peterborough City Council,Adult Social Care,Adult Learning Disabilities,Supplies and Services,03/06/2015 00:00,739153,2919.68,REVENUE,BOULEVARD CARE,RESIDENTIAL CARE
Peterborough,http://opendatacommunities.org/id/unitary-authority/peterborough,Peterborough City Council,Adult Social Care,Social Care Activities,Employees,03/06/2015 00:00,739173,1554,REVENUE,Caritas Recruitment,EXTERNAL TEMPORARY STAFF
Peterborough,http://opendatacommunities.org/id/unitary-authority/peterborough,Peterborough City Council,Adult Social Care,Social Care Activities,Employees,03/06/2015 00:00,739175,1344,REVENUE,Caritas Recruitment,EXTERNAL TEMPORARY STAFF
Peterborough,http://opendatacommunities.org/id/unitary-authority/peterborough,Peterborough City Council,Adult Social Care,Social Care Activities,Employees,03/06/2015 00:00,739176,1386,REVENUE,Caritas Recruitment,EXTERNAL TEMPORARY STAFF
Peterborough,http://opendatacommunities.org/id/unitary-authority/peterborough,Peterborough City Council,Adult Social Care,Social Care Activities,Employees,03/06/2015 00:00,739181,1601.52,REVENUE,Caritas Recruitment,EXTERNAL TEMPORARY STAFF
Peterborough,http://opendatacommunities.org/id/unitary-authority/peterborough,Peterborough City Council,Children's & Education Services - Children's Social Care,Other Children's & Families Services,Employees,03/06/2015 00:00,739185,1998,REVENUE,Sanctuary Personnel Ltd,EXTERNAL TEMPORARY STAFF
Peterborough,http://opendatacommunities.org/id/unitary-authority/peterborough,Peterborough City Council,Children's & Education Services - Children's Social Care,Other Children's & Families Services,Employees,03/06/2015 00:00,739186,1909.2,REVENUE,Sanctuary Personnel Ltd,EXTERNAL TEMPORARY STAFF
Peterborough,http://opendatacommunities.org/id/unitary-authority/peterborough,Peterborough City Council,Children's & Education Services - Children's Social Care,Other Children's & Families Services,Employees,03/06/2015 00:00,739202,1998,REVENUE,Sanctuary Personnel Ltd,EXTERNAL TEMPORARY STAFF
Peterborough,http://opendatacommunities.org/id/unitary-authority/peterborough,Peterborough City Council,Children's & Education Services - Children's Social Care,Other Children's & Families Services,Supplies and Services - Transfer Payments,03/06/2015 00:00,739227,1583.56,REVENUE,PC Homes,BOARDING OUT ALLOWANCES
Peterborough,http://opendatacommunities.org/id/unitary-authority/peterborough,Peterborough City Council,Capital,Capital,Capital Pending Update to BS,03/06/2015 00:00,739302,147537,CAPITAL,Kier Eastern,BUILDING AND SITE WORKS
Peterborough,http://opendatacommunities.org/id/unitary-authority/peterborough,Peterborough City Council,Capital,Capital,Capital Pending Update to BS,03/06/2015 00:00,739363,433791.6,CAPITAL,Carillion Building,BUILDING AND SITE WORKS
Peterborough,http://opendatacommunities.org/id/unitary-authority/peterborough,Peterborough City Council,Support Services,Support Services,Employees,03/06/2015 00:00,739365,564.84,REVENUE,Reed Specialist Recruitment,EXTERNAL TEMPORARY STAFF
Peterborough,http://opendatacommunities.org/id/unitary-authority/peterborough,Peterborough City Council,Children's & Education Services - Children's Social Care,Safeguarding Children and Young People Services,Employees,03/06/2015 00:00,739368,505.08,REVENUE,Reed Personnel Services Plc,EXTERNAL TEMPORARY STAFF
Peterborough,http://opendatacommunities.org/id/unitary-authority/peterborough,Peterborough City Council,Capital,Capital,Capital Pending Update to BS,03/06/2015 00:00,739369,661.32,CAPITAL,Reed Specialist Recruitment,EXTERNAL TEMPORARY STAFF
Peterborough,http://opendatacommunities.org/id/unitary-authority/peterborough,Peterborough City Council,Support Services,Support Services,Employees,03/06/2015 00:00,739371,536.6,REVENUE,Reed Specialist Recruitment,EXTERNAL TEMPORARY STAFF
Peterborough,http://opendatacommunities.org/id/unitary-authority/peterborough,Peterborough City Council,Capital,Capital,Capital Pending Update to BS,03/06/2015 00:00,739378,583.67,CAPITAL,Reed Specialist Recruitment,EXTERNAL TEMPORARY STAFF
Peterborough,http://opendatacommunities.org/id/unitary-authority/peterborough,Peterborough City Council,Children's & Education Services - Children's Social Care,Other Children's & Families Services,Employees,03/06/2015 00:00,739392,2144.52,REVENUE,Sanctuary Personnel Ltd,EXTERNAL TEMPORARY STAFF
Peterborough,http://opendatacommunities.org/id/unitary-authority/peterborough,Peterborough City Council,Children's & Education Services - Children's Social Care,Other Children's & Families Services,Employees,03/06/2015 00:00,739394,1715.62,REVENUE,Sanctuary Personnel Ltd,EXTERNAL TEMPORARY STAFF
Peterborough,http://opendatacommunities.org/id/unitary-authority/peterborough,Peterborough City Council,Children's & Education Services - Children's Social Care,Other Children's & Families Services,Employees,03/06/2015 00:00,739400,1687.2,REVENUE,Sanctuary Personnel Ltd,EXTERNAL TEMPORARY STAFF
Peterborough,http://opendatacommunities.org/id/unitary-authority/peterborough,Peterborough City Council,Children's & Education Services - Children's Social Care,Other Children's & Families Services,Employees,03/06/2015 00:00,739402,1527.36,REVENUE,Sanctuary Personnel Ltd,EXTERNAL TEMPORARY STAFF
Peterborough,http://opendatacommunities.org/id/unitary-authority/peterborough,Peterborough City Council,Children's & Education Services - Children's Social Care,Other Children's & Families Services,Employees,03/06/2015 00:00,739403,1715.62,REVENUE,Sanctuary Personnel Ltd,EXTERNAL TEMPORARY STAFF
Peterborough,http://opendatacommunities.org/id/unitary-authority/peterborough,Peterborough City Council,Children's & Education Services - Children's Social Care,Other Children's & Families Services,Employees,03/06/2015 00:00,739405,1440,REVENUE,Sanctuary Personnel Ltd,EXTERNAL TEMPORARY STAFF
Peterborough,http://opendatacommunities.org/id/unitary-authority/peterborough,Peterborough City Council,Children's & Education Services - Children's Social Care,Other Children's & Families Services,Employees,03/06/2015 00:00,739406,1674.24,REVENUE,Sanctuary Personnel Ltd,EXTERNAL TEMPORARY STAFF
Peterborough,http://opendatacommunities.org/id/unitary-authority/peterborough,Peterborough City Council,Children's & Education Services - Children's Social Care,Other Children's & Families Services,Employees,03/06/2015 00:00,739409,1715.62,REVENUE,Sanctuary Personnel Ltd,EXTERNAL TEMPORARY STAFF
Peterborough,http://opendatacommunities.org/id/unitary-authority/peterborough,Peterborough City Council,Children's & Education Services - Children's Social Care,Other Children's & Families Services,Employees,03/06/2015 00:00,739410,1715.62,REVENUE,Sanctuary Personnel Ltd,EXTERNAL TEMPORARY STAFF
Peterborough,http://opendatacommunities.org/id/unitary-authority/peterborough,Peterborough City Council,Adult Social Care,Split,Third Party Payments,03/06/2015 00:00,739520,60548.12,REVENUE,HEREWARD CARE SERVICES LIMITED,THIRD PARTY PAYMENTS - CONTRACT
Peterborough,http://opendatacommunities.org/id/unitary-authority/peterborough,Peterborough City Council,Highways and Transport Services,Street Lighting,Supplies and Services,03/06/2015 00:00,739550,1034.39,REVENUE,Western Power Distribution,CONTRACTORS
Peterborough,http://opendatacommunities.org/id/unitary-authority/peterborough,Peterborough City Council,Children's & Education Services - Children's Social Care,Children Looked After,Transport,03/06/2015 00:00,739905,950.11,REVENUE,Goldstar Cabs Ltd,HIRED TRANSPORT
Peterborough,http://opendatacommunities.org/id/unitary-authority/peterborough,Peterborough City Council,Housing Services,Homelessness,Supplies and Services,03/06/2015 00:00,739972,579.6,REVENUE,Eastfield Guesthouse,HOMELESSNESS BED AND BREAKFAST
Peterborough,http://opendatacommunities.org/id/unitary-authority/peterborough,Peterborough City Council,Capital,Capital,Capital Pending Update to BS,03/06/2015 00:00,740014,111585.02,CAPITAL,McFletch Ltd,BUILDING AND SITE WORKS
Peterborough,http://opendatacommunities.org/id/unitary-authority/peterborough,Peterborough City Council,More than one Service Area Category,More than one Service Division,Balance Sheet,03/06/2015 00:00,740105,4000,Balance Sheet,Redacted Personal Data,INSURANCE CLAIMS
Peterborough,http://opendatacommunities.org/id/unitary-authority/peterborough,Peterborough City Council,More than one Service Area Category,More than one Service Division,Balance Sheet,03/06/2015 00:00,740141,8223,Balance Sheet,Graysons Solicitors,INSURANCE CLAIMS
Peterborough,http://opendatacommunities.org/id/unitary-authority/peterborough,Peterborough City Council,Adult Social Care,Social Care Activities,Employees,03/06/2015 00:00,740143,1323,REVENUE,Randstad Care Ltd,EXTERNAL TEMPORARY STAFF
Peterborough,http://opendatacommunities.org/id/unitary-authority/peterborough,Peterborough City Council,Adult Social Care,Older People,Supplies and Services,03/06/2015 00:00,740166,2084,REVENUE,OAKHOUSE HOMECARE LTD,RESIDENTIAL CARE
Peterborough,http://opendatacommunities.org/id/unitary-authority/peterborough,Peterborough City Council,Adult Social Care,Adult Mental Health,Supplies and Services,03/06/2015 00:00,740190,2015,REVENUE,Klair House Residential Care Homes,PROFESSIONAL SERVICES
Peterborough,http://opendatacommunities.org/id/unitary-authority/peterborough,Peterborough City Council,Adult Social Care,Information and Early Intervention,Third Party Payments,03/06/2015 00:00,740217,5000,REVENUE,Buckles Solicitors LLP,MISCELLANEOUS
Peterborough,http://opendatacommunities.org/id/unitary-authority/peterborough,Peterborough City Council,More than one Service Area Category,More than one Service Division,Third Party Payments,03/06/2015 00:00,740271,682,REVENUE,Redacted Personal Data,GRANT-THIRD PARTY
Peterborough,http://opendatacommunities.org/id/unitary-authority/peterborough,Peterborough City Council,Environmental and Regulatory Services,Regulatory services,Supplies and Services,03/06/2015 00:00,740273,663,REVENUE,Unity Automotive Peterborough Ltd,HACKNEY CARRIAGE INSPECTION
Peterborough,http://opendatacommunities.org/id/unitary-authority/peterborough,Peterborough City Council,Environmental and Regulatory Services,Regulatory services,Supplies and Services,03/06/2015 00:00,740274,624,REVENUE,Unity Automotive Peterborough Ltd,HACKNEY CARRIAGE INSPECTION
Peterborough,http://opendatacommunities.org/id/unitary-authority/peterborough,Peterborough City Council,Environmental and Regulatory Services,Waste Collection,Supplies and Services,03/06/2015 00:00,740420,510980.98,REVENUE,Enterprise Managed Services Limited,THIRD PARTY PAYMENTS - CONTRACT
Peterborough,http://opendatacommunities.org/id/unitary-authority/peterborough,Peterborough City Council,Children's & Education Services - Children's Social Care,Children Looked After,Supplies and Services,03/06/2015 00:00,740477,1112,REVENUE,Redacted Personal Data,HIRED SERVICES
Peterborough,http://opendatacommunities.org/id/unitary-authority/peterborough,Peterborough City Council,Housing Services,Homelessness,Supplies and Services,03/06/2015 00:00,740500,870,REVENUE,Dunham Property Agents,FINANCIAL ASSISTANCE
Peterborough,http://opendatacommunities.org/id/unitary-authority/peterborough,Peterborough City Council,Housing Services,Homelessness,Supplies and Services,03/06/2015 00:00,740503,1100,REVENUE,Dunham Property Agents,FINANCIAL ASSISTANCE
Peterborough,http://opendatacommunities.org/id/unitary-authority/peterborough,Peterborough City Council,Housing Services,Homelessness,Supplies and Services,03/06/2015 00:00,740504,1600,REVENUE,Rooms 4 U,FINANCIAL ASSISTANCE
Peterborough,http://opendatacommunities.org/id/unitary-authority/peterborough,Peterborough City Council,Housing Services,Homelessness,Supplies and Services,03/06/2015 00:00,740505,1290,REVENUE,Woodcock Holmes,FINANCIAL ASSISTANCE
Peterborough,http://opendatacommunities.org/id/unitary-authority/peterborough,Peterborough City Council,Adult Social Care,Older People,Supplies and Services,03/06/2015 00:00,740564,623.62,REVENUE,Augusta Care Ltd,HOME CARE
Peterborough,http://opendatacommunities.org/id/unitary-authority/peterborough,Peterborough City Council,Adult Social Care,Older People,Supplies and Services,03/06/2015 00:00,740597,511.77,REVENUE,Sagecare,HOME CARE
Peterborough,http://opendatacommunities.org/id/unitary-authority/peterborough,Peterborough City Council,Adult Social Care,Older People,Supplies and Services,03/06/2015 00:00,740617,1884.12,REVENUE,Sagecare,HOME CARE
Peterborough,http://opendatacommunities.org/id/unitary-authority/peterborough,Peterborough City Council,Adult Social Care,Older People,Supplies and Services,03/06/2015 00:00,740619,1027.68,REVENUE,Sagecare,HOME CARE
Peterborough,http://opendatacommunities.org/id/unitary-authority/peterborough,Peterborough City Council,Adult Social Care,Older People,Supplies and Services,03/06/2015 00:00,740625,581.28,REVENUE,Sagecare,HOME CARE
Peterborough,http://opendatacommunities.org/id/unitary-authority/peterborough,Peterborough City Council,Adult Social Care,Older People,Supplies and Services,03/06/2015 00:00,740626,645.96,REVENUE,Sagecare,HOME CARE
Peterborough,http://opendatacommunities.org/id/unitary-authority/peterborough,Peterborough City Council,Adult Social Care,Older People,Supplies and Services,03/06/2015 00:00,740669,2542.49,REVENUE,COMFORCARE SENIOR SERVICES,HOME CARE
Peterborough,http://opendatacommunities.org/id/unitary-authority/peterborough,Peterborough City Council,Adult Social Care,Older People,Supplies and Services,03/06/2015 00:00,740670,2538.8,REVENUE,COMFORCARE SENIOR SERVICES,HOME CARE
Peterborough,http://opendatacommunities.org/id/unitary-authority/peterborough,Peterborough City Council,Adult Social Care,Older People,Supplies and Services,03/06/2015 00:00,740690,549.34,REVENUE,Cozy Care,HOME CARE
Peterborough,http://opendatacommunities.org/id/unitary-authority/peterborough,Peterborough City Council,Adult Social Care,Older People,Supplies and Services,03/06/2015 00:00,740692,833.8,REVENUE,Cozy Care,HOME CARE
Peterborough,http://opendatacommunities.org/id/unitary-authority/peterborough,Peterborough City Council,Adult Social Care,Older People,Supplies and Services,03/06/2015 00:00,740702,851.4,REVENUE,Cozy Care,HOME CARE
Peterborough,http://opendatacommunities.org/id/unitary-authority/peterborough,Peterborough City Council,Adult Social Care,Adult Physical Disability & Sensory Impairment,Supplies and Services,03/06/2015 00:00,740703,663.08,REVENUE,Cozy Care,HOME CARE
Peterborough,http://opendatacommunities.org/id/unitary-authority/peterborough,Peterborough City Council,Adult Social Care,Older People,Supplies and Services,03/06/2015 00:00,740704,624.58,REVENUE,Cozy Care,HOME CARE
Peterborough,http://opendatacommunities.org/id/unitary-authority/peterborough,Peterborough City Council,Adult Social Care,Older People,Supplies and Services,03/06/2015 00:00,740707,650.1,REVENUE,Cozy Care,HOME CARE
Peterborough,http://opendatacommunities.org/id/unitary-authority/peterborough,Peterborough City Council,Adult Social Care,Older People,Supplies and Services,03/06/2015 00:00,740709,736.56,REVENUE,Cozy Care,HOME CARE
Peterborough,http://opendatacommunities.org/id/unitary-authority/peterborough,Peterborough City Council,Adult Social Care,Older People,Supplies and Services,03/06/2015 00:00,740711,500.28,REVENUE,Cozy Care,HOME CARE
Peterborough,http://opendatacommunities.org/id/unitary-authority/peterborough,Peterborough City Council,Adult Social Care,Older People,Supplies and Services,03/06/2015 00:00,740712,680.02,REVENUE,Cozy Care,HOME CARE
Peterborough,http://opendatacommunities.org/id/unitary-authority/peterborough,Peterborough City Council,Adult Social Care,Older People,Supplies and Services,03/06/2015 00:00,740713,1452,REVENUE,Cozy Care,HOME CARE
Peterborough,http://opendatacommunities.org/id/unitary-authority/peterborough,Peterborough City Council,Adult Social Care,Older People,Supplies and Services,03/06/2015 00:00,740715,567.38,REVENUE,Cozy Care,HOME CARE
Peterborough,http://opendatacommunities.org/id/unitary-authority/peterborough,Peterborough City Council,Adult Social Care,Older People,Supplies and Services,03/06/2015 00:00,740716,561.44,REVENUE,Cozy Care,HOME CARE
Peterborough,http://opendatacommunities.org/id/unitary-authority/peterborough,Peterborough City Council,Adult Social Care,Older People,Supplies and Services,03/06/2015 00:00,740717,1431.76,REVENUE,Cozy Care,HOME CARE
Peterborough,http://opendatacommunities.org/id/unitary-authority/peterborough,Peterborough City Council,Adult Social Care,Older People,Supplies and Services,03/06/2015 00:00,740718,572.22,REVENUE,Cozy Care,HOME CARE
Peterborough,http://opendatacommunities.org/id/unitary-authority/peterborough,Peterborough City Council,Adult Social Care,Older People,Supplies and Services,03/06/2015 00:00,740719,570.24,REVENUE,Cozy Care,HOME CARE
Peterborough,http://opendatacommunities.org/id/unitary-authority/peterborough,Peterborough City Council,Adult Social Care,Older People,Supplies and Services,03/06/2015 00:00,740720,728.64,REVENUE,Cozy Care,HOME CARE
Peterborough,http://opendatacommunities.org/id/unitary-authority/peterborough,Peterborough City Council,Adult Social Care,Older People,Supplies and Services,03/06/2015 00:00,740776,2333.34,REVENUE,Fins Care Ltd t/a St Margarets Rest Home,RESIDENTIAL CARE
Peterborough,http://opendatacommunities.org/id/unitary-authority/peterborough,Peterborough City Council,Children's & Education Services - Education,Other Education and Community Budget,Supplies and Services,03/06/2015 00:00,740784,1260,REVENUE,Families First Ltd,EDUCATION EXPENSES
Peterborough,http://opendatacommunities.org/id/unitary-authority/peterborough,Peterborough City Council,Support Services,Support Services,Supplies and Services,03/06/2015 00:00,740801,802.94,REVENUE,Royal Mail,POSTAGE
Peterborough,http://opendatacommunities.org/id/unitary-authority/peterborough,Peterborough City Council,Adult Social Care,Older People,Supplies and Services,03/06/2015 00:00,740809,3400,REVENUE,LESTER HALL APARTMENTS LTD,RESIDENTIAL CARE
Peterborough,http://opendatacommunities.org/id/unitary-authority/peterborough,Peterborough City Council,Support Services,Support Services,Supplies and Services,03/06/2015 00:00,740822,7631.52,REVENUE,Weightmans LLP,LEGAL COSTS
Peterborough,http://opendatacommunities.org/id/unitary-authority/peterborough,Peterborough City Council,Children's & Education Services - Children's Social Care,Other Children's & Families Services,Employees,03/06/2015 00:00,740845,2109,REVENUE,Sanctuary Personnel Ltd,EXTERNAL TEMPORARY STAFF
Peterborough,http://opendatacommunities.org/id/unitary-authority/peterborough,Peterborough City Council,Children's & Education Services - Children's Social Care,Other Children's & Families Services,Employees,03/06/2015 00:00,740847,2144.52,REVENUE,Sanctuary Personnel Ltd,EXTERNAL TEMPORARY STAFF
Peterborough,http://opendatacommunities.org/id/unitary-authority/peterborough,Peterborough City Council,Children's & Education Services - Children's Social Care,Other Children's & Families Services,Employees,03/06/2015 00:00,740848,1715.62,REVENUE,Sanctuary Personnel Ltd,EXTERNAL TEMPORARY STAFF
Peterborough,http://opendatacommunities.org/id/unitary-authority/peterborough,Peterborough City Council,Children's & Education Services - Children's Social Care,Other Children's & Families Services,Employees,03/06/2015 00:00,740849,2109,REVENUE,Sanctuary Personnel Ltd,EXTERNAL TEMPORARY STAFF
Peterborough,http://opendatacommunities.org/id/unitary-authority/peterborough,Peterborough City Council,Children's & Education Services - Children's Social Care,Other Children's & Families Services,Employees,03/06/2015 00:00,740857,-2092.8,REVENUE,Sanctuary Personnel Ltd,EXTERNAL TEMPORARY STAFF
Peterborough,http://opendatacommunities.org/id/unitary-authority/peterborough,Peterborough City Council,Children's & Education Services - Children's Social Care,Other Children's & Families Services,Employees,03/06/2015 00:00,740863,-2092.8,REVENUE,Sanctuary Personnel Ltd,EXTERNAL TEMPORARY STAFF
Peterborough,http://opendatacommunities.org/id/unitary-authority/peterborough,Peterborough City Council,Children's & Education Services - Children's Social Care,Other Children's & Families Services,Employees,03/06/2015 00:00,740864,-2147.82,REVENUE,Sanctuary Personnel Ltd,EXTERNAL TEMPORARY STAFF
Peterborough,http://opendatacommunities.org/id/unitary-authority/peterborough,Peterborough City Council,Children's & Education Services - Children's Social Care,Other Children's & Families Services,Employees,03/06/2015 00:00,740865,-2092.8,REVENUE,Sanctuary Personnel Ltd,EXTERNAL TEMPORARY STAFF
Peterborough,http://opendatacommunities.org/id/unitary-authority/peterborough,Peterborough City Council,Children's & Education Services - Children's Social Care,Other Children's & Families Services,Employees,03/06/2015 00:00,740866,-2092.8,REVENUE,Sanctuary Personnel Ltd,EXTERNAL TEMPORARY STAFF
Peterborough,http://opendatacommunities.org/id/unitary-authority/peterborough,Peterborough City Council,Children's & Education Services - Children's Social Care,Children Looked After,Transport,03/06/2015 00:00,740867,1579.5,REVENUE,Redacted Personal Data,HIRED TRANSPORT
Peterborough,http://opendatacommunities.org/id/unitary-authority/peterborough,Peterborough City Council,Adult Social Care,Older People,Supplies and Services,03/06/2015 00:00,740871,1366.41,REVENUE,Park House Residential Home,RESIDENTIAL CARE
Peterborough,http://opendatacommunities.org/id/unitary-authority/peterborough,Peterborough City Council,Adult Social Care,Older People,Supplies and Services,03/06/2015 00:00,740872,1064.46,REVENUE,Park House Residential Home,RESIDENTIAL CARE
Peterborough,http://opendatacommunities.org/id/unitary-authority/peterborough,Peterborough City Council,Adult Social Care,Older People,Supplies and Services,03/06/2015 00:00,740873,1521.8,REVENUE,STAR RESIDENTIAL HOME LTD,RESIDENTIAL CARE
Peterborough,http://opendatacommunities.org/id/unitary-authority/peterborough,Peterborough City Council,Adult Social Care,Older People,Supplies and Services,03/06/2015 00:00,740876,2181.6,REVENUE,Southwark Park Nursing Homes - Blenheim Care Centre,RESIDENTIAL CARE
Peterborough,http://opendatacommunities.org/id/unitary-authority/peterborough,Peterborough City Council,Adult Social Care,Adult Mental Health,Supplies and Services,03/06/2015 00:00,740881,5180,REVENUE,Brookdale Care,PROFESSIONAL SERVICES
Peterborough,http://opendatacommunities.org/id/unitary-authority/peterborough,Peterborough City Council,Adult Social Care,Older People,Supplies and Services,03/06/2015 00:00,740884,1388.68,REVENUE,LAVENDER HOUSE RESIDENTIAL HOME,RESIDENTIAL CARE
Peterborough,http://opendatacommunities.org/id/unitary-authority/peterborough,Peterborough City Council,Children's & Education Services - Education,All Schools - apportion across sectors,Supplies and Services,03/06/2015 00:00,740887,600,REVENUE,Alderman Jacobs School,GRANT PAYMENT
Peterborough,http://opendatacommunities.org/id/unitary-authority/peterborough,Peterborough City Council,Adult Social Care,Older People,Supplies and Services,03/06/2015 00:00,740888,1389.08,REVENUE,LAVENDER HOUSE RESIDENTIAL HOME,RESIDENTIAL CARE
Peterborough,http://opendatacommunities.org/id/unitary-authority/peterborough,Peterborough City Council,Children's & Education Services - Education,All Schools - apportion across sectors,Supplies and Services,03/06/2015 00:00,740889,600,REVENUE,Abbey College,GRANT PAYMENT
Peterborough,http://opendatacommunities.org/id/unitary-authority/peterborough,Peterborough City Council,Adult Social Care,Older People,Supplies and Services,03/06/2015 00:00,740890,892.98,REVENUE,LAVENDER HOUSE RESIDENTIAL HOME,RESIDENTIAL CARE
Peterborough,http://opendatacommunities.org/id/unitary-authority/peterborough,Peterborough City Council,Children's & Education Services - Education,All Schools - apportion across sectors,Supplies and Services,03/06/2015 00:00,740891,600,REVENUE,Bourne Grammar School,GRANT PAYMENT
Peterborough,http://opendatacommunities.org/id/unitary-authority/peterborough,Peterborough City Council,Children's & Education Services - Education,All Schools - apportion across sectors,Supplies and Services,03/06/2015 00:00,740892,1800,REVENUE,Bourne RM Academy,GRANT PAYMENT
Peterborough,http://opendatacommunities.org/id/unitary-authority/peterborough,Peterborough City Council,Adult Social Care,Older People,Supplies and Services,03/06/2015 00:00,740893,4204.18,REVENUE,Park House Residential Home,RESIDENTIAL CARE
Peterborough,http://opendatacommunities.org/id/unitary-authority/peterborough,Peterborough City Council,Children's & Education Services - Education,All Schools - apportion across sectors,Supplies and Services,03/06/2015 00:00,740896,600,REVENUE,Cromwell Community College,GRANT PAYMENT
Peterborough,http://opendatacommunities.org/id/unitary-authority/peterborough,Peterborough City Council,Children's & Education Services - Education,All Schools - apportion across sectors,Supplies and Services,03/06/2015 00:00,740900,600,REVENUE,Glebelands Primary School,GRANT PAYMENT
Peterborough,http://opendatacommunities.org/id/unitary-authority/peterborough,Peterborough City Council,Children's & Education Services - Education,All Schools - apportion across sectors,Supplies and Services,03/06/2015 00:00,740906,600,REVENUE,Ramsey Spinning Infant School,GRANT PAYMENT
Peterborough,http://opendatacommunities.org/id/unitary-authority/peterborough,Peterborough City Council,Children's & Education Services - Education,All Schools - apportion across sectors,Supplies and Services,03/06/2015 00:00,740908,600,REVENUE,Marshland High School,GRANT PAYMENT
Peterborough,http://opendatacommunities.org/id/unitary-authority/peterborough,Peterborough City Council,Children's & Education Services - Education,All Schools - apportion across sectors,Supplies and Services,03/06/2015 00:00,740909,600,REVENUE,Rigby Hall School,GRANT PAYMENT
Peterborough,http://opendatacommunities.org/id/unitary-authority/peterborough,Peterborough City Council,Children's & Education Services - Children's Social Care,Other Children's & Families Services,Supplies and Services - Transfer Payments,03/06/2015 00:00,740917,600,REVENUE,Redacted Personal Data,BOARDING OUT ALLOWANCES
Peterborough,http://opendatacommunities.org/id/unitary-authority/peterborough,Peterborough City Council,Children's & Education Services - Children's Social Care,Other Children's & Families Services,Supplies and Services - Transfer Payments,03/06/2015 00:00,740918,613.6,REVENUE,Redacted Personal Data,BOARDING OUT ALLOWANCES
Peterborough,http://opendatacommunities.org/id/unitary-authority/peterborough,Peterborough City Council,Children's & Education Services - Children's Social Care,Children Looked After,Supplies and Services - Transfer Payments,03/06/2015 00:00,740926,580.02,REVENUE,Redacted Personal Data,BOARDING OUT ALLOWANCES
Peterborough,http://opendatacommunities.org/id/unitary-authority/peterborough,Peterborough City Council,Children's & Education Services - Children's Social Care,Children Looked After,Supplies and Services - Transfer Payments,03/06/2015 00:00,740927,580.02,REVENUE,Redacted Personal Data,BOARDING OUT ALLOWANCES
Peterborough,http://opendatacommunities.org/id/unitary-authority/peterborough,Peterborough City Council,Children's & Education Services - Children's Social Care,Children Looked After,Supplies and Services - Transfer Payments,03/06/2015 00:00,740928,547.54,REVENUE,Redacted Personal Data,BOARDING OUT ALLOWANCES
Peterborough,http://opendatacommunities.org/id/unitary-authority/peterborough,Peterborough City Council,Children's & Education Services - Children's Social Care,Children Looked After,Supplies and Services - Transfer Payments,03/06/2015 00:00,740929,555.04,REVENUE,Redacted Personal Data,BOARDING OUT ALLOWANCES
Peterborough,http://opendatacommunities.org/id/unitary-authority/peterborough,Peterborough City Council,Children's & Education Services - Children's Social Care,Children Looked After,Supplies and Services - Transfer Payments,03/06/2015 00:00,740930,622.16,REVENUE,Redacted Personal Data,BOARDING OUT ALLOWANCES
Peterborough,http://opendatacommunities.org/id/unitary-authority/peterborough,Peterborough City Council,Children's & Education Services - Children's Social Care,Children Looked After,Supplies and Services - Transfer Payments,03/06/2015 00:00,740931,580.02,REVENUE,Redacted Personal Data,BOARDING OUT ALLOWANCES
Peterborough,http://opendatacommunities.org/id/unitary-authority/peterborough,Peterborough City Council,Children's & Education Services - Children's Social Care,Children Looked After,Supplies and Services - Transfer Payments,03/06/2015 00:00,740932,622.16,REVENUE,Redacted Personal Data,BOARDING OUT ALLOWANCES
Peterborough,http://opendatacommunities.org/id/unitary-authority/peterborough,Peterborough City Council,Children's & Education Services - Children's Social Care,Children Looked After,Supplies and Services - Transfer Payments,03/06/2015 00:00,740933,580.02,REVENUE,Redacted Personal Data,BOARDING OUT ALLOWANCES
Peterborough,http://opendatacommunities.org/id/unitary-authority/peterborough,Peterborough City Council,Children's & Education Services - Children's Social Care,Children Looked After,Supplies and Services - Transfer Payments,03/06/2015 00:00,740934,580.02,REVENUE,Redacted Personal Data,BOARDING OUT ALLOWANCES
Peterborough,http://opendatacommunities.org/id/unitary-authority/peterborough,Peterborough City Council,Children's & Education Services - Children's Social Care,Children Looked After,Supplies and Services - Transfer Payments,03/06/2015 00:00,740935,524.16,REVENUE,Redacted Personal Data,BOARDING OUT ALLOWANCES
Peterborough,http://opendatacommunities.org/id/unitary-authority/peterborough,Peterborough City Council,Children's & Education Services - Children's Social Care,Children Looked After,Supplies and Services - Transfer Payments,03/06/2015 00:00,740936,524.16,REVENUE,Redacted Personal Data,BOARDING OUT ALLOWANCES
Peterborough,http://opendatacommunities.org/id/unitary-authority/peterborough,Peterborough City Council,Children's & Education Services - Children's Social Care,Children Looked After,Supplies and Services - Transfer Payments,03/06/2015 00:00,740937,580.02,REVENUE,Redacted Personal Data,BOARDING OUT ALLOWANCES
Peterborough,http://opendatacommunities.org/id/unitary-authority/peterborough,Peterborough City Council,Children's & Education Services - Children's Social Care,Children Looked After,Supplies and Services - Transfer Payments,03/06/2015 00:00,740938,580.02,REVENUE,Redacted Personal Data,BOARDING OUT ALLOWANCES
Peterborough,http://opendatacommunities.org/id/unitary-authority/peterborough,Peterborough City Council,Children's & Education Services - Children's Social Care,Children Looked After,Supplies and Services - Transfer Payments,03/06/2015 00:00,740939,580.02,REVENUE,Redacted Personal Data,BOARDING OUT ALLOWANCES
Peterborough,http://opendatacommunities.org/id/unitary-authority/peterborough,Peterborough City Council,Children's & Education Services - Children's Social Care,Children Looked After,Supplies and Services - Transfer Payments,03/06/2015 00:00,740940,580.02,REVENUE,Redacted Personal Data,BOARDING OUT ALLOWANCES
Peterborough,http://opendatacommunities.org/id/unitary-authority/peterborough,Peterborough City Council,Children's & Education Services - Children's Social Care,Children Looked After,Supplies and Services - Transfer Payments,03/06/2015 00:00,740941,580.02,REVENUE,Redacted Personal Data,BOARDING OUT ALLOWANCES
Peterborough,http://opendatacommunities.org/id/unitary-authority/peterborough,Peterborough City Council,Children's & Education Services - Children's Social Care,Children Looked After,Supplies and Services - Transfer Payments,03/06/2015 00:00,740942,580.02,REVENUE,Redacted Personal Data,BOARDING OUT ALLOWANCES
Peterborough,http://opendatacommunities.org/id/unitary-authority/peterborough,Peterborough City Council,Children's & Education Services - Children's Social Care,Children Looked After,Supplies and Services - Transfer Payments,03/06/2015 00:00,740943,885.08,REVENUE,Redacted Personal Data,BOARDING OUT ALLOWANCES
Peterborough,http://opendatacommunities.org/id/unitary-authority/peterborough,Peterborough City Council,Children's & Education Services - Children's Social Care,Children Looked After,Supplies and Services - Transfer Payments,03/06/2015 00:00,740944,524.16,REVENUE,Redacted Personal Data,BOARDING OUT ALLOWANCES
Peterborough,http://opendatacommunities.org/id/unitary-authority/peterborough,Peterborough City Council,Children's & Education Services - Children's Social Care,Children Looked After,Supplies and Services - Transfer Payments,03/06/2015 00:00,740945,580.02,REVENUE,Redacted Personal Data,BOARDING OUT ALLOWANCES
Peterborough,http://opendatacommunities.org/id/unitary-authority/peterborough,Peterborough City Council,Children's & Education Services - Children's Social Care,Children Looked After,Supplies and Services - Transfer Payments,03/06/2015 00:00,740947,580.02,REVENUE,Redacted Personal Data,BOARDING OUT ALLOWANCES
Peterborough,http://opendatacommunities.org/id/unitary-authority/peterborough,Peterborough City Council,Children's & Education Services - Children's Social Care,Children Looked After,Supplies and Services - Transfer Payments,03/06/2015 00:00,740948,580.02,REVENUE,Redacted Personal Data,BOARDING OUT ALLOWANCES
Peterborough,http://opendatacommunities.org/id/unitary-authority/peterborough,Peterborough City Council,Children's & Education Services - Children's Social Care,Children Looked After,Supplies and Services - Transfer Payments,03/06/2015 00:00,740949,580.02,REVENUE,Redacted Personal Data,BOARDING OUT ALLOWANCES
Peterborough,http://opendatacommunities.org/id/unitary-authority/peterborough,Peterborough City Council,Children's & Education Services - Children's Social Care,Children Looked After,Supplies and Services - Transfer Payments,03/06/2015 00:00,740950,885.08,REVENUE,Redacted Personal Data,BOARDING OUT ALLOWANCES
Peterborough,http://opendatacommunities.org/id/unitary-authority/peterborough,Peterborough City Council,Children's & Education Services - Children's Social Care,Children Looked After,Supplies and Services - Transfer Payments,03/06/2015 00:00,740955,603.68,REVENUE,Redacted Personal Data,BOARDING OUT ALLOWANCES
Peterborough,http://opendatacommunities.org/id/unitary-authority/peterborough,Peterborough City Council,Children's & Education Services - Children's Social Care,Children Looked After,Supplies and Services - Transfer Payments,03/06/2015 00:00,740957,524.16,REVENUE,Redacted Personal Data,BOARDING OUT ALLOWANCES
Peterborough,http://opendatacommunities.org/id/unitary-authority/peterborough,Peterborough City Council,Children's & Education Services - Children's Social Care,Children Looked After,Supplies and Services - Transfer Payments,03/06/2015 00:00,740961,580.02,REVENUE,Redacted Personal Data,BOARDING OUT ALLOWANCES
Peterborough,http://opendatacommunities.org/id/unitary-authority/peterborough,Peterborough City Council,Children's & Education Services - Children's Social Care,Children Looked After,Supplies and Services - Transfer Payments,03/06/2015 00:00,740962,524.16,REVENUE,Redacted Personal Data,BOARDING OUT ALLOWANCES
Peterborough,http://opendatacommunities.org/id/unitary-authority/peterborough,Peterborough City Council,Children's & Education Services - Children's Social Care,Children Looked After,Supplies and Services - Transfer Payments,03/06/2015 00:00,740963,524.16,REVENUE,Redacted Personal Data,BOARDING OUT ALLOWANCES
Peterborough,http://opendatacommunities.org/id/unitary-authority/peterborough,Peterborough City Council,Children's & Education Services - Children's Social Care,Children Looked After,Supplies and Services - Transfer Payments,03/06/2015 00:00,740964,524.16,REVENUE,Redacted Personal Data,BOARDING OUT ALLOWANCES
Peterborough,http://opendatacommunities.org/id/unitary-authority/peterborough,Peterborough City Council,Children's & Education Services - Children's Social Care,Children Looked After,Supplies and Services - Transfer Payments,03/06/2015 00:00,740965,580.02,REVENUE,Redacted Personal Data,BOARDING OUT ALLOWANCES
Peterborough,http://opendatacommunities.org/id/unitary-authority/peterborough,Peterborough City Council,Children's & Education Services - Children's Social Care,Children Looked After,Supplies and Services - Transfer Payments,03/06/2015 00:00,740966,580.02,REVENUE,Redacted Personal Data,BOARDING OUT ALLOWANCES
Peterborough,http://opendatacommunities.org/id/unitary-authority/peterborough,Peterborough City Council,Children's & Education Services - Children's Social Care,Children Looked After,Supplies and Services - Transfer Payments,03/06/2015 00:00,740968,580.02,REVENUE,Redacted Personal Data,BOARDING OUT ALLOWANCES
Peterborough,http://opendatacommunities.org/id/unitary-authority/peterborough,Peterborough City Council,Children's & Education Services - Children's Social Care,Children Looked After,Supplies and Services - Transfer Payments,03/06/2015 00:00,740969,885.08,REVENUE,Redacted Personal Data,BOARDING OUT ALLOWANCES
Peterborough,http://opendatacommunities.org/id/unitary-authority/peterborough,Peterborough City Council,Children's & Education Services - Children's Social Care,Children Looked After,Supplies and Services - Transfer Payments,03/06/2015 00:00,740971,580.02,REVENUE,Redacted Personal Data,BOARDING OUT ALLOWANCES
Peterborough,http://opendatacommunities.org/id/unitary-authority/peterborough,Peterborough City Council,Children's & Education Services - Children's Social Care,Children Looked After,Supplies and Services - Transfer Payments,03/06/2015 00:00,740986,622.16,REVENUE,Redacted Personal Data,BOARDING OUT ALLOWANCES
Peterborough,http://opendatacommunities.org/id/unitary-authority/peterborough,Peterborough City Council,Children's & Education Services - Children's Social Care,Children Looked After,Supplies and Services - Transfer Payments,03/06/2015 00:00,740987,580.02,REVENUE,Redacted Personal Data,BOARDING OUT ALLOWANCES
Peterborough,http://opendatacommunities.org/id/unitary-authority/peterborough,Peterborough City Council,Children's & Education Services - Children's Social Care,Children Looked After,Supplies and Services - Transfer Payments,03/06/2015 00:00,740993,885.08,REVENUE,Redacted Personal Data,BOARDING OUT ALLOWANCES
Peterborough,http://opendatacommunities.org/id/unitary-authority/peterborough,Peterborough City Council,Children's & Education Services - Children's Social Care,Children Looked After,Supplies and Services - Transfer Payments,03/06/2015 00:00,740997,622.16,REVENUE,Redacted Personal Data,BOARDING OUT ALLOWANCES
Peterborough,http://opendatacommunities.org/id/unitary-authority/peterborough,Peterborough City Council,Children's & Education Services - Children's Social Care,Children Looked After,Supplies and Services - Transfer Payments,03/06/2015 00:00,741003,580.02,REVENUE,Redacted Personal Data,BOARDING OUT ALLOWANCES
Peterborough,http://opendatacommunities.org/id/unitary-authority/peterborough,Peterborough City Council,Children's & Education Services - Children's Social Care,Children Looked After,Supplies and Services - Transfer Payments,03/06/2015 00:00,741013,603.68,REVENUE,Redacted Personal Data,BOARDING OUT ALLOWANCES
Peterborough,http://opendatacommunities.org/id/unitary-authority/peterborough,Peterborough City Council,Children's & Education Services - Children's Social Care,Children Looked After,Supplies and Services - Transfer Payments,03/06/2015 00:00,741015,622.16,REVENUE,Redacted Personal Data,BOARDING OUT ALLOWANCES
Peterborough,http://opendatacommunities.org/id/unitary-authority/peterborough,Peterborough City Council,Children's & Education Services - Children's Social Care,Other Children's & Families Services,Supplies and Services - Transfer Payments,03/06/2015 00:00,741016,646.15,REVENUE,Redacted Personal Data,BOARDING OUT ALLOWANCES
Peterborough,http://opendatacommunities.org/id/unitary-authority/peterborough,Peterborough City Council,Children's & Education Services - Children's Social Care,Other Children's & Families Services,Supplies and Services - Transfer Payments,03/06/2015 00:00,741017,646.15,REVENUE,Redacted Personal Data,BOARDING OUT ALLOWANCES
Peterborough,http://opendatacommunities.org/id/unitary-authority/peterborough,Peterborough City Council,Children's & Education Services - Children's Social Care,Children Looked After,Supplies and Services - Transfer Payments,03/06/2015 00:00,741028,1514.38,REVENUE,Redacted Personal Data,BOARDING OUT ALLOWANCES
Peterborough,http://opendatacommunities.org/id/unitary-authority/peterborough,Peterborough City Council,Children's & Education Services - Children's Social Care,Other Children's & Families Services,Supplies and Services - Transfer Payments,03/06/2015 00:00,741034,632.38,REVENUE,Redacted Personal Data,BOARDING OUT ALLOWANCES
Peterborough,http://opendatacommunities.org/id/unitary-authority/peterborough,Peterborough City Council,Children's & Education Services - Children's Social Care,Other Children's & Families Services,Supplies and Services - Transfer Payments,03/06/2015 00:00,741035,632.38,REVENUE,Redacted Personal Data,BOARDING OUT ALLOWANCES
Peterborough,http://opendatacommunities.org/id/unitary-authority/peterborough,Peterborough City Council,Children's & Education Services - Children's Social Care,Other Children's & Families Services,Supplies and Services - Transfer Payments,03/06/2015 00:00,741046,792,REVENUE,Redacted Personal Data,BOARDING OUT ALLOWANCES
Peterborough,http://opendatacommunities.org/id/unitary-authority/peterborough,Peterborough City Council,Children's & Education Services - Children's Social Care,Other Children's & Families Services,Supplies and Services - Transfer Payments,03/06/2015 00:00,741047,792,REVENUE,Redacted Personal Data,BOARDING OUT ALLOWANCES
Peterborough,http://opendatacommunities.org/id/unitary-authority/peterborough,Peterborough City Council,Children's & Education Services - Children's Social Care,Children Looked After,Supplies and Services - Transfer Payments,03/06/2015 00:00,741052,624.75,REVENUE,Redacted Personal Data,BOARDING OUT ALLOWANCES
Peterborough,http://opendatacommunities.org/id/unitary-authority/peterborough,Peterborough City Council,Children's & Education Services - Children's Social Care,Other Children's & Families Services,Supplies and Services - Transfer Payments,03/06/2015 00:00,741054,844.48,REVENUE,Redacted Personal Data,BOARDING OUT ALLOWANCES
Peterborough,http://opendatacommunities.org/id/unitary-authority/peterborough,Peterborough City Council,Children's & Education Services - Children's Social Care,Children Looked After,Supplies and Services - Transfer Payments,03/06/2015 00:00,741055,524.16,REVENUE,Redacted Personal Data,BOARDING OUT ALLOWANCES
Peterborough,http://opendatacommunities.org/id/unitary-authority/peterborough,Peterborough City Council,Children's & Education Services - Children's Social Care,Children Looked After,Supplies and Services - Transfer Payments,03/06/2015 00:00,741058,524.16,REVENUE,Redacted Personal Data,BOARDING OUT ALLOWANCES
Peterborough,http://opendatacommunities.org/id/unitary-authority/peterborough,Peterborough City Council,Children's & Education Services - Children's Social Care,Children Looked After,Supplies and Services - Transfer Payments,03/06/2015 00:00,741060,580.02,REVENUE,Redacted Personal Data,BOARDING OUT ALLOWANCES
Peterborough,http://opendatacommunities.org/id/unitary-authority/peterborough,Peterborough City Council,Children's & Education Services - Children's Social Care,Children Looked After,Supplies and Services - Transfer Payments,03/06/2015 00:00,741061,580.02,REVENUE,Redacted Personal Data,BOARDING OUT ALLOWANCES
Peterborough,http://opendatacommunities.org/id/unitary-authority/peterborough,Peterborough City Council,Children's & Education Services - Children's Social Care,Children Looked After,Supplies and Services - Transfer Payments,03/06/2015 00:00,741062,613.48,REVENUE,Redacted Personal Data,BOARDING OUT ALLOWANCES
Peterborough,http://opendatacommunities.org/id/unitary-authority/peterborough,Peterborough City Council,Children's & Education Services - Children's Social Care,Children Looked After,Supplies and Services - Transfer Payments,03/06/2015 00:00,741065,524.16,REVENUE,Redacted Personal Data,BOARDING OUT ALLOWANCES
Peterborough,http://opendatacommunities.org/id/unitary-authority/peterborough,Peterborough City Council,Children's & Education Services - Children's Social Care,Children Looked After,Supplies and Services - Transfer Payments,03/06/2015 00:00,741074,594.93,REVENUE,Redacted Personal Data,BOARDING OUT ALLOWANCES
Peterborough,http://opendatacommunities.org/id/unitary-authority/peterborough,Peterborough City Council,Children's & Education Services - Children's Social Care,Children Looked After,Supplies and Services - Transfer Payments,03/06/2015 00:00,741076,597.18,REVENUE,Redacted Personal Data,BOARDING OUT ALLOWANCES
Peterborough,http://opendatacommunities.org/id/unitary-authority/peterborough,Peterborough City Council,Children's & Education Services - Children's Social Care,Children Looked After,Supplies and Services - Transfer Payments,03/06/2015 00:00,741077,555.04,REVENUE,Redacted Personal Data,BOARDING OUT ALLOWANCES
Peterborough,http://opendatacommunities.org/id/unitary-authority/peterborough,Peterborough City Council,Children's & Education Services - Children's Social Care,Children Looked After,Supplies and Services - Transfer Payments,03/06/2015 00:00,741083,538.68,REVENUE,Redacted Personal Data,BOARDING OUT ALLOWANCES
Peterborough,http://opendatacommunities.org/id/unitary-authority/peterborough,Peterborough City Council,Children's & Education Services - Children's Social Care,Children Looked After,Supplies and Services - Transfer Payments,03/06/2015 00:00,741084,580.02,REVENUE,Redacted Personal Data,BOARDING OUT ALLOWANCES
Peterborough,http://opendatacommunities.org/id/unitary-authority/peterborough,Peterborough City Council,Children's & Education Services - Children's Social Care,Children Looked After,Supplies and Services - Transfer Payments,03/06/2015 00:00,741094,524.16,REVENUE,Redacted Personal Data,BOARDING OUT ALLOWANCES
Peterborough,http://opendatacommunities.org/id/unitary-authority/peterborough,Peterborough City Council,Children's & Education Services - Children's Social Care,Children Looked After,Supplies and Services - Transfer Payments,03/06/2015 00:00,741095,580.02,REVENUE,Redacted Personal Data,BOARDING OUT ALLOWANCES
Peterborough,http://opendatacommunities.org/id/unitary-authority/peterborough,Peterborough City Council,Children's & Education Services - Children's Social Care,Children Looked After,Supplies and Services - Transfer Payments,03/06/2015 00:00,741102,580.02,REVENUE,Redacted Personal Data,BOARDING OUT ALLOWANCES
Peterborough,http://opendatacommunities.org/id/unitary-authority/peterborough,Peterborough City Council,Children's & Education Services - Children's Social Care,Children Looked After,Supplies and Services - Transfer Payments,03/06/2015 00:00,741104,580.02,REVENUE,Redacted Personal Data,BOARDING OUT ALLOWANCES
Peterborough,http://opendatacommunities.org/id/unitary-authority/peterborough,Peterborough City Council,Children's & Education Services - Children's Social Care,Children Looked After,Supplies and Services - Transfer Payments,03/06/2015 00:00,741109,607.74,REVENUE,Redacted Personal Data,BOARDING OUT ALLOWANCES
Peterborough,http://opendatacommunities.org/id/unitary-authority/peterborough,Peterborough City Council,Children's & Education Services - Children's Social Care,Other Children's & Families Services,Supplies and Services - Transfer Payments,03/06/2015 00:00,741111,646.02,REVENUE,Redacted Personal Data,BOARDING OUT ALLOWANCES
Peterborough,http://opendatacommunities.org/id/unitary-authority/peterborough,Peterborough City Council,Children's & Education Services - Children's Social Care,Children Looked After,Supplies and Services - Transfer Payments,03/06/2015 00:00,741114,547.54,REVENUE,Redacted Personal Data,BOARDING OUT ALLOWANCES
Peterborough,http://opendatacommunities.org/id/unitary-authority/peterborough,Peterborough City Council,Children's & Education Services - Children's Social Care,Children Looked After,Supplies and Services - Transfer Payments,03/06/2015 00:00,741137,900.9,REVENUE,Redacted Personal Data,BOARDING OUT ALLOWANCES
Peterborough,http://opendatacommunities.org/id/unitary-authority/peterborough,Peterborough City Council,Children's & Education Services - Children's Social Care,Children Looked After,Supplies and Services - Transfer Payments,03/06/2015 00:00,741138,524.16,REVENUE,Redacted Personal Data,BOARDING OUT ALLOWANCES
Peterborough,http://opendatacommunities.org/id/unitary-authority/peterborough,Peterborough City Council,Children's & Education Services - Children's Social Care,Children Looked After,Supplies and Services - Transfer Payments,03/06/2015 00:00,741145,580.02,REVENUE,Redacted Personal Data,BOARDING OUT ALLOWANCES
Peterborough,http://opendatacommunities.org/id/unitary-authority/peterborough,Peterborough City Council,Children's & Education Services - Children's Social Care,Children Looked After,Supplies and Services - Transfer Payments,03/06/2015 00:00,741146,622.16,REVENUE,Redacted Personal Data,BOARDING OUT ALLOWANCES
Peterborough,http://opendatacommunities.org/id/unitary-authority/peterborough,Peterborough City Council,Children's & Education Services - Children's Social Care,Children Looked After,Supplies and Services - Transfer Payments,03/06/2015 00:00,741148,580.02,REVENUE,Redacted Personal Data,BOARDING OUT ALLOWANCES
Peterborough,http://opendatacommunities.org/id/unitary-authority/peterborough,Peterborough City Council,Children's & Education Services - Children's Social Care,Other Children's & Families Services,Supplies and Services - Transfer Payments,03/06/2015 00:00,741163,531.88,REVENUE,Redacted Personal Data,BOARDING OUT ALLOWANCES
Peterborough,http://opendatacommunities.org/id/unitary-authority/peterborough,Peterborough City Council,Children's & Education Services - Children's Social Care,Other Children's & Families Services,Supplies and Services - Transfer Payments,03/06/2015 00:00,741164,545.88,REVENUE,Redacted Personal Data,BOARDING OUT ALLOWANCES
Peterborough,http://opendatacommunities.org/id/unitary-authority/peterborough,Peterborough City Council,Children's & Education Services - Children's Social Care,Other Children's & Families Services,Supplies and Services - Transfer Payments,03/06/2015 00:00,741165,545.88,REVENUE,Redacted Personal Data,BOARDING OUT ALLOWANCES
Peterborough,http://opendatacommunities.org/id/unitary-authority/peterborough,Peterborough City Council,Children's & Education Services - Children's Social Care,Other Children's & Families Services,Supplies and Services - Transfer Payments,03/06/2015 00:00,741166,545.88,REVENUE,Redacted Personal Data,BOARDING OUT ALLOWANCES
Peterborough,http://opendatacommunities.org/id/unitary-authority/peterborough,Peterborough City Council,Children's & Education Services - Children's Social Care,Other Children's & Families Services,Supplies and Services - Transfer Payments,03/06/2015 00:00,741167,545.88,REVENUE,Redacted Personal Data,BOARDING OUT ALLOWANCES
Peterborough,http://opendatacommunities.org/id/unitary-authority/peterborough,Peterborough City Council,Children's & Education Services - Children's Social Care,Children Looked After,Supplies and Services - Transfer Payments,03/06/2015 00:00,741262,639.1,REVENUE,Redacted Personal Data,BOARDING OUT ALLOWANCES
Peterborough,http://opendatacommunities.org/id/unitary-authority/peterborough,Peterborough City Council,Children's & Education Services - Children's Social Care,Children Looked After,Supplies and Services - Transfer Payments,03/06/2015 00:00,741263,794.46,REVENUE,Redacted Personal Data,BOARDING OUT ALLOWANCES
Peterborough,http://opendatacommunities.org/id/unitary-authority/peterborough,Peterborough City Council,Children's & Education Services - Children's Social Care,Children Looked After,Supplies and Services - Transfer Payments,03/06/2015 00:00,741264,794.46,REVENUE,Redacted Personal Data,BOARDING OUT ALLOWANCES
Peterborough,http://opendatacommunities.org/id/unitary-authority/peterborough,Peterborough City Council,Children's & Education Services - Children's Social Care,Children Looked After,Supplies and Services - Transfer Payments,03/06/2015 00:00,741265,664.72,REVENUE,Redacted Personal Data,BOARDING OUT ALLOWANCES
Peterborough,http://opendatacommunities.org/id/unitary-authority/peterborough,Peterborough City Council,Children's & Education Services - Children's Social Care,Children Looked After,Supplies and Services - Transfer Payments,03/06/2015 00:00,741266,689.92,REVENUE,Redacted Personal Data,BOARDING OUT ALLOWANCES
Peterborough,http://opendatacommunities.org/id/unitary-authority/peterborough,Peterborough City Council,Children's & Education Services - Children's Social Care,Children Looked After,Supplies and Services - Transfer Payments,03/06/2015 00:00,741267,689.92,REVENUE,Redacted Personal Data,BOARDING OUT ALLOWANCES
Peterborough,http://opendatacommunities.org/id/unitary-authority/peterborough,Peterborough City Council,Children's & Education Services - Children's Social Care,Children Looked After,Supplies and Services - Transfer Payments,03/06/2015 00:00,741268,831.74,REVENUE,Redacted Personal Data,BOARDING OUT ALLOWANCES
Peterborough,http://opendatacommunities.org/id/unitary-authority/peterborough,Peterborough City Council,Children's & Education Services - Children's Social Care,Children Looked After,Supplies and Services - Transfer Payments,03/06/2015 00:00,741269,664.72,REVENUE,Redacted Personal Data,BOARDING OUT ALLOWANCES
Peterborough,http://opendatacommunities.org/id/unitary-authority/peterborough,Peterborough City Council,Children's & Education Services - Children's Social Care,Children Looked After,Supplies and Services - Transfer Payments,03/06/2015 00:00,741270,664.72,REVENUE,Redacted Personal Data,BOARDING OUT ALLOWANCES
Peterborough,http://opendatacommunities.org/id/unitary-authority/peterborough,Peterborough City Council,Children's & Education Services - Children's Social Care,Children Looked After,Supplies and Services - Transfer Payments,03/06/2015 00:00,741271,987.54,REVENUE,Redacted Personal Data,BOARDING OUT ALLOWANCES
Peterborough,http://opendatacommunities.org/id/unitary-authority/peterborough,Peterborough City Council,Children's & Education Services - Children's Social Care,Children Looked After,Supplies and Services - Transfer Payments,03/06/2015 00:00,741272,985.72,REVENUE,Redacted Personal Data,BOARDING OUT ALLOWANCES
Peterborough,http://opendatacommunities.org/id/unitary-authority/peterborough,Peterborough City Council,Children's & Education Services - Children's Social Care,Children Looked After,Supplies and Services - Transfer Payments,03/06/2015 00:00,741273,680.72,REVENUE,Redacted Personal Data,BOARDING OUT ALLOWANCES
Peterborough,http://opendatacommunities.org/id/unitary-authority/peterborough,Peterborough City Council,Children's & Education Services - Children's Social Care,Children Looked After,Supplies and Services - Transfer Payments,03/06/2015 00:00,741274,680.72,REVENUE,Redacted Personal Data,BOARDING OUT ALLOWANCES
Peterborough,http://opendatacommunities.org/id/unitary-authority/peterborough,Peterborough City Council,Children's & Education Services - Children's Social Care,Children Looked After,Supplies and Services - Transfer Payments,03/06/2015 00:00,741275,928.5,REVENUE,Redacted Personal Data,BOARDING OUT ALLOWANCES
Peterborough,http://opendatacommunities.org/id/unitary-authority/peterborough,Peterborough City Council,Children's & Education Services - Children's Social Care,Children Looked After,Supplies and Services - Transfer Payments,03/06/2015 00:00,741276,928.5,REVENUE,Redacted Personal Data,BOARDING OUT ALLOWANCES
Peterborough,http://opendatacommunities.org/id/unitary-authority/peterborough,Peterborough City Council,Children's & Education Services - Children's Social Care,Children Looked After,Supplies and Services - Transfer Payments,03/06/2015 00:00,741277,788.9,REVENUE,Redacted Personal Data,BOARDING OUT ALLOWANCES
Peterborough,http://opendatacommunities.org/id/unitary-authority/peterborough,Peterborough City Council,Children's & Education Services - Children's Social Care,Children Looked After,Supplies and Services - Transfer Payments,03/06/2015 00:00,741278,788.9,REVENUE,Redacted Personal Data,BOARDING OUT ALLOWANCES
Peterborough,http://opendatacommunities.org/id/unitary-authority/peterborough,Peterborough City Council,Children's & Education Services - Children's Social Care,Children Looked After,Supplies and Services - Transfer Payments,03/06/2015 00:00,741279,723.52,REVENUE,Redacted Personal Data,BOARDING OUT ALLOWANCES
Peterborough,http://opendatacommunities.org/id/unitary-authority/peterborough,Peterborough City Council,Children's & Education Services - Children's Social Care,Family Support Services,Supplies and Services,03/06/2015 00:00,741286,501.34,REVENUE,Redacted Personal Data,FINANCIAL ASSISTANCE
Peterborough,http://opendatacommunities.org/id/unitary-authority/peterborough,Peterborough City Council,Children's & Education Services - Children's Social Care,Children Looked After,Supplies and Services - Transfer Payments,03/06/2015 00:00,741301,580.02,REVENUE,Redacted Personal Data,BOARDING OUT ALLOWANCES
Peterborough,http://opendatacommunities.org/id/unitary-authority/peterborough,Peterborough City Council,Children's & Education Services - Children's Social Care,Children Looked After,Supplies and Services - Transfer Payments,03/06/2015 00:00,741302,928.5,REVENUE,Redacted Personal Data,BOARDING OUT ALLOWANCES
Peterborough,http://opendatacommunities.org/id/unitary-authority/peterborough,Peterborough City Council,Children's & Education Services - Children's Social Care,Children Looked After,Supplies and Services - Transfer Payments,03/06/2015 00:00,741307,524.16,REVENUE,Redacted Personal Data,BOARDING OUT ALLOWANCES
Peterborough,http://opendatacommunities.org/id/unitary-authority/peterborough,Peterborough City Council,Children's & Education Services - Children's Social Care,Family Support Services,Supplies and Services,03/06/2015 00:00,741315,980.42,REVENUE,Redacted Personal Data,FINANCIAL ASSISTANCE
Peterborough,http://opendatacommunities.org/id/unitary-authority/peterborough,Peterborough City Council,Children's & Education Services - Children's Social Care,Children Looked After,Supplies and Services - Transfer Payments,03/06/2015 00:00,741330,622.16,REVENUE,Redacted Personal Data,BOARDING OUT ALLOWANCES
Peterborough,http://opendatacommunities.org/id/unitary-authority/peterborough,Peterborough City Council,Children's & Education Services - Children's Social Care,Children Looked After,Supplies and Services - Transfer Payments,03/06/2015 00:00,741332,580.02,REVENUE,Redacted Personal Data,BOARDING OUT ALLOWANCES
Peterborough,http://opendatacommunities.org/id/unitary-authority/peterborough,Peterborough City Council,Children's & Education Services - Children's Social Care,Children Looked After,Supplies and Services - Transfer Payments,03/06/2015 00:00,741334,517.57,REVENUE,Redacted Personal Data,BOARDING OUT ALLOWANCES
Peterborough,http://opendatacommunities.org/id/unitary-authority/peterborough,Peterborough City Council,Children's & Education Services - Children's Social Care,Children Looked After,Supplies and Services - Transfer Payments,03/06/2015 00:00,741336,900.9,REVENUE,Redacted Personal Data,BOARDING OUT ALLOWANCES
Peterborough,http://opendatacommunities.org/id/unitary-authority/peterborough,Peterborough City Council,Children's & Education Services - Children's Social Care,Children Looked After,Supplies and Services - Transfer Payments,03/06/2015 00:00,741340,806.72,REVENUE,Redacted Personal Data,BOARDING OUT ALLOWANCES
Peterborough,http://opendatacommunities.org/id/unitary-authority/peterborough,Peterborough City Council,Children's & Education Services - Children's Social Care,Children Looked After,Supplies and Services - Transfer Payments,03/06/2015 00:00,741341,806.72,REVENUE,Redacted Personal Data,BOARDING OUT ALLOWANCES
Peterborough,http://opendatacommunities.org/id/unitary-authority/peterborough,Peterborough City Council,Children's & Education Services - Children's Social Care,Children Looked After,Supplies and Services - Transfer Payments,03/06/2015 00:00,741342,723.52,REVENUE,Redacted Personal Data,BOARDING OUT ALLOWANCES
Peterborough,http://opendatacommunities.org/id/unitary-authority/peterborough,Peterborough City Council,Children's & Education Services - Children's Social Care,Children Looked After,Supplies and Services - Transfer Payments,03/06/2015 00:00,741343,603.68,REVENUE,Redacted Personal Data,BOARDING OUT ALLOWANCES
Peterborough,http://opendatacommunities.org/id/unitary-authority/peterborough,Peterborough City Council,Children's & Education Services - Children's Social Care,Children Looked After,Supplies and Services - Transfer Payments,03/06/2015 00:00,741345,622.16,REVENUE,Redacted Personal Data,BOARDING OUT ALLOWANCES
Peterborough,http://opendatacommunities.org/id/unitary-authority/peterborough,Peterborough City Council,Children's & Education Services - Children's Social Care,Children Looked After,Supplies and Services - Transfer Payments,03/06/2015 00:00,741346,604.1,REVENUE,Redacted Personal Data,BOARDING OUT ALLOWANCES
Peterborough,http://opendatacommunities.org/id/unitary-authority/peterborough,Peterborough City Council,Children's & Education Services - Children's Social Care,Other Children's & Families Services,Supplies and Services - Transfer Payments,03/06/2015 00:00,741360,851.48,REVENUE,Redacted Personal Data,BOARDING OUT ALLOWANCES
Peterborough,http://opendatacommunities.org/id/unitary-authority/peterborough,Peterborough City Council,Children's & Education Services - Children's Social Care,Children Looked After,Supplies and Services - Transfer Payments,03/06/2015 00:00,741366,1800,REVENUE,Redacted Personal Data,BOARDING OUT ALLOWANCES
Peterborough,http://opendatacommunities.org/id/unitary-authority/peterborough,Peterborough City Council,Children's & Education Services - Children's Social Care,Children Looked After,Supplies and Services - Transfer Payments,03/06/2015 00:00,741367,1800,REVENUE,Redacted Personal Data,BOARDING OUT ALLOWANCES
Peterborough,http://opendatacommunities.org/id/unitary-authority/peterborough,Peterborough City Council,Children's & Education Services - Children's Social Care,Children Looked After,Supplies and Services - Transfer Payments,03/06/2015 00:00,741368,840,REVENUE,Redacted Personal Data,BOARDING OUT ALLOWANCES
Peterborough,http://opendatacommunities.org/id/unitary-authority/peterborough,Peterborough City Council,Children's & Education Services - Children's Social Care,Other Children's & Families Services,Supplies and Services - Transfer Payments,03/06/2015 00:00,741394,554.48,REVENUE,Redacted Personal Data,BOARDING OUT ALLOWANCES
Peterborough,http://opendatacommunities.org/id/unitary-authority/peterborough,Peterborough City Council,Children's & Education Services - Education,All Schools - apportion across sectors,Supplies and Services,03/06/2015 00:00,741433,600,REVENUE,St Ivo School,GRANT PAYMENT
Peterborough,http://opendatacommunities.org/id/unitary-authority/peterborough,Peterborough City Council,Children's & Education Services - Education,All Schools - apportion across sectors,Supplies and Services,03/06/2015 00:00,741434,600,REVENUE,Swavesey Village College,GRANT PAYMENT
Peterborough,http://opendatacommunities.org/id/unitary-authority/peterborough,Peterborough City Council,Adult Social Care,Social Care Activities,More than one Expenses Type,03/06/2015 00:00,741435,4963.29,REVENUE,Fieldwork Admin Team (IMPREST),Numerous
Peterborough,http://opendatacommunities.org/id/unitary-authority/peterborough,Peterborough City Council,Children's & Education Services - Education,All Schools - apportion across sectors,Supplies and Services,03/06/2015 00:00,741437,600,REVENUE,South View Community Primary School,GRANT PAYMENT
Peterborough,http://opendatacommunities.org/id/unitary-authority/peterborough,Peterborough City Council,Children's & Education Services - Education,All Schools - apportion across sectors,Supplies and Services,03/06/2015 00:00,741440,600,REVENUE,ST George's C of E Foundation School,GRANT PAYMENT
Peterborough,http://opendatacommunities.org/id/unitary-authority/peterborough,Peterborough City Council,Children's & Education Services - Education,All Schools - apportion across sectors,Supplies and Services,03/06/2015 00:00,741441,1200,REVENUE,The Deepings School,GRANT PAYMENT
Peterborough,http://opendatacommunities.org/id/unitary-authority/peterborough,Peterborough City Council,Children's & Education Services - Education,All Schools - apportion across sectors,Supplies and Services,03/06/2015 00:00,741442,600,REVENUE,Samworth Enterprise Academy,GRANT PAYMENT
Peterborough,http://opendatacommunities.org/id/unitary-authority/peterborough,Peterborough City Council,Children's & Education Services - Education,All Schools - apportion across sectors,Supplies and Services,03/06/2015 00:00,741444,1200,REVENUE,Thomas Clarkson Academy,GRANT PAYMENT
Peterborough,http://opendatacommunities.org/id/unitary-authority/peterborough,Peterborough City Council,Children's & Education Services - Education,All Schools - apportion across sectors,Supplies and Services,03/06/2015 00:00,741445,1200,REVENUE,Thorndown Primary School,GRANT PAYMENT
Peterborough,http://opendatacommunities.org/id/unitary-authority/peterborough,Peterborough City Council,Children's & Education Services - Education,All Schools - apportion across sectors,Supplies and Services,03/06/2015 00:00,741446,600,REVENUE,University Academy Holbeach,GRANT PAYMENT
Peterborough,http://opendatacommunities.org/id/unitary-authority/peterborough,Peterborough City Council,Children's & Education Services - Education,All Schools - apportion across sectors,Supplies and Services,03/06/2015 00:00,741447,600,REVENUE,Upwell Community Primary School,GRANT PAYMENT
Peterborough,http://opendatacommunities.org/id/unitary-authority/peterborough,Peterborough City Council,Children's & Education Services - Education,All Schools - apportion across sectors,Supplies and Services,03/06/2015 00:00,741449,600,REVENUE,Westfield Special School,GRANT PAYMENT
Peterborough,http://opendatacommunities.org/id/unitary-authority/peterborough,Peterborough City Council,Children's & Education Services - Education,All Schools - apportion across sectors,Supplies and Services,03/06/2015 00:00,741450,600,REVENUE,Whitehill Primary School,GRANT PAYMENT
Peterborough,http://opendatacommunities.org/id/unitary-authority/peterborough,Peterborough City Council,Children's & Education Services - Education,All Schools - apportion across sectors,Supplies and Services,03/06/2015 00:00,741451,600,REVENUE,The Holbeach William Stukeley Primary School,GRANT PAYMENT
Peterborough,http://opendatacommunities.org/id/unitary-authority/peterborough,Peterborough City Council,Children's & Education Services - Education,All Schools - apportion across sectors,Supplies and Services,03/06/2015 00:00,741452,600,REVENUE,Willoughby School,GRANT PAYMENT
Peterborough,http://opendatacommunities.org/id/unitary-authority/peterborough,Peterborough City Council,Children's & Education Services - Education,All Schools - apportion across sectors,Supplies and Services,03/06/2015 00:00,741453,600,REVENUE,Woolsery Primary School,GRANT PAYMENT
Peterborough,http://opendatacommunities.org/id/unitary-authority/peterborough,Peterborough City Council,Housing Services,Homelessness,Supplies and Services,03/06/2015 00:00,741455,1450,REVENUE,Acute Property Solutions,FINANCIAL ASSISTANCE
Peterborough,http://opendatacommunities.org/id/unitary-authority/peterborough,Peterborough City Council,Adult Social Care,Older People,Supplies and Services,03/06/2015 00:00,741469,2181.6,REVENUE,Southwark Park Nursing Homes - Blenheim Care Centre,RESIDENTIAL CARE
Peterborough,http://opendatacommunities.org/id/unitary-authority/peterborough,Peterborough City Council,Adult Social Care,Older People,Supplies and Services,03/06/2015 00:00,741472,4007.14,REVENUE,LESTER HALL APARTMENTS LTD,RESIDENTIAL CARE
Peterborough,http://opendatacommunities.org/id/unitary-authority/peterborough,Peterborough City Council,More than one Service Area Category,More than one Service Division,Transport,03/06/2015 00:00,741505,1628.88,REVENUE,Goldstar Cabs Ltd,HIRED TRANSPORT
Peterborough,http://opendatacommunities.org/id/unitary-authority/peterborough,Peterborough City Council,More than one Service Area Category,More than one Service Division,Balance Sheet,03/06/2015 00:00,741516,767138.24,Balance Sheet,Teachers Pensions,PENSIONS
Peterborough,http://opendatacommunities.org/id/unitary-authority/peterborough,Peterborough City Council,More than one Service Area Category,More than one Service Division,Premises,03/06/2015 00:00,741517,3551.78,REVENUE,Anglian Water,WATER
Peterborough,http://opendatacommunities.org/id/unitary-authority/peterborough,Peterborough City Council,Children's & Education Services - Education,Other Education and Community Budget,Employees,03/06/2015 00:00,741518,27344.06,REVENUE,Teachers Pensions,PENSIONS
Peterborough,http://opendatacommunities.org/id/unitary-authority/peterborough,Peterborough City Council,More than one Service Area Category,More than one Service Division,Balance Sheet,03/06/2015 00:00,741519,2701.22,Balance Sheet,The Prudential Assurance Company Ltd,PENSIONS
Peterborough,http://opendatacommunities.org/id/unitary-authority/peterborough,Peterborough City Council,More than one Service Area Category,More than one Service Division,Premises,03/06/2015 00:00,741520,4161.76,REVENUE,Anglian Water,WATER
Peterborough,http://opendatacommunities.org/id/unitary-authority/peterborough,Peterborough City Council,More than one Service Area Category,More than one Service Division,Premises,03/06/2015 00:00,741521,7720.22,REVENUE,Anglian Water,WATER
Peterborough,http://opendatacommunities.org/id/unitary-authority/peterborough,Peterborough City Council,More than one Service Area Category,More than one Service Division,Premises,03/06/2015 00:00,741523,2057.4,REVENUE,Anglian Water,WATER
Peterborough,http://opendatacommunities.org/id/unitary-authority/peterborough,Peterborough City Council,More than one Service Area Category,More than one Service Division,More than one Expenses Type,03/06/2015 00:00,741524,1073.33,REVENUE,Peterborough City Council,Numerous
Peterborough,http://opendatacommunities.org/id/unitary-authority/peterborough,Peterborough City Council,More than one Service Area Category,More than one Service Division,Balance Sheet,03/06/2015 00:00,741527,5210.71,Balance Sheet,The Prudential Assurance Company Ltd,PENSIONS
Peterborough,http://opendatacommunities.org/id/unitary-authority/peterborough,Peterborough City Council,Adult Social Care,Split,Third Party Payments,03/06/2015 00:00,741575,2460,REVENUE,Park Vista Care Home,THIRD PARTY PAYMENTS - CONTRACT
Peterborough,http://opendatacommunities.org/id/unitary-authority/peterborough,Peterborough City Council,Adult Social Care,Split,Third Party Payments,03/06/2015 00:00,741576,2200,REVENUE,Park Vista Care Home,THIRD PARTY PAYMENTS - CONTRACT
Peterborough,http://opendatacommunities.org/id/unitary-authority/peterborough,Peterborough City Council,More than one Service Area Category,More than one Service Division,More than one Expenses Type,05/06/2015 00:00,695131,1850,REVENUE,City & Guilds of London Institute,PRINTING
Peterborough,http://opendatacommunities.org/id/unitary-authority/peterborough,Peterborough City Council,Adult Social Care,Older People,Supplies and Services,05/06/2015 00:00,715446,1229.28,REVENUE,Park Vista Care Home,RESIDENTIAL CARE
Peterborough,http://opendatacommunities.org/id/unitary-authority/peterborough,Peterborough City Council,Children's & Education Services - Children's Social Care,Children Looked After,Supplies and Services - Transfer Payments,05/06/2015 00:00,728818,8344,REVENUE,By The Bridge,BOARDING OUT ALLOWANCES
Peterborough,http://opendatacommunities.org/id/unitary-authority/peterborough,Peterborough City Council,Children's & Education Services - Children's Social Care,Other Children's & Families Services,Premises,05/06/2015 00:00,730842,3035.22,REVENUE,Stor-A-File Ltd,HIRED SERVICES
Peterborough,http://opendatacommunities.org/id/unitary-authority/peterborough,Peterborough City Council,Children's & Education Services - Children's Social Care,Children Looked After,Supplies and Services - Transfer Payments,05/06/2015 00:00,730961,8057.14,REVENUE,Twenty Four-Seven,BOARDING OUT ALLOWANCES
Peterborough,http://opendatacommunities.org/id/unitary-authority/peterborough,Peterborough City Council,Children's & Education Services - Children's Social Care,Children Looked After,Supplies and Services - Transfer Payments,05/06/2015 00:00,731199,3441.3,REVENUE,Foster Care Associates Ltd FCA,BOARDING OUT ALLOWANCES
Peterborough,http://opendatacommunities.org/id/unitary-authority/peterborough,Peterborough City Council,Children's & Education Services - Children's Social Care,Children Looked After,Supplies and Services - Transfer Payments,05/06/2015 00:00,731211,4154.22,REVENUE,Foster Care Associates Ltd FCA,BOARDING OUT ALLOWANCES
Peterborough,http://opendatacommunities.org/id/unitary-authority/peterborough,Peterborough City Council,Adult Social Care,Older People,Supplies and Services,05/06/2015 00:00,731755,38197.24,REVENUE,NHS Cambs & P'boro CCG (Clinical Commissioning Group),RESIDENTIAL CARE
Peterborough,http://opendatacommunities.org/id/unitary-authority/peterborough,Peterborough City Council,Children's & Education Services - Children's Social Care,Children Looked After,Supplies and Services - Transfer Payments,05/06/2015 00:00,733792,16673.57,REVENUE,Halliwell Homes Ltd,BOARDING OUT ALLOWANCES
Peterborough,http://opendatacommunities.org/id/unitary-authority/peterborough,Peterborough City Council,Children's & Education Services - Children's Social Care,Children Looked After,Supplies and Services - Transfer Payments,05/06/2015 00:00,734115,19197.9,REVENUE,Young Options College Ltd,BOARDING OUT ALLOWANCES
Peterborough,http://opendatacommunities.org/id/unitary-authority/peterborough,Peterborough City Council,Children's & Education Services - Children's Social Care,Children Looked After,Supplies and Services - Transfer Payments,05/06/2015 00:00,734125,19250.65,REVENUE,Young Options College Ltd,BOARDING OUT ALLOWANCES
Peterborough,http://opendatacommunities.org/id/unitary-authority/peterborough,Peterborough City Council,Children's & Education Services - Children's Social Care,More than one Service Division,Supplies and Services - Transfer Payments,05/06/2015 00:00,735218,20464.34,REVENUE,ABC Care and Education Ltd,BOARDING OUT ALLOWANCES
Peterborough,http://opendatacommunities.org/id/unitary-authority/peterborough,Peterborough City Council,Children's & Education Services - Children's Social Care,More than one Service Division,Supplies and Services - Transfer Payments,05/06/2015 00:00,736792,17050,REVENUE,Meadows Care Ltd,BOARDING OUT ALLOWANCES
Peterborough,http://opendatacommunities.org/id/unitary-authority/peterborough,Peterborough City Council,Children's & Education Services - Children's Social Care,Other Children's & Families Services,Employees,05/06/2015 00:00,737323,1075.32,REVENUE,Service Care Solutions Ltd,EXTERNAL TEMPORARY STAFF
Peterborough,http://opendatacommunities.org/id/unitary-authority/peterborough,Peterborough City Council,Support Services,Support Services,Supplies and Services,05/06/2015 00:00,737341,1435,REVENUE,Just for Jobs Ltd,CONSULTANTS FEES
Peterborough,http://opendatacommunities.org/id/unitary-authority/peterborough,Peterborough City Council,Highways and Transport Services,Parking Services,Supplies and Services,05/06/2015 00:00,738908,600,REVENUE,Access Independent Limited,ADMINISTRATION EXPENSES
Peterborough,http://opendatacommunities.org/id/unitary-authority/peterborough,Peterborough City Council,Children's & Education Services - Children's Social Care,Other Children's & Families Services,Supplies and Services,05/06/2015 00:00,739293,3315,REVENUE,David Carter,LEGAL COSTS
Peterborough,http://opendatacommunities.org/id/unitary-authority/peterborough,Peterborough City Council,Children's & Education Services - Children's Social Care,Other Children's & Families Services,Employees,05/06/2015 00:00,740017,2109,REVENUE,Sanctuary Personnel Ltd,EXTERNAL TEMPORARY STAFF
Peterborough,http://opendatacommunities.org/id/unitary-authority/peterborough,Peterborough City Council,Children's & Education Services - Children's Social Care,Other Children's & Families Services,Supplies and Services - Transfer Payments,05/06/2015 00:00,740390,1583.56,REVENUE,PC Homes,BOARDING OUT ALLOWANCES
Peterborough,http://opendatacommunities.org/id/unitary-authority/peterborough,Peterborough City Council,Children's & Education Services - Children's Social Care,Other Children's & Families Services,Supplies and Services - Transfer Payments,05/06/2015 00:00,740391,1583.56,REVENUE,PC Homes,BOARDING OUT ALLOWANCES
Peterborough,http://opendatacommunities.org/id/unitary-authority/peterborough,Peterborough City Council,Children's & Education Services - Education,Services to Young People,Supplies and Services,05/06/2015 00:00,740404,3950,REVENUE,Hilltop Outdoor Centre,PROGRAMMES
Peterborough,http://opendatacommunities.org/id/unitary-authority/peterborough,Peterborough City Council,More than one Service Area Category,More than one Service Division,More than one Expenses Type,05/06/2015 00:00,740761,1063.8,REVENUE,A2B Euro Cars,HIRED TRANSPORT
Peterborough,http://opendatacommunities.org/id/unitary-authority/peterborough,Peterborough City Council,Children's & Education Services - Children's Social Care,Children Looked After,Transport,05/06/2015 00:00,740762,1149.6,REVENUE,A2B Euro Cars,HIRED TRANSPORT
Peterborough,http://opendatacommunities.org/id/unitary-authority/peterborough,Peterborough City Council,More than one Service Area Category,More than one Service Division,More than one Expenses Type,05/06/2015 00:00,740763,738,REVENUE,A2B Euro Cars,HIRED TRANSPORT
Peterborough,http://opendatacommunities.org/id/unitary-authority/peterborough,Peterborough City Council,More than one Service Area Category,More than one Service Division,More than one Expenses Type,05/06/2015 00:00,740764,729.6,REVENUE,A2B Euro Cars,HIRED TRANSPORT
Peterborough,http://opendatacommunities.org/id/unitary-authority/peterborough,Peterborough City Council,Children's & Education Services - Children's Social Care,Other Children's & Families Services,Employees,05/06/2015 00:00,740846,1586.06,REVENUE,Sanctuary Personnel Ltd,EXTERNAL TEMPORARY STAFF
Peterborough,http://opendatacommunities.org/id/unitary-authority/peterborough,Peterborough City Council,Children's & Education Services - Children's Social Care,Other Children's & Families Services,Employees,05/06/2015 00:00,740850,1598.4,REVENUE,Sanctuary Personnel Ltd,EXTERNAL TEMPORARY STAFF
Peterborough,http://opendatacommunities.org/id/unitary-authority/peterborough,Peterborough City Council,Children's & Education Services - Children's Social Care,Other Children's & Families Services,Employees,05/06/2015 00:00,740855,-2147.82,REVENUE,Sanctuary Personnel Ltd,EXTERNAL TEMPORARY STAFF
Peterborough,http://opendatacommunities.org/id/unitary-authority/peterborough,Peterborough City Council,Adult Social Care,Older People,Supplies and Services,05/06/2015 00:00,740875,10284.68,REVENUE,Southwark Park Nursing Homes - Blenheim Care Centre,RESIDENTIAL CARE
Peterborough,http://opendatacommunities.org/id/unitary-authority/peterborough,Peterborough City Council,Adult Social Care,Adult Mental Health,Supplies and Services,05/06/2015 00:00,740880,11100,REVENUE,Brookdale Care,RESIDENTIAL CARE
Peterborough,http://opendatacommunities.org/id/unitary-authority/peterborough,Peterborough City Council,Adult Social Care,Adult Mental Health,Supplies and Services,05/06/2015 00:00,740885,11470,REVENUE,Brookdale Care,PROFESSIONAL SERVICES
Peterborough,http://opendatacommunities.org/id/unitary-authority/peterborough,Peterborough City Council,Children's & Education Services - Education,Sure Start Children's Centres / Flying Start and Early Years,Supplies and Services,05/06/2015 00:00,740886,6780,REVENUE,Happy Days Playgroup,GRANT PAYMENT
Peterborough,http://opendatacommunities.org/id/unitary-authority/peterborough,Peterborough City Council,Children's & Education Services - Education,All Schools - apportion across sectors,Supplies and Services,05/06/2015 00:00,740894,600,REVENUE,Broom Leys Primary School,GRANT PAYMENT
Peterborough,http://opendatacommunities.org/id/unitary-authority/peterborough,Peterborough City Council,Children's & Education Services - Education,All Schools - apportion across sectors,Supplies and Services,05/06/2015 00:00,740897,1200,REVENUE,Manshead School,GRANT PAYMENT
Peterborough,http://opendatacommunities.org/id/unitary-authority/peterborough,Peterborough City Council,Children's & Education Services - Education,All Schools - apportion across sectors,Supplies and Services,05/06/2015 00:00,740898,600,REVENUE,Deeping St Nicholas Primary School,GRANT PAYMENT
Peterborough,http://opendatacommunities.org/id/unitary-authority/peterborough,Peterborough City Council,Children's & Education Services - Education,All Schools - apportion across sectors,Supplies and Services,05/06/2015 00:00,740899,600,REVENUE,Farcet C.E. (C) Primary School,GRANT PAYMENT
Peterborough,http://opendatacommunities.org/id/unitary-authority/peterborough,Peterborough City Council,Children's & Education Services - Education,All Schools - apportion across sectors,Supplies and Services,05/06/2015 00:00,740901,600,REVENUE,Longsands Academy,GRANT PAYMENT
Peterborough,http://opendatacommunities.org/id/unitary-authority/peterborough,Peterborough City Council,Children's & Education Services - Education,All Schools - apportion across sectors,Supplies and Services,05/06/2015 00:00,740902,600,REVENUE,Lincoln Castle Academy,GRANT PAYMENT
Peterborough,http://opendatacommunities.org/id/unitary-authority/peterborough,Peterborough City Council,Children's & Education Services - Education,All Schools - apportion across sectors,Supplies and Services,05/06/2015 00:00,740903,600,REVENUE,Helpringham Primary School,GRANT PAYMENT
Peterborough,http://opendatacommunities.org/id/unitary-authority/peterborough,Peterborough City Council,Children's & Education Services - Education,All Schools - apportion across sectors,Supplies and Services,05/06/2015 00:00,740904,1200,REVENUE,Fourfields Community Primary School,GRANT PAYMENT
Peterborough,http://opendatacommunities.org/id/unitary-authority/peterborough,Peterborough City Council,Children's & Education Services - Education,All Schools - apportion across sectors,Supplies and Services,05/06/2015 00:00,740905,600,REVENUE,Market Deeping Community Primary School,GRANT PAYMENT
Peterborough,http://opendatacommunities.org/id/unitary-authority/peterborough,Peterborough City Council,Children's & Education Services - Education,All Schools - apportion across sectors,Supplies and Services,05/06/2015 00:00,740907,1200,REVENUE,Prince Rock Primary School,GRANT PAYMENT
Peterborough,http://opendatacommunities.org/id/unitary-authority/peterborough,Peterborough City Council,Children's & Education Services - Education,All Schools - apportion across sectors,Supplies and Services,05/06/2015 00:00,740910,600,REVENUE,Parkland Primary School,GRANT PAYMENT
Peterborough,http://opendatacommunities.org/id/unitary-authority/peterborough,Peterborough City Council,Children's & Education Services - Education,All Schools - apportion across sectors,Supplies and Services,05/06/2015 00:00,740911,600,REVENUE,Pinewood School,GRANT PAYMENT
Peterborough,http://opendatacommunities.org/id/unitary-authority/peterborough,Peterborough City Council,Children's & Education Services - Education,All Schools - apportion across sectors,Supplies and Services,05/06/2015 00:00,740912,600,REVENUE,Ramsey Community Junior School,GRANT PAYMENT
Peterborough,http://opendatacommunities.org/id/unitary-authority/peterborough,Peterborough City Council,Children's & Education Services - Education,All Schools - apportion across sectors,Supplies and Services,05/06/2015 00:00,741428,1200,REVENUE,Sir Harry Smith Community College,GRANT PAYMENT
Peterborough,http://opendatacommunities.org/id/unitary-authority/peterborough,Peterborough City Council,Children's & Education Services - Education,All Schools - apportion across sectors,Supplies and Services,05/06/2015 00:00,741429,600,REVENUE,Sawtry Junior School,GRANT PAYMENT
Peterborough,http://opendatacommunities.org/id/unitary-authority/peterborough,Peterborough City Council,Children's & Education Services - Education,All Schools - apportion across sectors,Supplies and Services,05/06/2015 00:00,741430,600,REVENUE,Soham Village College,GRANT PAYMENT
Peterborough,http://opendatacommunities.org/id/unitary-authority/peterborough,Peterborough City Council,Children's & Education Services - Education,All Schools - apportion across sectors,Supplies and Services,05/06/2015 00:00,741431,600,REVENUE,St Benedicts Catholic Primary School,GRANT PAYMENT
Peterborough,http://opendatacommunities.org/id/unitary-authority/peterborough,Peterborough City Council,Children's & Education Services - Education,All Schools - apportion across sectors,Supplies and Services,05/06/2015 00:00,741432,600,REVENUE,Sirius Academy,GRANT PAYMENT
Peterborough,http://opendatacommunities.org/id/unitary-authority/peterborough,Peterborough City Council,Children's & Education Services - Education,All Schools - apportion across sectors,Supplies and Services,05/06/2015 00:00,741443,600,REVENUE,The Wellington Academy,GRANT PAYMENT
Peterborough,http://opendatacommunities.org/id/unitary-authority/peterborough,Peterborough City Council,Children's & Education Services - Education,All Schools - apportion across sectors,Supplies and Services,05/06/2015 00:00,741448,600,REVENUE,Welshpool High School,GRANT PAYMENT
Peterborough,http://opendatacommunities.org/id/unitary-authority/peterborough,Peterborough City Council,Children's & Education Services - Children's Social Care,Children Looked After,Supplies and Services - Transfer Payments,05/06/2015 00:00,741460,-2384,REVENUE,By The Bridge,BOARDING OUT ALLOWANCES
Peterborough,http://opendatacommunities.org/id/unitary-authority/peterborough,Peterborough City Council,More than one Service Area Category,More than one Service Division,More than one Expenses Type,05/06/2015 00:00,741522,1594.96,REVENUE,Peterborough City Council,Numerous
Peterborough,http://opendatacommunities.org/id/unitary-authority/peterborough,Peterborough City Council,Adult Social Care,Split,Third Party Payments,05/06/2015 00:00,741577,1600,REVENUE,Park Vista Care Home,THIRD PARTY PAYMENTS - CONTRACT
Peterborough,http://opendatacommunities.org/id/unitary-authority/peterborough,Peterborough City Council,Adult Social Care,Split,Third Party Payments,05/06/2015 00:00,741578,1600,REVENUE,Park Vista Care Home,THIRD PARTY PAYMENTS - CONTRACT
Peterborough,http://opendatacommunities.org/id/unitary-authority/peterborough,Peterborough City Council,Adult Social Care,Split,Third Party Payments,05/06/2015 00:00,741581,6663.32,REVENUE,Care UK Homecare Ltd,THIRD PARTY PAYMENTS - CONTRACT
Peterborough,http://opendatacommunities.org/id/unitary-authority/peterborough,Peterborough City Council,Children's & Education Services - Children's Social Care,Children Looked After,Supplies and Services - Transfer Payments,05/06/2015 00:00,741582,3218.88,REVENUE,IAS TACT,BOARDING OUT ALLOWANCES
Peterborough,http://opendatacommunities.org/id/unitary-authority/peterborough,Peterborough City Council,Adult Social Care,Split,Third Party Payments,05/06/2015 00:00,741587,1776,REVENUE,Care UK Homecare Ltd,THIRD PARTY PAYMENTS - CONTRACT
Peterborough,http://opendatacommunities.org/id/unitary-authority/peterborough,Peterborough City Council,Children's & Education Services - Education,All Schools - apportion across sectors,Supplies and Services,05/06/2015 00:00,741592,600,REVENUE,William Lovell School,GRANT PAYMENT
Peterborough,http://opendatacommunities.org/id/unitary-authority/peterborough,Peterborough City Council,Highways and Transport Services,Structural Maintenance,Supplies and Services,05/06/2015 00:00,741721,13354.4,REVENUE,North Midland Construction PLC,FOOTWAYS
Peterborough,http://opendatacommunities.org/id/unitary-authority/peterborough,Peterborough City Council,Housing Services,Homelessness,Supplies and Services,05/06/2015 00:00,741763,1650,REVENUE,Redacted Personal Data,FINANCIAL ASSISTANCE
Peterborough,http://opendatacommunities.org/id/unitary-authority/peterborough,Peterborough City Council,Housing Services,Homelessness,Supplies and Services,05/06/2015 00:00,741765,1100,REVENUE,Peterborough City Letting (PCL),FINANCIAL ASSISTANCE
Peterborough,http://opendatacommunities.org/id/unitary-authority/peterborough,Peterborough City Council,Children's & Education Services - Education,All Schools - apportion across sectors,Supplies and Services,05/06/2015 00:00,741773,600,REVENUE,Ashton C of E Middle School,GRANT PAYMENT
Peterborough,http://opendatacommunities.org/id/unitary-authority/peterborough,Peterborough City Council,Capital,Capital,Capital Pending Update to BS,05/06/2015 00:00,741775,150000,CAPITAL,Axiom Housing Association,GRANT PAYMENT
Peterborough,http://opendatacommunities.org/id/unitary-authority/peterborough,Peterborough City Council,Children's & Education Services - Education,All Schools - apportion across sectors,Supplies and Services,05/06/2015 00:00,741796,600,REVENUE,Longsands Academy,GRANT PAYMENT
Peterborough,http://opendatacommunities.org/id/unitary-authority/peterborough,Peterborough City Council,Children's & Education Services - Education,Sure Start Children's Centres / Flying Start and Early Years,Supplies and Services,05/06/2015 00:00,741813,7309,REVENUE,Stanground PreSchool,GRANT PAYMENT
Peterborough,http://opendatacommunities.org/id/unitary-authority/peterborough,Peterborough City Council,Children's & Education Services - Children's Social Care,Other Children's & Families Services,Supplies and Services - Transfer Payments,05/06/2015 00:00,741817,2069.07,REVENUE,Redacted Personal Data,BOARDING OUT ALLOWANCES
Peterborough,http://opendatacommunities.org/id/unitary-authority/peterborough,Peterborough City Council,Planning Services,Planning Policy,Supplies and Services,05/06/2015 00:00,741825,3317,REVENUE,Cook Hammond & Kell (CHK Ltd),PRINTING
Peterborough,http://opendatacommunities.org/id/unitary-authority/peterborough,Peterborough City Council,More than one Service Area Category,More than one Service Division,More than one Expenses Type,05/06/2015 00:00,741840,537.99,REVENUE,Peterborough Registrars Office Imprest,Numerous
Peterborough,http://opendatacommunities.org/id/unitary-authority/peterborough,Peterborough City Council,Children's & Education Services - Education,Other Education and Community Budget,Supplies and Services - Transfer Payments,05/06/2015 00:00,741846,2645,REVENUE,Kirkstone House School,BOARDING OUT ALLOWANCES
Peterborough,http://opendatacommunities.org/id/unitary-authority/peterborough,Peterborough City Council,Children's & Education Services - Children's Social Care,Children Looked After,Supplies and Services,05/06/2015 00:00,741850,4592,REVENUE,Greystar Europe Holdings Ltd re Athena - Wembley(Stu) - Rent,COURSE FEES
Peterborough,http://opendatacommunities.org/id/unitary-authority/peterborough,Peterborough City Council,Children's & Education Services - Education,Secondary,Employees,05/06/2015 00:00,741859,5376,REVENUE,Vision for Education Ltd,SUPPLY TEACHERS
Peterborough,http://opendatacommunities.org/id/unitary-authority/peterborough,Peterborough City Council,Adult Social Care,Adult Learning Disabilities,Supplies and Services,05/06/2015 00:00,741920,6282.2,REVENUE,Atlas Care Services Ltd,HOME CARE
Peterborough,http://opendatacommunities.org/id/unitary-authority/peterborough,Peterborough City Council,Adult Social Care,Older People,Supplies and Services,05/06/2015 00:00,741921,1113.45,REVENUE,Atlas Care Services Ltd,HOME CARE
Peterborough,http://opendatacommunities.org/id/unitary-authority/peterborough,Peterborough City Council,Adult Social Care,Older People,Supplies and Services,05/06/2015 00:00,741922,737.09,REVENUE,Atlas Care Services Ltd,HOME CARE
Peterborough,http://opendatacommunities.org/id/unitary-authority/peterborough,Peterborough City Council,Adult Social Care,Older People,Supplies and Services,05/06/2015 00:00,741924,1931.53,REVENUE,Atlas Care Services Ltd,HOME CARE
Peterborough,http://opendatacommunities.org/id/unitary-authority/peterborough,Peterborough City Council,Adult Social Care,Older People,Supplies and Services,05/06/2015 00:00,741926,719.44,REVENUE,Atlas Care Services Ltd,HOME CARE
Peterborough,http://opendatacommunities.org/id/unitary-authority/peterborough,Peterborough City Council,Adult Social Care,Adult Learning Disabilities,Supplies and Services,05/06/2015 00:00,741927,827,REVENUE,Atlas Care Services Ltd,HOME CARE
Peterborough,http://opendatacommunities.org/id/unitary-authority/peterborough,Peterborough City Council,Adult Social Care,Older People,Supplies and Services,05/06/2015 00:00,741931,824.4,REVENUE,Cross Keys Homes,HOME CARE
Peterborough,http://opendatacommunities.org/id/unitary-authority/peterborough,Peterborough City Council,Adult Social Care,Older People,Supplies and Services,05/06/2015 00:00,741932,917.6,REVENUE,Cross Keys Homes,HOME CARE
Peterborough,http://opendatacommunities.org/id/unitary-authority/peterborough,Peterborough City Council,Adult Social Care,Older People,Supplies and Services,05/06/2015 00:00,741944,930.8,REVENUE,Cross Keys Homes,HOME CARE
Peterborough,http://opendatacommunities.org/id/unitary-authority/peterborough,Peterborough City Council,Adult Social Care,Older People,Supplies and Services,05/06/2015 00:00,741945,557.7,REVENUE,Atlas Care Services Ltd,HOME CARE
Peterborough,http://opendatacommunities.org/id/unitary-authority/peterborough,Peterborough City Council,Adult Social Care,Older People,Supplies and Services,05/06/2015 00:00,741946,500.2,REVENUE,Cross Keys Homes,HOME CARE
Peterborough,http://opendatacommunities.org/id/unitary-authority/peterborough,Peterborough City Council,Adult Social Care,Older People,Supplies and Services,05/06/2015 00:00,741947,781.47,REVENUE,Atlas Care Services Ltd,HOME CARE
Peterborough,http://opendatacommunities.org/id/unitary-authority/peterborough,Peterborough City Council,Adult Social Care,Older People,Supplies and Services,05/06/2015 00:00,741949,1103.32,REVENUE,Atlas Care Services Ltd,HOME CARE
Peterborough,http://opendatacommunities.org/id/unitary-authority/peterborough,Peterborough City Council,Adult Social Care,Older People,Supplies and Services,05/06/2015 00:00,741951,765.4,REVENUE,Cross Keys Homes,HOME CARE
Peterborough,http://opendatacommunities.org/id/unitary-authority/peterborough,Peterborough City Council,Adult Social Care,Older People,Supplies and Services,05/06/2015 00:00,741961,839.4,REVENUE,Cross Keys Homes,HOME CARE
Peterborough,http://opendatacommunities.org/id/unitary-authority/peterborough,Peterborough City Council,Adult Social Care,Older People,Supplies and Services,05/06/2015 00:00,741962,779.42,REVENUE,Atlas Care Services Ltd,HOME CARE
Peterborough,http://opendatacommunities.org/id/unitary-authority/peterborough,Peterborough City Council,Adult Social Care,Older People,Supplies and Services,05/06/2015 00:00,741967,748.4,REVENUE,Cross Keys Homes,HOME CARE
Peterborough,http://opendatacommunities.org/id/unitary-authority/peterborough,Peterborough City Council,Adult Social Care,Older People,Supplies and Services,05/06/2015 00:00,741975,1221.66,REVENUE,Atlas Care Services Ltd,HOME CARE
Peterborough,http://opendatacommunities.org/id/unitary-authority/peterborough,Peterborough City Council,Adult Social Care,Older People,Supplies and Services,05/06/2015 00:00,741976,999.75,REVENUE,Atlas Care Services Ltd,HOME CARE
Peterborough,http://opendatacommunities.org/id/unitary-authority/peterborough,Peterborough City Council,Adult Social Care,Older People,Supplies and Services,05/06/2015 00:00,741977,855.69,REVENUE,Atlas Care Services Ltd,HOME CARE
Peterborough,http://opendatacommunities.org/id/unitary-authority/peterborough,Peterborough City Council,Adult Social Care,Older People,Supplies and Services,05/06/2015 00:00,741981,1099.13,REVENUE,Atlas Care Services Ltd,HOME CARE
Peterborough,http://opendatacommunities.org/id/unitary-authority/peterborough,Peterborough City Council,Adult Social Care,Older People,Supplies and Services,05/06/2015 00:00,741982,560.6,REVENUE,Atlas Care Services Ltd,HOME CARE
Peterborough,http://opendatacommunities.org/id/unitary-authority/peterborough,Peterborough City Council,Adult Social Care,Older People,Supplies and Services,05/06/2015 00:00,741984,734.23,REVENUE,Atlas Care Services Ltd,HOME CARE
Peterborough,http://opendatacommunities.org/id/unitary-authority/peterborough,Peterborough City Council,Adult Social Care,Older People,Supplies and Services,05/06/2015 00:00,741985,697.19,REVENUE,Atlas Care Services Ltd,HOME CARE
Peterborough,http://opendatacommunities.org/id/unitary-authority/peterborough,Peterborough City Council,Adult Social Care,Older People,Supplies and Services,05/06/2015 00:00,741988,2960.64,REVENUE,Atlas Care Services Ltd,HOME CARE
Peterborough,http://opendatacommunities.org/id/unitary-authority/peterborough,Peterborough City Council,Adult Social Care,Older People,Supplies and Services,05/06/2015 00:00,741992,934.98,REVENUE,Atlas Care Services Ltd,HOME CARE
Peterborough,http://opendatacommunities.org/id/unitary-authority/peterborough,Peterborough City Council,Adult Social Care,Older People,Supplies and Services,05/06/2015 00:00,741994,639.05,REVENUE,Atlas Care Services Ltd,HOME CARE
Peterborough,http://opendatacommunities.org/id/unitary-authority/peterborough,Peterborough City Council,Adult Social Care,Older People,Supplies and Services,05/06/2015 00:00,741995,775.5,REVENUE,Atlas Care Services Ltd,HOME CARE
Peterborough,http://opendatacommunities.org/id/unitary-authority/peterborough,Peterborough City Council,Adult Social Care,Older People,Supplies and Services,05/06/2015 00:00,742000,531.68,REVENUE,Atlas Care Services Ltd,HOME CARE
Peterborough,http://opendatacommunities.org/id/unitary-authority/peterborough,Peterborough City Council,Adult Social Care,Older People,Supplies and Services,05/06/2015 00:00,742004,641.1,REVENUE,Atlas Care Services Ltd,HOME CARE
Peterborough,http://opendatacommunities.org/id/unitary-authority/peterborough,Peterborough City Council,Adult Social Care,Older People,Supplies and Services,05/06/2015 00:00,742005,649.98,REVENUE,Atlas Care Services Ltd,HOME CARE
Peterborough,http://opendatacommunities.org/id/unitary-authority/peterborough,Peterborough City Council,Adult Social Care,Older People,Supplies and Services,05/06/2015 00:00,742009,553.99,REVENUE,Atlas Care Services Ltd,HOME CARE
Peterborough,http://opendatacommunities.org/id/unitary-authority/peterborough,Peterborough City Council,Adult Social Care,Older People,Supplies and Services,05/06/2015 00:00,742011,2402.09,REVENUE,Atlas Care Services Ltd,HOME CARE
Peterborough,http://opendatacommunities.org/id/unitary-authority/peterborough,Peterborough City Council,More than one Service Area Category,More than one Service Division,Premises,05/06/2015 00:00,742205,2979.53,REVENUE,Anglian Water,WATER
Peterborough,http://opendatacommunities.org/id/unitary-authority/peterborough,Peterborough City Council,More than one Service Area Category,More than one Service Division,Premises,05/06/2015 00:00,742209,6493.17,REVENUE,Anglian Water,WATER
Peterborough,http://opendatacommunities.org/id/unitary-authority/peterborough,Peterborough City Council,More than one Service Area Category,More than one Service Division,Premises,05/06/2015 00:00,742236,33924.38,REVENUE,Southern Electric,ELECTRICITY
Peterborough,http://opendatacommunities.org/id/unitary-authority/peterborough,Peterborough City Council,Children's & Education Services - Education,Secondary,Premises,05/06/2015 00:00,742238,8861.04,REVENUE,Eastern Shires Purchasing Organisation,GAS
Peterborough,http://opendatacommunities.org/id/unitary-authority/peterborough,Peterborough City Council,More than one Service Area Category,More than one Service Division,Premises,05/06/2015 00:00,742242,4038.03,REVENUE,Eastern Shires Purchasing Organisation,GAS
Peterborough,http://opendatacommunities.org/id/unitary-authority/peterborough,Peterborough City Council,Cultural and Related Services,More than one Service Division,Premises,05/06/2015 00:00,742247,2804.27,REVENUE,Anglian Water,WATER
Peterborough,http://opendatacommunities.org/id/unitary-authority/peterborough,Peterborough City Council,Housing Services,Homelessness,Supplies and Services,05/06/2015 00:00,742275,1600,REVENUE,Woodcock Holmes,FINANCIAL ASSISTANCE
Peterborough,http://opendatacommunities.org/id/unitary-authority/peterborough,Peterborough City Council,Housing Services,Homelessness,Supplies and Services,05/06/2015 00:00,742276,1200,REVENUE,Woodcock Holmes,FINANCIAL ASSISTANCE
Peterborough,http://opendatacommunities.org/id/unitary-authority/peterborough,Peterborough City Council,More than one Service Area Category,More than one Service Division,Premises,05/06/2015 00:00,742289,44329.88,REVENUE,EDF Energy Networks Ltd,ELECTRICITY
Peterborough,http://opendatacommunities.org/id/unitary-authority/peterborough,Peterborough City Council,More than one Service Area Category,More than one Service Division,Premises,05/06/2015 00:00,742292,14848.46,REVENUE,EDF Energy Networks Ltd,ELECTRICITY
Peterborough,http://opendatacommunities.org/id/unitary-authority/peterborough,Peterborough City Council,Adult Social Care,Adult Learning Disabilities,Supplies and Services,08/06/2015 00:00,686127,1879.86,REVENUE,THE TUDORS,RESIDENTIAL CARE
Peterborough,http://opendatacommunities.org/id/unitary-authority/peterborough,Peterborough City Council,Adult Social Care,Adult Learning Disabilities,Supplies and Services,08/06/2015 00:00,700975,1548.12,REVENUE,THE TUDORS,RESIDENTIAL CARE
Peterborough,http://opendatacommunities.org/id/unitary-authority/peterborough,Peterborough City Council,Adult Social Care,Adult Learning Disabilities,Supplies and Services,08/06/2015 00:00,719387,58074.54,REVENUE,Kisimul Group Ltd,RESIDENTIAL CARE
Peterborough,http://opendatacommunities.org/id/unitary-authority/peterborough,Peterborough City Council,Public Health,More than one Service Division,Third Party Payments,08/06/2015 00:00,728903,950.4,REVENUE,SteadyGo Limited,THIRD PARTY PAYMENTS - CONTRACT
Peterborough,http://opendatacommunities.org/id/unitary-authority/peterborough,Peterborough City Council,Children's & Education Services - Children's Social Care,Children Looked After,Supplies and Services,08/06/2015 00:00,731325,4651.2,REVENUE,Stanley Security Solutions,HIRED SERVICES
Peterborough,http://opendatacommunities.org/id/unitary-authority/peterborough,Peterborough City Council,More than one Service Area Category,More than one Service Division,Balance Sheet,08/06/2015 00:00,733418,8093.27,Balance Sheet,Redacted Personal Data,REFUNDS
Peterborough,http://opendatacommunities.org/id/unitary-authority/peterborough,Peterborough City Council,Support Services,Support Services,Supplies and Services,08/06/2015 00:00,736715,612,REVENUE,Wilks Head & Eve,VALUATIONS
Peterborough,http://opendatacommunities.org/id/unitary-authority/peterborough,Peterborough City Council,Adult Social Care,Social Care Activities,Employees,08/06/2015 00:00,736716,1188,REVENUE,SWP Consulting,EXTERNAL TEMPORARY STAFF
Peterborough,http://opendatacommunities.org/id/unitary-authority/peterborough,Peterborough City Council,Deficit/(Surplus) on Trading Undertakings,Trading Account Surpluses & Deficits,Supplies and Services,08/06/2015 00:00,736720,1368,REVENUE,Westfield Patterns,ITEMS FOR RESALE
Peterborough,http://opendatacommunities.org/id/unitary-authority/peterborough,Peterborough City Council,Deficit/(Surplus) on Trading Undertakings,Trading Account Surpluses & Deficits,Premises,08/06/2015 00:00,736721,600,REVENUE,Barker Storey Matthews,SECURITY REPAIRS
Peterborough,http://opendatacommunities.org/id/unitary-authority/peterborough,Peterborough City Council,Adult Social Care,Split,Third Party Payments,08/06/2015 00:00,737335,1366.47,REVENUE,Fins Care Ltd t/a St Margarets Rest Home,THIRD PARTY PAYMENTS - CONTRACT
Peterborough,http://opendatacommunities.org/id/unitary-authority/peterborough,Peterborough City Council,Adult Social Care,Split,Third Party Payments,08/06/2015 00:00,737339,1821.96,REVENUE,Fins Care Ltd t/a St Margarets Rest Home,THIRD PARTY PAYMENTS - CONTRACT
Peterborough,http://opendatacommunities.org/id/unitary-authority/peterborough,Peterborough City Council,Highways and Transport Services,Traffic management & Road Safety,Supplies and Services,08/06/2015 00:00,737442,7636.62,REVENUE,Telent Technology Services Ltd,CONTRACTORS
Peterborough,http://opendatacommunities.org/id/unitary-authority/peterborough,Peterborough City Council,Support Services,Support Services,Supplies and Services,08/06/2015 00:00,737444,876,REVENUE,Fastsigns Peterborough,PRINTING
Peterborough,http://opendatacommunities.org/id/unitary-authority/peterborough,Peterborough City Council,Environmental and Regulatory Services,Waste Collection,Supplies and Services,08/06/2015 00:00,737476,4270.08,REVENUE,Glasdon UK Ltd,SPECIAL PROJECTS
Peterborough,http://opendatacommunities.org/id/unitary-authority/peterborough,Peterborough City Council,Deficit/(Surplus) on Trading Undertakings,Trading Account Surpluses & Deficits,Supplies and Services,08/06/2015 00:00,737484,1945.44,REVENUE,Perkins Engines Co Ltd,ITEMS FOR RESALE
Peterborough,http://opendatacommunities.org/id/unitary-authority/peterborough,Peterborough City Council,Children's & Education Services - Children's Social Care,Children Looked After,Supplies and Services - Transfer Payments,08/06/2015 00:00,737493,16806.43,REVENUE,Care Focus Ltd,BOARDING OUT ALLOWANCES
Peterborough,http://opendatacommunities.org/id/unitary-authority/peterborough,Peterborough City Council,Housing Services,Homelessness,Supplies and Services,08/06/2015 00:00,737496,857.5,REVENUE,DA Rosalia Hotel,HOMELESSNESS BED AND BREAKFAST
Peterborough,http://opendatacommunities.org/id/unitary-authority/peterborough,Peterborough City Council,Housing Services,Homelessness,Supplies and Services,08/06/2015 00:00,737500,847.35,REVENUE,DA Rosalia Hotel,HOMELESSNESS BED AND BREAKFAST
Peterborough,http://opendatacommunities.org/id/unitary-authority/peterborough,Peterborough City Council,Housing Services,Homelessness,Supplies and Services,08/06/2015 00:00,737513,918.75,REVENUE,DA Rosalia Hotel,HOMELESSNESS BED AND BREAKFAST
Peterborough,http://opendatacommunities.org/id/unitary-authority/peterborough,Peterborough City Council,Support Services,Support Services,Supplies and Services,08/06/2015 00:00,737526,693,REVENUE,Everprint Ltd,PRINTING
Peterborough,http://opendatacommunities.org/id/unitary-authority/peterborough,Peterborough City Council,Capital,Capital,Capital Pending Update to BS,08/06/2015 00:00,737534,36631.32,CAPITAL,Clegg Construction Ltd,BUILDING AND SITE WORKS
Peterborough,http://opendatacommunities.org/id/unitary-authority/peterborough,Peterborough City Council,Housing Services,Homelessness,Supplies and Services,08/06/2015 00:00,737536,561.5,REVENUE,DA Rosalia Hotel,HOMELESSNESS BED AND BREAKFAST
Peterborough,http://opendatacommunities.org/id/unitary-authority/peterborough,Peterborough City Council,Deficit/(Surplus) on Trading Undertakings,Trading Account Surpluses & Deficits,Supplies and Services,08/06/2015 00:00,737564,5880,REVENUE,Wilks Head & Eve,VALUATIONS
Peterborough,http://opendatacommunities.org/id/unitary-authority/peterborough,Peterborough City Council,Children's & Education Services - Children's Social Care,Children Looked After,Supplies and Services,08/06/2015 00:00,737575,4049,REVENUE,Ofsted,LICENCES
Peterborough,http://opendatacommunities.org/id/unitary-authority/peterborough,Peterborough City Council,Court Services,Coroner's Court Service,More than one Expenses Type,08/06/2015 00:00,737702,2611.2,REVENUE,Redacted Personal Data,POST MORTEM CHARGES
Peterborough,http://opendatacommunities.org/id/unitary-authority/peterborough,Peterborough City Council,Deficit/(Surplus) on Trading Undertakings,Trading Account Surpluses & Deficits,Supplies and Services,08/06/2015 00:00,737932,1200,REVENUE,Wilks Head & Eve,VALUATIONS
Peterborough,http://opendatacommunities.org/id/unitary-authority/peterborough,Peterborough City Council,Adult Social Care,Older People,Supplies and Services,08/06/2015 00:00,738083,1282.6,REVENUE,St Georges Glatton Hall,RESIDENTIAL CARE
Peterborough,http://opendatacommunities.org/id/unitary-authority/peterborough,Peterborough City Council,Support Services,Support Services,Employees,08/06/2015 00:00,738085,1587.3,REVENUE,Sellick Partnership Group Limited,EXTERNAL TEMPORARY STAFF
Peterborough,http://opendatacommunities.org/id/unitary-authority/peterborough,Peterborough City Council,Support Services,Support Services,Employees,08/06/2015 00:00,738087,1242,REVENUE,Sellick Partnership Group Limited,EXTERNAL TEMPORARY STAFF
Peterborough,http://opendatacommunities.org/id/unitary-authority/peterborough,Peterborough City Council,Adult Social Care,Adult Learning Disabilities,Supplies and Services,08/06/2015 00:00,738203,14723.92,REVENUE,WESTWARD CARE HOMES LTD (Westward Healthcare),RESIDENTIAL CARE
Peterborough,http://opendatacommunities.org/id/unitary-authority/peterborough,Peterborough City Council,Deficit/(Surplus) on Trading Undertakings,Trading Account Surpluses & Deficits,Supplies and Services,08/06/2015 00:00,738238,643.82,REVENUE,Safetykleen UK Ltd,CLEANING
Peterborough,http://opendatacommunities.org/id/unitary-authority/peterborough,Peterborough City Council,More than one Service Area Category,More than one Service Division,Supplies and Services,08/06/2015 00:00,738297,1699,REVENUE,Whistl London Ltd,POSTAGE
Peterborough,http://opendatacommunities.org/id/unitary-authority/peterborough,Peterborough City Council,Adult Social Care,Older People,Supplies and Services,08/06/2015 00:00,738857,1284.64,REVENUE,Bondcare,RESIDENTIAL CARE
Peterborough,http://opendatacommunities.org/id/unitary-authority/peterborough,Peterborough City Council,Environmental and Regulatory Services,Waste Collection,Supplies and Services,08/06/2015 00:00,738861,722.18,REVENUE,Augean South Ltd,WASTE DISPOSAL
Peterborough,http://opendatacommunities.org/id/unitary-authority/peterborough,Peterborough City Council,Adult Social Care,Adult Learning Disabilities,Supplies and Services,08/06/2015 00:00,738862,1885.6,REVENUE,THE LODGE TRUST,RESIDENTIAL CARE
Peterborough,http://opendatacommunities.org/id/unitary-authority/peterborough,Peterborough City Council,Children's & Education Services - Education,Secondary,Transport,08/06/2015 00:00,738929,1400,REVENUE,Stagecoach in Peterborough,HIRED TRANSPORT
Peterborough,http://opendatacommunities.org/id/unitary-authority/peterborough,Peterborough City Council,Children's & Education Services - Children's Social Care,Safeguarding Children and Young People Services,Supplies and Services,08/06/2015 00:00,738931,1400,REVENUE,Stagecoach in Peterborough,FINANCIAL ASSISTANCE
Peterborough,http://opendatacommunities.org/id/unitary-authority/peterborough,Peterborough City Council,Children's & Education Services - Children's Social Care,Children Looked After,Supplies and Services - Transfer Payments,08/06/2015 00:00,739303,3620.8,REVENUE,Archway Care Ltd,BOARDING OUT ALLOWANCES
Peterborough,http://opendatacommunities.org/id/unitary-authority/peterborough,Peterborough City Council,Children's & Education Services - Children's Social Care,Children Looked After,Supplies and Services - Transfer Payments,08/06/2015 00:00,739305,3620.8,REVENUE,Archway Care Ltd,BOARDING OUT ALLOWANCES
Peterborough,http://opendatacommunities.org/id/unitary-authority/peterborough,Peterborough City Council,Children's & Education Services - Children's Social Care,Children Looked After,Supplies and Services - Transfer Payments,08/06/2015 00:00,739306,3620.8,REVENUE,Archway Care Ltd,BOARDING OUT ALLOWANCES
Peterborough,http://opendatacommunities.org/id/unitary-authority/peterborough,Peterborough City Council,Deficit/(Surplus) on Trading Undertakings,Trading Account Surpluses & Deficits,Supplies and Services,08/06/2015 00:00,739351,1914,REVENUE,Barron Clark Castings Ltd,ITEMS FOR RESALE
Peterborough,http://opendatacommunities.org/id/unitary-authority/peterborough,Peterborough City Council,Deficit/(Surplus) on Trading Undertakings,Trading Account Surpluses & Deficits,Supplies and Services,08/06/2015 00:00,739356,8994,REVENUE,Barron Clark Castings Ltd,ITEMS FOR RESALE
Peterborough,http://opendatacommunities.org/id/unitary-authority/peterborough,Peterborough City Council,Deficit/(Surplus) on Trading Undertakings,Trading Account Surpluses & Deficits,Supplies and Services,08/06/2015 00:00,739358,856.46,REVENUE,Barron Clark Castings Ltd,ITEMS FOR RESALE
Peterborough,http://opendatacommunities.org/id/unitary-authority/peterborough,Peterborough City Council,Deficit/(Surplus) on Trading Undertakings,Trading Account Surpluses & Deficits,Supplies and Services,08/06/2015 00:00,739359,8994,REVENUE,Barron Clark Castings Ltd,ITEMS FOR RESALE
Peterborough,http://opendatacommunities.org/id/unitary-authority/peterborough,Peterborough City Council,Deficit/(Surplus) on Trading Undertakings,Trading Account Surpluses & Deficits,Supplies and Services,08/06/2015 00:00,739360,564.53,REVENUE,Barron Clark Castings Ltd,ITEMS FOR RESALE
Peterborough,http://opendatacommunities.org/id/unitary-authority/peterborough,Peterborough City Council,Adult Social Care,Split,Premises,08/06/2015 00:00,739419,864,REVENUE,Cross Keys Homes,HIRE OF PREMISES
Peterborough,http://opendatacommunities.org/id/unitary-authority/peterborough,Peterborough City Council,Adult Social Care,Older People,Supplies and Services,08/06/2015 00:00,739565,573.87,REVENUE,Sagecare,HOME CARE
Peterborough,http://opendatacommunities.org/id/unitary-authority/peterborough,Peterborough City Council,Adult Social Care,Older People,Supplies and Services,08/06/2015 00:00,739566,576.3,REVENUE,Sagecare,HOME CARE
Peterborough,http://opendatacommunities.org/id/unitary-authority/peterborough,Peterborough City Council,Adult Social Care,Older People,Supplies and Services,08/06/2015 00:00,739570,590.43,REVENUE,Sagecare,HOME CARE
Peterborough,http://opendatacommunities.org/id/unitary-authority/peterborough,Peterborough City Council,Adult Social Care,Older People,Supplies and Services,08/06/2015 00:00,739575,591.13,REVENUE,Sagecare,HOME CARE
Peterborough,http://opendatacommunities.org/id/unitary-authority/peterborough,Peterborough City Council,Adult Social Care,Older People,Supplies and Services,08/06/2015 00:00,739576,655.31,REVENUE,Sagecare,HOME CARE
Peterborough,http://opendatacommunities.org/id/unitary-authority/peterborough,Peterborough City Council,Adult Social Care,Older People,Supplies and Services,08/06/2015 00:00,739578,571.89,REVENUE,Sagecare,HOME CARE
Peterborough,http://opendatacommunities.org/id/unitary-authority/peterborough,Peterborough City Council,Adult Social Care,Older People,Supplies and Services,08/06/2015 00:00,739585,613.7,REVENUE,Sagecare,HOME CARE
Peterborough,http://opendatacommunities.org/id/unitary-authority/peterborough,Peterborough City Council,Adult Social Care,Older People,Supplies and Services,08/06/2015 00:00,739588,862.08,REVENUE,Sagecare,HOME CARE
Peterborough,http://opendatacommunities.org/id/unitary-authority/peterborough,Peterborough City Council,Adult Social Care,Older People,Supplies and Services,08/06/2015 00:00,739591,1484.82,REVENUE,Sagecare,HOME CARE
Peterborough,http://opendatacommunities.org/id/unitary-authority/peterborough,Peterborough City Council,Adult Social Care,Older People,Supplies and Services,08/06/2015 00:00,739593,809.7,REVENUE,Sagecare,HOME CARE
Peterborough,http://opendatacommunities.org/id/unitary-authority/peterborough,Peterborough City Council,Adult Social Care,Adult Learning Disabilities,Supplies and Services,08/06/2015 00:00,739598,1291.92,REVENUE,Sagecare,HOME CARE
Peterborough,http://opendatacommunities.org/id/unitary-authority/peterborough,Peterborough City Council,Adult Social Care,Older People,Supplies and Services,08/06/2015 00:00,739603,997.68,REVENUE,Sagecare,HOME CARE
Peterborough,http://opendatacommunities.org/id/unitary-authority/peterborough,Peterborough City Council,Adult Social Care,Older People,Supplies and Services,08/06/2015 00:00,739604,1655.56,REVENUE,Sagecare,HOME CARE
Peterborough,http://opendatacommunities.org/id/unitary-authority/peterborough,Peterborough City Council,Adult Social Care,Older People,Supplies and Services,08/06/2015 00:00,739607,662.53,REVENUE,Sagecare,HOME CARE
Peterborough,http://opendatacommunities.org/id/unitary-authority/peterborough,Peterborough City Council,Adult Social Care,Older People,Supplies and Services,08/06/2015 00:00,739614,960.07,REVENUE,Sagecare,HOME CARE
Peterborough,http://opendatacommunities.org/id/unitary-authority/peterborough,Peterborough City Council,Adult Social Care,Older People,Supplies and Services,08/06/2015 00:00,739616,631.47,REVENUE,Sagecare,HOME CARE
Peterborough,http://opendatacommunities.org/id/unitary-authority/peterborough,Peterborough City Council,Adult Social Care,Older People,Supplies and Services,08/06/2015 00:00,739617,1401.93,REVENUE,Sagecare,HOME CARE
Peterborough,http://opendatacommunities.org/id/unitary-authority/peterborough,Peterborough City Council,Adult Social Care,Older People,Supplies and Services,08/06/2015 00:00,739623,535.11,REVENUE,Sagecare,HOME CARE
Peterborough,http://opendatacommunities.org/id/unitary-authority/peterborough,Peterborough City Council,Adult Social Care,Older People,Supplies and Services,08/06/2015 00:00,739626,675.91,REVENUE,Sagecare,HOME CARE
Peterborough,http://opendatacommunities.org/id/unitary-authority/peterborough,Peterborough City Council,Adult Social Care,Older People,Supplies and Services,08/06/2015 00:00,739650,517.76,REVENUE,Sagecare,HOME CARE
Peterborough,http://opendatacommunities.org/id/unitary-authority/peterborough,Peterborough City Council,Adult Social Care,Older People,Supplies and Services,08/06/2015 00:00,739652,511.47,REVENUE,Sagecare,HOME CARE
Peterborough,http://opendatacommunities.org/id/unitary-authority/peterborough,Peterborough City Council,Adult Social Care,Older People,Supplies and Services,08/06/2015 00:00,739660,731.07,REVENUE,Sagecare,HOME CARE
Peterborough,http://opendatacommunities.org/id/unitary-authority/peterborough,Peterborough City Council,Adult Social Care,Older People,Supplies and Services,08/06/2015 00:00,739668,511.05,REVENUE,Sagecare,HOME CARE
Peterborough,http://opendatacommunities.org/id/unitary-authority/peterborough,Peterborough City Council,Adult Social Care,Older People,Supplies and Services,08/06/2015 00:00,739670,1617.36,REVENUE,Sagecare,HOME CARE
Peterborough,http://opendatacommunities.org/id/unitary-authority/peterborough,Peterborough City Council,Adult Social Care,Older People,Supplies and Services,08/06/2015 00:00,739671,666.15,REVENUE,Sagecare,HOME CARE
Peterborough,http://opendatacommunities.org/id/unitary-authority/peterborough,Peterborough City Council,Adult Social Care,Older People,Supplies and Services,08/06/2015 00:00,739674,521.94,REVENUE,Sagecare,HOME CARE
Peterborough,http://opendatacommunities.org/id/unitary-authority/peterborough,Peterborough City Council,Adult Social Care,Older People,Supplies and Services,08/06/2015 00:00,739676,513.51,REVENUE,Sagecare,HOME CARE
Peterborough,http://opendatacommunities.org/id/unitary-authority/peterborough,Peterborough City Council,Adult Social Care,Older People,Supplies and Services,08/06/2015 00:00,739679,603.95,REVENUE,Sagecare,HOME CARE
Peterborough,http://opendatacommunities.org/id/unitary-authority/peterborough,Peterborough City Council,Adult Social Care,Older People,Supplies and Services,08/06/2015 00:00,739684,1519.21,REVENUE,Sagecare,HOME CARE
Peterborough,http://opendatacommunities.org/id/unitary-authority/peterborough,Peterborough City Council,Adult Social Care,Older People,Supplies and Services,08/06/2015 00:00,739685,601.92,REVENUE,Sagecare,HOME CARE
Peterborough,http://opendatacommunities.org/id/unitary-authority/peterborough,Peterborough City Council,Adult Social Care,Older People,Supplies and Services,08/06/2015 00:00,739687,588.96,REVENUE,Sagecare,HOME CARE
Peterborough,http://opendatacommunities.org/id/unitary-authority/peterborough,Peterborough City Council,Adult Social Care,Older People,Supplies and Services,08/06/2015 00:00,739689,750.99,REVENUE,Sagecare,HOME CARE
Peterborough,http://opendatacommunities.org/id/unitary-authority/peterborough,Peterborough City Council,Adult Social Care,Older People,Supplies and Services,08/06/2015 00:00,739690,591.12,REVENUE,Sagecare,HOME CARE
Peterborough,http://opendatacommunities.org/id/unitary-authority/peterborough,Peterborough City Council,Adult Social Care,Older People,Supplies and Services,08/06/2015 00:00,739692,603.96,REVENUE,Sagecare,HOME CARE
Peterborough,http://opendatacommunities.org/id/unitary-authority/peterborough,Peterborough City Council,Adult Social Care,Older People,Supplies and Services,08/06/2015 00:00,739693,830.16,REVENUE,Sagecare,HOME CARE
Peterborough,http://opendatacommunities.org/id/unitary-authority/peterborough,Peterborough City Council,Adult Social Care,Older People,Supplies and Services,08/06/2015 00:00,739694,1803.36,REVENUE,Sagecare,HOME CARE
Peterborough,http://opendatacommunities.org/id/unitary-authority/peterborough,Peterborough City Council,Adult Social Care,Older People,Supplies and Services,08/06/2015 00:00,739696,641.89,REVENUE,Sagecare,HOME CARE
Peterborough,http://opendatacommunities.org/id/unitary-authority/peterborough,Peterborough City Council,Adult Social Care,Older People,Supplies and Services,08/06/2015 00:00,739700,1345.26,REVENUE,Sagecare,HOME CARE
Peterborough,http://opendatacommunities.org/id/unitary-authority/peterborough,Peterborough City Council,Adult Social Care,Older People,Supplies and Services,08/06/2015 00:00,739701,577.44,REVENUE,Sagecare,HOME CARE
Peterborough,http://opendatacommunities.org/id/unitary-authority/peterborough,Peterborough City Council,Adult Social Care,Older People,Supplies and Services,08/06/2015 00:00,739708,658.39,REVENUE,Sagecare,HOME CARE
Peterborough,http://opendatacommunities.org/id/unitary-authority/peterborough,Peterborough City Council,Adult Social Care,Older People,Supplies and Services,08/06/2015 00:00,739710,2167.75,REVENUE,Sagecare,HOME CARE
Peterborough,http://opendatacommunities.org/id/unitary-authority/peterborough,Peterborough City Council,Adult Social Care,Older People,Supplies and Services,08/06/2015 00:00,739714,2291.28,REVENUE,Sagecare,HOME CARE
Peterborough,http://opendatacommunities.org/id/unitary-authority/peterborough,Peterborough City Council,Adult Social Care,Older People,Supplies and Services,08/06/2015 00:00,739715,766.05,REVENUE,Sagecare,HOME CARE
Peterborough,http://opendatacommunities.org/id/unitary-authority/peterborough,Peterborough City Council,Corporate & Democratic Core,Corporate Management,Supplies and Services,08/06/2015 00:00,739820,7696.49,REVENUE,The Copyright Licencing Agency Ltd,LICENCES
Peterborough,http://opendatacommunities.org/id/unitary-authority/peterborough,Peterborough City Council,Deficit/(Surplus) on Trading Undertakings,Trading Account Surpluses & Deficits,Supplies and Services,08/06/2015 00:00,739878,1259.28,REVENUE,Rowes Precision Products Ltd,ITEMS FOR RESALE
Peterborough,http://opendatacommunities.org/id/unitary-authority/peterborough,Peterborough City Council,Adult Social Care,Older People,Supplies and Services,08/06/2015 00:00,739914,678.75,REVENUE,COMFORCARE SENIOR SERVICES,HOME CARE
Peterborough,http://opendatacommunities.org/id/unitary-authority/peterborough,Peterborough City Council,Adult Social Care,Older People,Supplies and Services,08/06/2015 00:00,740167,532.23,REVENUE,Barchester Healthcare (Werrington Lodge),RESIDENTIAL CARE
Peterborough,http://opendatacommunities.org/id/unitary-authority/peterborough,Peterborough City Council,Adult Social Care,Older People,Supplies and Services,08/06/2015 00:00,740168,992.71,REVENUE,Sagecare,HOME CARE
Peterborough,http://opendatacommunities.org/id/unitary-authority/peterborough,Peterborough City Council,Adult Social Care,Older People,Supplies and Services,08/06/2015 00:00,740225,532.23,REVENUE,Barchester Healthcare (Werrington Lodge),RESIDENTIAL CARE
Peterborough,http://opendatacommunities.org/id/unitary-authority/peterborough,Peterborough City Council,Adult Social Care,Older People,Supplies and Services,08/06/2015 00:00,740557,1845.21,REVENUE,Sagecare,HOME CARE
Peterborough,http://opendatacommunities.org/id/unitary-authority/peterborough,Peterborough City Council,Adult Social Care,Adult Learning Disabilities,Supplies and Services,08/06/2015 00:00,740561,627.99,REVENUE,Sagecare,HOME CARE
Peterborough,http://opendatacommunities.org/id/unitary-authority/peterborough,Peterborough City Council,Adult Social Care,Older People,Supplies and Services,08/06/2015 00:00,740562,686.88,REVENUE,Sagecare,HOME CARE
Peterborough,http://opendatacommunities.org/id/unitary-authority/peterborough,Peterborough City Council,Adult Social Care,Older People,Supplies and Services,08/06/2015 00:00,740567,554.4,REVENUE,Augusta Care Ltd,HOME CARE
Peterborough,http://opendatacommunities.org/id/unitary-authority/peterborough,Peterborough City Council,Adult Social Care,Older People,Supplies and Services,08/06/2015 00:00,740568,1491.6,REVENUE,Augusta Care Ltd,HOME CARE
Peterborough,http://opendatacommunities.org/id/unitary-authority/peterborough,Peterborough City Council,Adult Social Care,Adult Learning Disabilities,Supplies and Services,08/06/2015 00:00,740570,1900.8,REVENUE,Augusta Care Ltd,HOME CARE
Peterborough,http://opendatacommunities.org/id/unitary-authority/peterborough,Peterborough City Council,Adult Social Care,Older People,Supplies and Services,08/06/2015 00:00,740571,2661.12,REVENUE,Augusta Care Ltd,HOME CARE
Peterborough,http://opendatacommunities.org/id/unitary-authority/peterborough,Peterborough City Council,Adult Social Care,Older People,Supplies and Services,08/06/2015 00:00,740572,879.12,REVENUE,Augusta Care Ltd,HOME CARE
Peterborough,http://opendatacommunities.org/id/unitary-authority/peterborough,Peterborough City Council,Adult Social Care,Older People,Supplies and Services,08/06/2015 00:00,740573,1455.12,REVENUE,Augusta Care Ltd,HOME CARE
Peterborough,http://opendatacommunities.org/id/unitary-authority/peterborough,Peterborough City Council,Adult Social Care,Older People,Supplies and Services,08/06/2015 00:00,740574,1560.72,REVENUE,Augusta Care Ltd,HOME CARE
Peterborough,http://opendatacommunities.org/id/unitary-authority/peterborough,Peterborough City Council,Adult Social Care,Adult Learning Disabilities,Supplies and Services,08/06/2015 00:00,740575,6854.4,REVENUE,Augusta Care Ltd,HOME CARE
Peterborough,http://opendatacommunities.org/id/unitary-authority/peterborough,Peterborough City Council,Adult Social Care,Adult Learning Disabilities,Supplies and Services,08/06/2015 00:00,740577,3339.6,REVENUE,Augusta Care Ltd,HOME CARE
Peterborough,http://opendatacommunities.org/id/unitary-authority/peterborough,Peterborough City Council,Adult Social Care,Adult Learning Disabilities,Supplies and Services,08/06/2015 00:00,740579,6675.52,REVENUE,Augusta Care Ltd,HOME CARE
Peterborough,http://opendatacommunities.org/id/unitary-authority/peterborough,Peterborough City Council,Adult Social Care,Older People,Supplies and Services,08/06/2015 00:00,740581,1808.4,REVENUE,Augusta Care Ltd,HOME CARE
Peterborough,http://opendatacommunities.org/id/unitary-authority/peterborough,Peterborough City Council,Adult Social Care,Adult Learning Disabilities,Supplies and Services,08/06/2015 00:00,740582,3075.96,REVENUE,Augusta Care Ltd,HOME CARE
Peterborough,http://opendatacommunities.org/id/unitary-authority/peterborough,Peterborough City Council,Adult Social Care,Older People,Supplies and Services,08/06/2015 00:00,740583,13591.2,REVENUE,Augusta Care Ltd,HOME CARE
Peterborough,http://opendatacommunities.org/id/unitary-authority/peterborough,Peterborough City Council,Adult Social Care,Adult Learning Disabilities,Supplies and Services,08/06/2015 00:00,740584,1703.2,REVENUE,Augusta Care Ltd,HOME CARE
Peterborough,http://opendatacommunities.org/id/unitary-authority/peterborough,Peterborough City Council,Adult Social Care,Adult Learning Disabilities,Supplies and Services,08/06/2015 00:00,740585,792,REVENUE,Augusta Care Ltd,HOME CARE
Peterborough,http://opendatacommunities.org/id/unitary-authority/peterborough,Peterborough City Council,Adult Social Care,Older People,Supplies and Services,08/06/2015 00:00,740588,4852.8,REVENUE,Augusta Care Ltd,HOME CARE
Peterborough,http://opendatacommunities.org/id/unitary-authority/peterborough,Peterborough City Council,Adult Social Care,Older People,Supplies and Services,08/06/2015 00:00,740589,8452.8,REVENUE,Augusta Care Ltd,HOME CARE
Peterborough,http://opendatacommunities.org/id/unitary-authority/peterborough,Peterborough City Council,Adult Social Care,Adult Learning Disabilities,Supplies and Services,08/06/2015 00:00,740590,528,REVENUE,Augusta Care Ltd,HOME CARE
Peterborough,http://opendatacommunities.org/id/unitary-authority/peterborough,Peterborough City Council,Adult Social Care,Adult Learning Disabilities,Supplies and Services,08/06/2015 00:00,740593,10348.8,REVENUE,Augusta Care Ltd,HOME CARE
Peterborough,http://opendatacommunities.org/id/unitary-authority/peterborough,Peterborough City Council,Adult Social Care,Older People,Supplies and Services,08/06/2015 00:00,740598,610.68,REVENUE,Sagecare,HOME CARE
Peterborough,http://opendatacommunities.org/id/unitary-authority/peterborough,Peterborough City Council,Adult Social Care,Older People,Supplies and Services,08/06/2015 00:00,740599,712.08,REVENUE,Sagecare,HOME CARE
Peterborough,http://opendatacommunities.org/id/unitary-authority/peterborough,Peterborough City Council,Adult Social Care,Older People,Supplies and Services,08/06/2015 00:00,740600,1387.86,REVENUE,Sagecare,HOME CARE
Peterborough,http://opendatacommunities.org/id/unitary-authority/peterborough,Peterborough City Council,Adult Social Care,Older People,Supplies and Services,08/06/2015 00:00,740601,523.48,REVENUE,Sagecare,HOME CARE
Peterborough,http://opendatacommunities.org/id/unitary-authority/peterborough,Peterborough City Council,Adult Social Care,Older People,Supplies and Services,08/06/2015 00:00,740607,697.08,REVENUE,Sagecare,HOME CARE
Peterborough,http://opendatacommunities.org/id/unitary-authority/peterborough,Peterborough City Council,Adult Social Care,Older People,Supplies and Services,08/06/2015 00:00,740620,1023.12,REVENUE,Sagecare,HOME CARE
Peterborough,http://opendatacommunities.org/id/unitary-authority/peterborough,Peterborough City Council,Adult Social Care,Older People,Supplies and Services,08/06/2015 00:00,740627,621.73,REVENUE,COMFORCARE SENIOR SERVICES,HOME CARE
Peterborough,http://opendatacommunities.org/id/unitary-authority/peterborough,Peterborough City Council,Adult Social Care,Older People,Supplies and Services,08/06/2015 00:00,740628,748.59,REVENUE,COMFORCARE SENIOR SERVICES,HOME CARE
Peterborough,http://opendatacommunities.org/id/unitary-authority/peterborough,Peterborough City Council,Adult Social Care,Older People,Supplies and Services,08/06/2015 00:00,740630,668.84,REVENUE,COMFORCARE SENIOR SERVICES,HOME CARE
Peterborough,http://opendatacommunities.org/id/unitary-authority/peterborough,Peterborough City Council,Adult Social Care,Older People,Supplies and Services,08/06/2015 00:00,740631,813.38,REVENUE,COMFORCARE SENIOR SERVICES,HOME CARE
Peterborough,http://opendatacommunities.org/id/unitary-authority/peterborough,Peterborough City Council,Adult Social Care,Older People,Supplies and Services,08/06/2015 00:00,740632,545.42,REVENUE,COMFORCARE SENIOR SERVICES,HOME CARE
Peterborough,http://opendatacommunities.org/id/unitary-authority/peterborough,Peterborough City Council,Adult Social Care,Older People,Supplies and Services,08/06/2015 00:00,740633,722.14,REVENUE,COMFORCARE SENIOR SERVICES,HOME CARE
Peterborough,http://opendatacommunities.org/id/unitary-authority/peterborough,Peterborough City Council,Adult Social Care,Older People,Supplies and Services,08/06/2015 00:00,740634,1853.47,REVENUE,COMFORCARE SENIOR SERVICES,HOME CARE
Peterborough,http://opendatacommunities.org/id/unitary-authority/peterborough,Peterborough City Council,Adult Social Care,Older People,Supplies and Services,08/06/2015 00:00,740635,624.75,REVENUE,COMFORCARE SENIOR SERVICES,HOME CARE
Peterborough,http://opendatacommunities.org/id/unitary-authority/peterborough,Peterborough City Council,Adult Social Care,Older People,Supplies and Services,08/06/2015 00:00,740639,832.28,REVENUE,COMFORCARE SENIOR SERVICES,HOME CARE
Peterborough,http://opendatacommunities.org/id/unitary-authority/peterborough,Peterborough City Council,Adult Social Care,Older People,Supplies and Services,08/06/2015 00:00,740641,1697.54,REVENUE,COMFORCARE SENIOR SERVICES,HOME CARE
Peterborough,http://opendatacommunities.org/id/unitary-authority/peterborough,Peterborough City Council,Adult Social Care,Older People,Supplies and Services,08/06/2015 00:00,740643,1655.54,REVENUE,COMFORCARE SENIOR SERVICES,HOME CARE
Peterborough,http://opendatacommunities.org/id/unitary-authority/peterborough,Peterborough City Council,Adult Social Care,Older People,Supplies and Services,08/06/2015 00:00,740645,798.52,REVENUE,COMFORCARE SENIOR SERVICES,HOME CARE
Peterborough,http://opendatacommunities.org/id/unitary-authority/peterborough,Peterborough City Council,Adult Social Care,Older People,Supplies and Services,08/06/2015 00:00,740647,658.64,REVENUE,COMFORCARE SENIOR SERVICES,HOME CARE
Peterborough,http://opendatacommunities.org/id/unitary-authority/peterborough,Peterborough City Council,Adult Social Care,Older People,Supplies and Services,08/06/2015 00:00,740648,556.12,REVENUE,COMFORCARE SENIOR SERVICES,HOME CARE
Peterborough,http://opendatacommunities.org/id/unitary-authority/peterborough,Peterborough City Council,Adult Social Care,Older People,Supplies and Services,08/06/2015 00:00,740656,844.77,REVENUE,COMFORCARE SENIOR SERVICES,HOME CARE
Peterborough,http://opendatacommunities.org/id/unitary-authority/peterborough,Peterborough City Council,Adult Social Care,Older People,Supplies and Services,08/06/2015 00:00,740657,644.74,REVENUE,COMFORCARE SENIOR SERVICES,HOME CARE
Peterborough,http://opendatacommunities.org/id/unitary-authority/peterborough,Peterborough City Council,Adult Social Care,Older People,Supplies and Services,08/06/2015 00:00,740662,613.14,REVENUE,COMFORCARE SENIOR SERVICES,HOME CARE
Peterborough,http://opendatacommunities.org/id/unitary-authority/peterborough,Peterborough City Council,Adult Social Care,Older People,Supplies and Services,08/06/2015 00:00,740664,524.3,REVENUE,COMFORCARE SENIOR SERVICES,HOME CARE
Peterborough,http://opendatacommunities.org/id/unitary-authority/peterborough,Peterborough City Council,Adult Social Care,Older People,Supplies and Services,08/06/2015 00:00,740665,907.91,REVENUE,COMFORCARE SENIOR SERVICES,HOME CARE
Peterborough,http://opendatacommunities.org/id/unitary-authority/peterborough,Peterborough City Council,Adult Social Care,Older People,Supplies and Services,08/06/2015 00:00,740667,1071.64,REVENUE,COMFORCARE SENIOR SERVICES,HOME CARE
Peterborough,http://opendatacommunities.org/id/unitary-authority/peterborough,Peterborough City Council,Adult Social Care,Older People,Supplies and Services,08/06/2015 00:00,740671,1629.48,REVENUE,COMFORCARE SENIOR SERVICES,HOME CARE
Peterborough,http://opendatacommunities.org/id/unitary-authority/peterborough,Peterborough City Council,Adult Social Care,Assistive Equipment and Technology,Supplies and Services,08/06/2015 00:00,741543,6060.61,REVENUE,Cambridgeshire County Council,OCCUPATIONAL THERAPY EQUIPMENT
Peterborough,http://opendatacommunities.org/id/unitary-authority/peterborough,Peterborough City Council,Support Services,Support Services,Supplies and Services,08/06/2015 00:00,741544,900,REVENUE,"King, Miss Fawzia",LEGAL COSTS
Peterborough,http://opendatacommunities.org/id/unitary-authority/peterborough,Peterborough City Council,Adult Social Care,Older People,Supplies and Services,08/06/2015 00:00,741545,814.16,REVENUE,Atlas Care Services Ltd,HOME CARE
Peterborough,http://opendatacommunities.org/id/unitary-authority/peterborough,Peterborough City Council,Adult Social Care,Older People,Supplies and Services,08/06/2015 00:00,741617,1064.46,REVENUE,Park Vista Care Home,RESIDENTIAL CARE
Peterborough,http://opendatacommunities.org/id/unitary-authority/peterborough,Peterborough City Council,Adult Social Care,Older People,Supplies and Services,08/06/2015 00:00,741693,2162.24,REVENUE,"ATCHISON, MR ALAN",RESIDENTIAL CARE
Peterborough,http://opendatacommunities.org/id/unitary-authority/peterborough,Peterborough City Council,Adult Social Care,Adult Learning Disabilities,Supplies and Services,08/06/2015 00:00,741696,3116.56,REVENUE,"ATCHISON, MR ALAN",RESIDENTIAL CARE
Peterborough,http://opendatacommunities.org/id/unitary-authority/peterborough,Peterborough City Council,Adult Social Care,Adult Learning Disabilities,Supplies and Services,08/06/2015 00:00,741699,660,REVENUE,"ATCHISON, MR ALAN",RESIDENTIAL CARE
Peterborough,http://opendatacommunities.org/id/unitary-authority/peterborough,Peterborough City Council,Adult Social Care,Adult Learning Disabilities,Supplies and Services,08/06/2015 00:00,741700,4915.12,REVENUE,"ATCHISON, MR ALAN",RESIDENTIAL CARE
Peterborough,http://opendatacommunities.org/id/unitary-authority/peterborough,Peterborough City Council,Adult Social Care,Adult Learning Disabilities,Supplies and Services,08/06/2015 00:00,741701,660,REVENUE,"ATCHISON, MR ALAN",RESIDENTIAL CARE
Peterborough,http://opendatacommunities.org/id/unitary-authority/peterborough,Peterborough City Council,Adult Social Care,Adult Learning Disabilities,Supplies and Services,08/06/2015 00:00,741702,2802.8,REVENUE,"ATCHISON, MR ALAN",RESIDENTIAL CARE
Peterborough,http://opendatacommunities.org/id/unitary-authority/peterborough,Peterborough City Council,Adult Social Care,Adult Learning Disabilities,Supplies and Services,08/06/2015 00:00,741703,2025.8,REVENUE,"ATCHISON, MR ALAN",RESIDENTIAL CARE
Peterborough,http://opendatacommunities.org/id/unitary-authority/peterborough,Peterborough City Council,Adult Social Care,Adult Learning Disabilities,Supplies and Services,08/06/2015 00:00,741704,3493.44,REVENUE,"ATCHISON, MR ALAN",RESIDENTIAL CARE
Peterborough,http://opendatacommunities.org/id/unitary-authority/peterborough,Peterborough City Council,Adult Social Care,Adult Learning Disabilities,Supplies and Services,08/06/2015 00:00,741705,2768.92,REVENUE,"ATCHISON, MR ALAN",RESIDENTIAL CARE
Peterborough,http://opendatacommunities.org/id/unitary-authority/peterborough,Peterborough City Council,Adult Social Care,Adult Learning Disabilities,Supplies and Services,08/06/2015 00:00,741707,2709.8,REVENUE,"ATCHISON, MR ALAN",RESIDENTIAL CARE
Peterborough,http://opendatacommunities.org/id/unitary-authority/peterborough,Peterborough City Council,Adult Social Care,Adult Learning Disabilities,Supplies and Services,08/06/2015 00:00,741708,2162.28,REVENUE,"ATCHISON, MR ALAN",RESIDENTIAL CARE
Peterborough,http://opendatacommunities.org/id/unitary-authority/peterborough,Peterborough City Council,Adult Social Care,Adult Learning Disabilities,Supplies and Services,08/06/2015 00:00,741710,1824.36,REVENUE,"ATCHISON, MR ALAN",RESIDENTIAL CARE
Peterborough,http://opendatacommunities.org/id/unitary-authority/peterborough,Peterborough City Council,Adult Social Care,Adult Learning Disabilities,Supplies and Services,08/06/2015 00:00,741715,3051.28,REVENUE,"ATCHISON, MR ALAN",RESIDENTIAL CARE
Peterborough,http://opendatacommunities.org/id/unitary-authority/peterborough,Peterborough City Council,Adult Social Care,Adult Learning Disabilities,Supplies and Services,08/06/2015 00:00,741717,2298.52,REVENUE,"ATCHISON, MR ALAN",RESIDENTIAL CARE
Peterborough,http://opendatacommunities.org/id/unitary-authority/peterborough,Peterborough City Council,Adult Social Care,Adult Learning Disabilities,Supplies and Services,08/06/2015 00:00,741720,5803.6,REVENUE,"ATCHISON, MR ALAN",RESIDENTIAL CARE
Peterborough,http://opendatacommunities.org/id/unitary-authority/peterborough,Peterborough City Council,Adult Social Care,Adult Learning Disabilities,Supplies and Services,08/06/2015 00:00,741723,3552.52,REVENUE,"ATCHISON, MR ALAN",RESIDENTIAL CARE
